Workbook

Sheet Intro
B2: Buttons for running a tournament: | R2: Setup Tabs
R3: Presentation Tabs
R4: Round Results
R5: Other
B19: Buttons for practising:

Sheet Setup
A1: SCORING SETUP | D1: Group/Ind Swiss? | E1: Group | G1: Individual Tie Breaks | J1: Group Tie Breaks
G2: Player | J2: Group
A3: Points for… | D3: Name of First Bonus | E3: Bonus1 | G3: Points | H3: Order | J3: Points | K3: Order
A4: Win by at least 2 TD | B4: 2 | D4: Name of Second Bonus | E4: Bonus2 | G4: TD For | J4: TD For
A5: Win by 1 TD | B5: 2 | G5: TD Against | J5: TD Against
A6: Draw | B6: 1 | G6: TD Net | H6: 2 | J6: Net TDs | K6: 2
A7: Lose by 1 TD | B7: 0 | G7: Cas For | J7: Cas For
A8: Lose by at least 2 TD | B8: 0 | G8: Cas Against | J8: Cas Against
G9: Cas Net | H9: 3 | J9: Net Cas | K9: 3
A10: Bonus points for TD/Cas etc | D10: Test Individual Scoring System Here | G10: =Working!AG16 -> Bonus1 | J10: ="Group Total "&Working!AG16 -> Group Total Bonus1
A11: Points per TD | B11: 0 | D11: Your Score (required) | E11: 4 | G11: =Working!AG17 -> Bonus2 | J11: ="Group Total "&Working!AG17 -> Group Total Bonus2
A12: Max TD Bonus Pts | B12: 0 | D12: Opponent Score (required) | E12: 3 | G12: Wins | J12: Group Wins
A13: Points per Cas | B13: 0 | D13: Your Cas (optional) | E13: 3 | G13: Draws | J13: Groups Draws
A14: Max Cas Bonus Pts | B14: 0 | D14: ="Your "&Working!AG16&" (optional)" -> Your Bonus1 (optional) | E14: 1 | G14: Losses | J14: Group Losses
A15: =Working!AG16&" Max Bonus Pts" -> Bonus1 Max Bonus Pts | B15: 0 | D15: ="Your "&Working!AG17&" (optional)" -> Your Bonus2 (optional) | E15: 2 | G15: Opp Score | H15: 1 | J15: Individual Wins
A16: =Working!AG17&" Max Bonus Pts" -> Bonus2 Max Bonus Pts | B16: 0 | J16: Individual Draws
D17: Your Points | E17: =fctScore(E11,E12,E13,E14,E15) -> 1 | J17: Individual Losses
A18: Group Scoring Options | J18: Total Individual Points
A19: Points for a win | B19: 2 | J19: Opponent Score | K19: 1
A20: Points for a draw | B20: 1
A21: Points for a loss | B21: 0
A22: Points for a group win | B22: 200
A23: Points for a group draw | B23: 100
A24: Points for a group loss | B24: 0

Sheet Players
A1: Num | B1: Display Name | C1: NAF Name | D1: NAF Number (Random) | E1: Race | F1: Group | G1: Stunty | M1: Groups | O1: Team Size | P1: 8
A2: =IF(C2="","",MAX(A$1:A1)+1) -> 1 | B2: Niebling | C2: Niebling | D2: 11499 | E2: Amazons | F2: Denmark | M2: Belgium
A3: =IF(C3="","",MAX(A$1:A2)+1) -> 2 | B3: PurpleGoo | C3: PurpleGoo | D3: 11777 | E3: Amazons | F3: England | M3: Denmark
A4: =IF(C4="","",MAX(A$1:A3)+1) -> 3 | B4: Mubo | C4: Mubo | D4: 13409 | E4: Amazons | F4: England | M4: England
A5: =IF(B5="","",MAX(A$1:A4)+1) -> 4 | B5: Dirold | C5: Dirold | D5: 5900 | E5: Amazons | F5: Italy | M5: Finland
A6: =IF(B6="","",MAX(A$1:A5)+1) -> 5 | B6: The_Ref | C6: The_Ref | D6: 9441 | E6: Amazons | F6: Norway | M6: France
A7: =IF(C7="","",MAX(A$1:A6)+1) -> 6 | B7: Tripleskull | C7: Tripleskull | D7: 9524 | E7: Chaos | F7: Denmark | M7: Germany
A8: =IF(C8="","",MAX(A$1:A7)+1) -> 7 | B8: MissSweden | C8: MissSweden | D8: 11498 | E8: Chaos | F8: Denmark | M8: Hungary
A9: =IF(C9="","",MAX(A$1:A8)+1) -> 8 | B9: Topper | C9: Topper | D9: 6363 | E9: Chaos | F9: Denmark | M9: Italy
A10: =IF(C10="","",MAX(A$1:A9)+1) -> 9 | B10: Joemanji | C10: Joemanji | D10: 3312 | E10: Chaos | F10: England | M10: Norway
A11: =IF(B11="","",MAX(A$1:A10)+1) -> 10 | B11: edheim | C11: edheim | D11: 20760 | E11: Chaos | F11: Finland | M11: Poland
A12: =IF(B12="","",MAX(A$1:A11)+1) -> 11 | B12: FrankPedersen | C12: FrankPedersen | D12: 20899 | E12: Chaos | F12: Norway | M12: Scotland
A13: =IF(B13="","",MAX(A$1:A12)+1) -> 12 | B13: Obeliz | C13: Obeliz | D13: 2519 | E13: Chaos | F13: Spain | M13: Spain
A14: =IF(B14="","",MAX(A$1:A13)+1) -> 13 | B14: Northernknight | C14: Northernknight | D14: 7569 | E14: Chaos | F14: Wales | M14: Sweden
A15: =IF(C15="","",MAX(A$1:A14)+1) -> 14 | B15: Woete | C15: Woete | D15: 12500 | E15: Chaos Dwarves | F15: Belgium | M15: Switzerland
A16: =IF(B16="","",MAX(A$1:A15)+1) -> 15 | B16: RoterSternHochdahl | C16: RoterSternHochdahl | D16: 18704 | E16: Chaos Dwarves | F16: Germany | M16: Viking
A17: =IF(B17="","",MAX(A$1:A16)+1) -> 16 | B17: Jonny_Kanone | C17: Jonny_Kanone | D17: 9621 | E17: Chaos Dwarves | F17: Germany | M17: Wales
A18: =IF(B18="","",MAX(A$1:A17)+1) -> 17 | B18: Itzla | C18: Itzla | D18: 9758 | E18: Chaos Dwarves | F18: Hungary
A19: =IF(B19="","",MAX(A$1:A18)+1) -> 18 | B19: Farina | C19: Farina | D19: 3533 | E19: Chaos Dwarves | F19: Italy
A20: =IF(B20="","",MAX(A$1:A19)+1) -> 19 | B20: Garrick | C20: Garrick | D20: 18506 | E20: Chaos Dwarves | F20: Scotland
A21: =IF(B21="","",MAX(A$1:A20)+1) -> 20 | B21: Dark Duke | C21: Dark Duke | D21: 2925 | E21: Chaos Dwarves | F21: Spain
A22: =IF(B22="","",MAX(A$1:A21)+1) -> 21 | B22: 20Phoenix | C22: 20Phoenix | D22: 19395 | E22: Chaos Dwarves | F22: Wales
A23: =IF(C23="","",MAX(A$1:A22)+1) -> 22 | B23: Malodoror | C23: Malodoror | D23: 20793 | E23: Chaos Pact | F23: Belgium
A24: =IF(B24="","",MAX(A$1:A23)+1) -> 23 | B24: Bouzzy | C24: Bouzzy | D24: 15733 | E24: Chaos Pact | F24: France
A25: =IF(B25="","",MAX(A$1:A24)+1) -> 24 | B25: DocMaxx | C25: DocMaxx | D25: 16347 | E25: Chaos Pact | F25: Germany
A26: =IF(B26="","",MAX(A$1:A25)+1) -> 25 | B26: BlackOrc | C26: BlackOrc | D26: 6233 | E26: Chaos Pact | F26: Hungary
A27: =IF(B27="","",MAX(A$1:A26)+1) -> 26 | B27: Kaltenland | C27: Kaltenland | D27: 11924 | E27: Chaos Pact | F27: Italy
A28: =IF(B28="","",MAX(A$1:A27)+1) -> 27 | B28: Shawass | C28: Shawass | D28: 18416 | E28: Chaos Pact | F28: Poland
A29: =IF(B29="","",MAX(A$1:A28)+1) -> 28 | B29: Malasnoticias | C29: Malasnoticias | D29: 17068 | E29: Chaos Pact | F29: Spain
A30: =IF(B30="","",MAX(A$1:A29)+1) -> 29 | B30: Macabeo | C30: Macabeo | D30: 18608 | E30: Chaos Pact | F30: Switzerland
A31: =IF(B31="","",MAX(A$1:A30)+1) -> 30 | B31: Corwin | C31: Corwin | D31: 17878 | E31: Chaos Pact | F31: Viking
A32: =IF(B32="","",MAX(A$1:A31)+1) -> 31 | B32: SFisher91 | C32: SFisher91 | D32: 16057 | E32: Chaos Pact | F32: Wales
A33: =IF(C33="","",MAX(A$1:A32)+1) -> 32 | B33: Phoenix11 | C33: Phoenix11 | D33: 8402 | E33: Dark Elves | F33: Belgium
A34: =IF(B34="","",MAX(A$1:A33)+1) -> 33 | B34: Wolio | C34: Wolio | D34: 20061 | E34: Dark Elves | F34: Hungary
A35: =IF(B35="","",MAX(A$1:A34)+1) -> 34 | B35: Reszka | C35: Reszka | D35: 21573 | E35: Dark Elves | F35: Poland
A36: =IF(B36="","",MAX(A$1:A35)+1) -> 35 | B36: Slimaq | C36: Slimaq | D36: 21957 | E36: Dark Elves | F36: Poland
A37: =IF(B37="","",MAX(A$1:A36)+1) -> 36 | B37: Skuld | C37: Skuld | D37: 20481 | E37: Dark Elves | F37: Sweden
A38: =IF(B38="","",MAX(A$1:A37)+1) -> 37 | B38: Balder | C38: Balder | D38: 17725 | E38: Dark Elves | F38: Viking
A39: =IF(B39="","",MAX(A$1:A38)+1) -> 38 | B39: Dionysian | C39: Dionysian | D39: 19480 | E39: Dark Elves | F39: Wales
A40: =IF(B40="","",MAX(A$1:A39)+1) -> 39 | B40: Harza | C40: Harza | D40: 20060 | E40: Dwarves | F40: Finland
A41: =IF(B41="","",MAX(A$1:A40)+1) -> 40 | B41: Idroj | C41: Idroj | D41: 20930 | E41: Dwarves | F41: Spain
A42: =IF(B42="","",MAX(A$1:A41)+1) -> 41 | B42: Faccko | C42: Faccko | D42: 17893 | E42: Dwarves | F42: Viking
A43: =IF(B43="","",MAX(A$1:A42)+1) -> 42 | B43: MacWitt | C43: MacWitt | D43: 19932 | E43: Elves | F43: Finland
A44: =IF(B44="","",MAX(A$1:A43)+1) -> 43 | B44: Pellevin | C44: Pellevin | D44: 19271 | E44: Elves | F44: Sweden
A45: =IF(C45="","",MAX(A$1:A44)+1) -> 44 | B45: Araznaroth | C45: Araznaroth | D45: 13199 | E45: Goblins | F45: Belgium | G45: 1
A46: =IF(C46="","",MAX(A$1:A45)+1) -> 45 | B46: JimJimany | C46: JimJimany | D46: 12403 | E46: Goblins | F46: England | G46: 1
A47: =IF(B47="","",MAX(A$1:A46)+1) -> 46 | B47: zulu | C47: zulu | D47: 16829 | E47: Goblins | F47: Norway | G47: 1
A48: =IF(B48="","",MAX(A$1:A47)+1) -> 47 | B48: mynock | C48: mynock | D48: 20775 | E48: Goblins | F48: Norway | G48: 1
A49: =IF(B49="","",MAX(A$1:A48)+1) -> 48 | B49: Strider84 | C49: Strider84 | D49: 14113 | E49: Goblins | F49: Switzerland | G49: 1
A50: =IF(B50="","",MAX(A$1:A49)+1) -> 49 | B50: Phifoe | C50: Phifoe | D50: 16959 | E50: Goblins | F50: Switzerland | G50: 1
A51: =IF(B51="","",MAX(A$1:A50)+1) -> 50 | B51: JohnnyD | C51: JohnnyD | D51: 18171 | E51: Halflings | F51: Sweden | G51: 1
A52: =IF(C52="","",MAX(A$1:A51)+1) -> 51 | B52: Dekra1979 | C52: Dekra1979 | D52: 16259 | E52: High Elves | F52: Belgium
A53: =IF(B53="","",MAX(A$1:A52)+1) -> 52 | B53: straume | C53: straume | D53: 20685 | E53: High Elves | F53: Norway
A54: =IF(B54="","",MAX(A$1:A53)+1) -> 53 | B54: Barry | C54: Barry | D54: 3290 | E54: High Elves | F54: Spain
A55: =IF(B55="","",MAX(A$1:A54)+1) -> 54 | B55: Tactel | C55: Tactel | D55: 20218 | E55: High Elves | F55: Spain
A56: =IF(B56="","",MAX(A$1:A55)+1) -> 55 | B56: Pidpad | C56: Pidpad | D56: 20957 | E56: High Elves | F56: Sweden
A57: =IF(B57="","",MAX(A$1:A56)+1) -> 56 | B57: Elrik | C57: Elrik | D57: 19344 | E57: High Elves | F57: Switzerland
A58: =IF(B58="","",MAX(A$1:A57)+1) -> 57 | B58: Simon_ACP | C58: Simon_ACP | D58: 17603 | E58: Humans | F58: France
A59: =IF(B59="","",MAX(A$1:A58)+1) -> 58 | B59: sann0638 | C59: sann0638 | D59: 8866 | E59: Humans | F59: Scotland
A60: =IF(B60="","",MAX(A$1:A59)+1) -> 59 | B60: Goss | C60: Goss | D60: 18266 | E60: Humans | F60: Switzerland
A61: =IF(B61="","",MAX(A$1:A60)+1) -> 60 | B61: Muadib | C61: Muadib | D61: 2800 | E61: Khemri | F61: Germany
A62: =IF(B62="","",MAX(A$1:A61)+1) -> 61 | B62: swifty | C62: swifty | D62: 20309 | E62: Khemri | F62: Hungary
A63: =IF(B63="","",MAX(A$1:A62)+1) -> 62 | B63: Matte8 | C63: Matte8 | D63: 13785 | E63: Khemri | F63: Italy
A64: =IF(B64="","",MAX(A$1:A63)+1) -> 63 | B64: Joanet | C64: Joanet | D64: 7690 | E64: Khemri | F64: Spain
A65: =IF(C65="","",MAX(A$1:A64)+1) -> 64 | B65: SpecialOne | C65: SpecialOne | D65: 16742 | E65: Lizardmen | F65: Denmark
A66: =IF(B66="","",MAX(A$1:A65)+1) -> 65 | B66: Prince | C66: Prince | D66: 341 | E66: Lizardmen | F66: Germany
A67: =IF(B67="","",MAX(A$1:A66)+1) -> 66 | B67: GreatWhiteHope | C67: GreatWhiteHope | D67: 20881 | E67: Lizardmen | F67: Norway
A68: =IF(B68="","",MAX(A$1:A67)+1) -> 67 | B68: Bernuz | C68: Bernuz | D68: 19542 | E68: Lizardmen | F68: Viking
A69: =IF(B69="","",MAX(A$1:A68)+1) -> 68 | B69: MadeofWelsh | C69: MadeofWelsh | D69: 12184 | E69: Lizardmen | F69: Wales
A70: =IF(C70="","",MAX(A$1:A69)+1) -> 69 | B70: Tank | C70: Tank | D70: 11501 | E70: Necromantic | F70: Denmark
A71: =IF(B71="","",MAX(A$1:A70)+1) -> 70 | B71: BeerBeer | C71: BeerBeer | D71: 18245 | E71: Necromantic | F71: Finland
A72: =IF(B72="","",MAX(A$1:A71)+1) -> 71 | B72: ratogre | C72: ratogre | D72: 22007 | E72: Necromantic | F72: Finland
A73: =IF(B73="","",MAX(A$1:A72)+1) -> 72 | B73: BudWiser | C73: BudWiser | D73: 12987 | E73: Necromantic | F73: France
A74: =IF(B74="","",MAX(A$1:A73)+1) -> 73 | B74: Gros Nain | C74: Gros Nain | D74: 14524 | E74: Norse | F74: France
A75: =IF(B75="","",MAX(A$1:A74)+1) -> 74 | B75: Warrior1980 | C75: Warrior1980 | D75: 22376 | E75: Norse | F75: Poland
A76: =IF(B76="","",MAX(A$1:A75)+1) -> 75 | B76: Juniooor7 | C76: Juniooor7 | D76: 22455 | E76: Norse | F76: Poland
A77: =IF(B77="","",MAX(A$1:A76)+1) -> 76 | B77: Madmatt13 | C77: Madmatt13 | D77: 19790 | E77: Norse | F77: Switzerland
A78: =IF(B78="","",MAX(A$1:A77)+1) -> 77 | B78: jopotzuki | C78: jopotzuki | D78: 20783 | E78: Nurgle's Rotters | F78: Finland
A79: =IF(B79="","",MAX(A$1:A78)+1) -> 78 | B79: J-Ho | C79: J-Ho | D79: 19106 | E79: Nurgle's Rotters | F79: Finland
A80: =IF(B80="","",MAX(A$1:A79)+1) -> 79 | B80: Verrinho | C80: Verrinho | D80: 16930 | E80: Nurgle's Rotters | F80: Italy
A81: =IF(B81="","",MAX(A$1:A80)+1) -> 80 | B81: Valen | C81: Valen | D81: 1538 | E81: Nurgle's Rotters | F81: Scotland
A82: =IF(C82="","",MAX(A$1:A81)+1) -> 81 | B82: Lycos | C82: Lycos | D82: 2870 | E82: Ogres | F82: England | G82: 1
A83: =IF(B83="","",MAX(A$1:A82)+1) -> 82 | B83: Domingo | C83: Domingo | D83: 20280 | E83: Ogres | F83: Poland | G83: 1
A84: =IF(B84="","",MAX(A$1:A83)+1) -> 83 | B84: Mufflo | C84: Mufflo | D84: 15048 | E84: Ogres | F84: Viking | G84: 1
A85: =IF(B85="","",MAX(A$1:A84)+1) -> 84 | B85: andydavo | C85: andydavo | D85: 19726 | E85: Ogres | F85: Wales | G85: 1
A86: =IF(C86="","",MAX(A$1:A85)+1) -> 85 | B86: Geggster | C86: Geggster | D86: 70 | E86: Orc | F86: England
A87: =IF(B87="","",MAX(A$1:A86)+1) -> 86 | B87: Arioso | C87: Arioso | D87: 18738 | E87: Orc | F87: Germany
A88: =IF(B88="","",MAX(A$1:A87)+1) -> 87 | B88: Gaunab | C88: Gaunab | D88: 2150 | E88: Orc | F88: Germany
A89: =IF(B89="","",MAX(A$1:A88)+1) -> 88 | B89: Alex05 | C89: Alex05 | D89: 22352 | E89: Orc | F89: Hungary
A90: =IF(B90="","",MAX(A$1:A89)+1) -> 89 | B90: Beppe | C90: Beppe | D90: 3564 | E90: Orc | F90: Italy
A91: =IF(B91="","",MAX(A$1:A90)+1) -> 90 | B91: Melisqus | C91: Melisqus | D91: 16238 | E91: Orc | F91: Sweden
A92: =IF(B92="","",MAX(A$1:A91)+1) -> 91 | B92: Dragons | C92: Dragons | D92: 19003 | E92: Orc | F92: Sweden
A93: =IF(C93="","",MAX(A$1:A92)+1) -> 92 | B93: Jaqra | C93: Jaqra | D93: 19750 | E93: Skaven | F93: Denmark
A94: =IF(B94="","",MAX(A$1:A93)+1) -> 93 | B94: Harti | C94: Harti | D94: 13583 | E94: Skaven | F94: France
A95: =IF(B95="","",MAX(A$1:A94)+1) -> 94 | B95: Favi | C95: Favi | D95: 20062 | E95: Skaven | F95: Hungary
A96: =IF(B96="","",MAX(A$1:A95)+1) -> 95 | B96: Spartako | C96: Spartako | D96: 13417 | E96: Skaven | F96: Italy
A97: =IF(B97="","",MAX(A$1:A96)+1) -> 96 | B97: DonShula | C97: DonShula | D97: 14445 | E97: Skaven | F97: Scotland
A98: =IF(B98="","",MAX(A$1:A97)+1) -> 97 | B98: HumptyTrump | C98: HumptyTrump | D98: 20360 | E98: Skaven | F98: Scotland
A99: =IF(B99="","",MAX(A$1:A98)+1) -> 98 | B99: Purrelito | C99: Purrelito | D99: 15323 | E99: Skaven | F99: Viking
A100: =IF(B100="","",MAX(A$1:A99)+1) -> 99 | B100: nonumber | C100: nonumber | D100: 8923 | E100: Skaven | F100: Wales
A101: =IF(C101="","",MAX(A$1:A100)+1) -> 100 | B101: Driesfield | C101: Driesfield | D101: 6183 | E101: Slann | F101: Belgium
A102: =IF(C102="","",MAX(A$1:A101)+1) -> 101 | B102: kfoged | C102: kfoged | D102: 10691 | E102: Slann | F102: Denmark
A103: =IF(C103="","",MAX(A$1:A102)+1) -> 102 | B103: Podfrey | C103: Podfrey | D103: 149 | E103: Slann | F103: England
A104: =IF(B104="","",MAX(A$1:A103)+1) -> 103 | B104: valkohukka | C104: valkohukka | D104: 18772 | E104: Slann | F104: Finland
A105: =IF(B105="","",MAX(A$1:A104)+1) -> 104 | B105: Skoberget | C105: Skoberget | D105: 19448 | E105: Slann | F105: Sweden
A106: =IF(B106="","",MAX(A$1:A105)+1) -> 105 | B106: brocCooli | C106: brocCooli | D106: 12552 | E106: Slann | F106: Viking
A107: =IF(B107="","",MAX(A$1:A106)+1) -> 106 | B107: Ploppy_McPloppy | C107: Ploppy_McPloppy | D107: 16417 | E107: Slann | F107: Wales
A108: =IF(B108="","",MAX(A$1:A107)+1) -> 107 | B108: BiBi | C108: BiBi | D108: 11491 | E108: Undead | F108: France
A109: =IF(B109="","",MAX(A$1:A108)+1) -> 108 | B109: Matt le fou | C109: Matt le fou | D109: 13561 | E109: Undead | F109: France
A110: =IF(B110="","",MAX(A$1:A109)+1) -> 109 | B110: Candlejack | C110: Candlejack | D110: 5844 | E110: Undead | F110: Germany
A111: =IF(B111="","",MAX(A$1:A110)+1) -> 110 | B111: Purdindas | C111: Purdindas | D111: 10831 | E111: Undead | F111: Scotland
A112: =IF(C112="","",MAX(A$1:A111)+1) -> 111 | B112: JJ | C112: JJ | D112: 10488 | E112: Underworld | F112: Belgium
A113: =IF(C113="","",MAX(A$1:A112)+1) -> 112 | B113: Wilzif | C113: Wilzif | D113: 8901 | E113: Underworld | F113: England
A114: =IF(B114="","",MAX(A$1:A113)+1) -> 113 | B114: noraal | C114: noraal | D114: 21798 | E114: Underworld | F114: Hungary
A115: =IF(B115="","",MAX(A$1:A114)+1) -> 114 | B115: cz | C115: cz | D115: 21604 | E115: Underworld | F115: Hungary
A116: =IF(B116="","",MAX(A$1:A115)+1) -> 115 | B116: Loki | C116: Loki | D116: 371 | E116: Underworld | F116: Scotland
A117: =IF(C117="","",MAX(A$1:A116)+1) -> 116 | B117: gninocker | C117: gninocker | D117: 17832 | E117: Vampires | F117: Belgium
A118: =IF(B118="","",MAX(A$1:A117)+1) -> 117 | B118: Mewash | C118: Mewash | D118: 21627 | E118: Vampires | F118: Poland
A119: =IF(B119="","",MAX(A$1:A118)+1) -> 118 | B119: Leonek | C119: Leonek | D119: 22375 | E119: Vampires | F119: Poland
A120: =IF(B120="","",MAX(A$1:A119)+1) -> 119 | B120: JamesEs | C120: JamesEs | D120: 17875 | E120: Vampires | F120: Scotland
A121: =IF(B121="","",MAX(A$1:A120)+1) -> 120 | B121: Duke_Luthor_Von_Hawkfire | C121: Duke_Luthor_Von_Hawkfire | D121: 11793 | E121: Vampires | F121: Spain
A122: =IF(B122="","",MAX(A$1:A121)+1) -> 121 | B122: Jokaero | C122: Jokaero | D122: 2785 | E122: Vampires | F122: Switzerland
A123: =IF(B123="","",MAX(A$1:A122)+1) -> 122 | B123: Duckwing | C123: Duckwing | D123: 16278 | E123: Vampires | F123: Viking
A124: =IF(B124="","",MAX(A$1:A123)+1) -> 123 | B124: Justicium | C124: Justicium | D124: 12319 | E124: Wood Elves | F124: France
A125: =IF(B125="","",MAX(A$1:A124)+1) -> 124 | B125: Liam | C125: Liam | D125: 5906 | E125: Wood Elves | F125: Italy
A126: =IF(B126="","",MAX(A$1:A125)+1) -> 125 | B126: Endalos | C126: Endalos | D126: 17242 | E126: Wood Elves | F126: Norway
A127: =IF(B127="","",MAX(A$1:A126)+1) -> 126 | B127: bothun | C127: bothun | D127: 20953 | E127: Wood Elves | F127: Norway
A128: =IF(B128="","",MAX(A$1:A127)+1) -> 127 | B128: Inforthepain | C128: Inforthepain | D128: 19483 | E128: Wood Elves | F128: Sweden
A129: =IF(B129="","",MAX(A$1:A128)+1) -> 128 | B129: sigu70 | C129: sigu70 | D129: 17003 | E129: Wood Elves | F129: Switzerland
A130: =IF(B130="","",MAX(A$1:A129)+1) -> 
A131: =IF(B131="","",MAX(A$1:A130)+1) -> 
A132: =IF(B132="","",MAX(A$1:A131)+1) -> 
A133: =IF(B133="","",MAX(A$1:A132)+1) -> 
A134: =IF(B134="","",MAX(A$1:A133)+1) -> 
A135: =IF(B135="","",MAX(A$1:A134)+1) -> 
A136: =IF(B136="","",MAX(A$1:A135)+1) -> 
A137: =IF(B137="","",MAX(A$1:A136)+1) -> 
A138: =IF(B138="","",MAX(A$1:A137)+1) -> 
A139: =IF(B139="","",MAX(A$1:A138)+1) -> 
A140: =IF(B140="","",MAX(A$1:A139)+1) -> 
A141: =IF(B141="","",MAX(A$1:A140)+1) -> 
A142: =IF(B142="","",MAX(A$1:A141)+1) -> 
A143: =IF(B143="","",MAX(A$1:A142)+1) -> 
A144: =IF(B144="","",MAX(A$1:A143)+1) -> 
A145: =IF(B145="","",MAX(A$1:A144)+1) -> 
A146: =IF(B146="","",MAX(A$1:A145)+1) -> 
A147: =IF(B147="","",MAX(A$1:A146)+1) -> 
A148: =IF(B148="","",MAX(A$1:A147)+1) -> 
A149: =IF(B149="","",MAX(A$1:A148)+1) -> 
A150: =IF(B150="","",MAX(A$1:A149)+1) -> 
A151: =IF(B151="","",MAX(A$1:A150)+1) -> 
A152: =IF(B152="","",MAX(A$1:A151)+1) -> 
A153: =IF(B153="","",MAX(A$1:A152)+1) -> 
A154: =IF(B154="","",MAX(A$1:A153)+1) -> 
A155: =IF(B155="","",MAX(A$1:A154)+1) -> 
A156: =IF(B156="","",MAX(A$1:A155)+1) -> 
A157: =IF(B157="","",MAX(A$1:A156)+1) -> 
A158: =IF(B158="","",MAX(A$1:A157)+1) -> 
A159: =IF(B159="","",MAX(A$1:A158)+1) -> 
A160: =IF(B160="","",MAX(A$1:A159)+1) -> 

Sheet Table
A1: Player | B1: Points | C1: TD For | D1: TD Against | E1: TD Net | F1: Cas For | G1: Cas Against | H1: Cas Net | I1: Bonus1 | J1: Bonus2 | K1: Wins | L1: Draws | M1: Losses | N1: Opp Score | P1: Group
A2: Gros Nain | B2: 2 | C2: 3 | D2: 0 | E2: 3 | F2: 3 | G2: 1 | H2: 2 | I2: 2 | J2: 0 | K2: 1 | N2: 0 | P2: France
A3: Topper | B3: 2 | C3: 3 | D3: 0 | E3: 3 | F3: 3 | G3: 2 | H3: 1 | I3: 2 | J3: 2 | K3: 1 | N3: 0 | P3: Denmark
A4: Geggster | B4: 2 | C4: 3 | D4: 0 | E4: 3 | F4: 2 | G4: 2 | H4: 0 | I4: 0 | J4: 0 | K4: 1 | N4: 0 | P4: England
A5: SpecialOne | B5: 2 | C5: 3 | D5: 0 | E5: 3 | F5: 1 | G5: 2 | H5: -1 | I5: 1 | J5: 1 | K5: 1 | N5: 0 | P5: Denmark
A6: Loki | B6: 2 | C6: 3 | D6: 0 | E6: 3 | F6: 0 | G6: 2 | H6: -2 | I6: 0 | J6: 2 | K6: 1 | N6: 0 | P6: Scotland
A7: swifty | B7: 2 | C7: 3 | D7: 1 | E7: 2 | F7: 1 | G7: 0 | H7: 1 | I7: 1 | J7: 1 | K7: 1 | N7: 0 | P7: Hungary
A8: BlackOrc | B8: 2 | C8: 2 | D8: 0 | E8: 2 | F8: 2 | G8: 1 | H8: 1 | I8: 2 | J8: 1 | K8: 1 | N8: 0 | P8: Hungary
A9: Tank | B9: 2 | C9: 3 | D9: 1 | E9: 2 | F9: 1 | G9: 1 | H9: 0 | I9: 1 | J9: 2 | K9: 1 | N9: 0 | P9: Denmark
A10: Jokaero | B10: 2 | C10: 3 | D10: 1 | E10: 2 | F10: 2 | G10: 2 | H10: 0 | I10: 1 | J10: 0 | K10: 1 | N10: 0 | P10: Switzerland
A11: Mufflo | B11: 2 | C11: 3 | D11: 1 | E11: 2 | F11: 0 | G11: 0 | H11: 0 | I11: 1 | J11: 0 | K11: 1 | N11: 0 | P11: Viking
A12: Niebling | B12: 2 | C12: 3 | D12: 1 | E12: 2 | F12: 1 | G12: 2 | H12: -1 | I12: 1 | J12: 1 | K12: 1 | N12: 0 | P12: Denmark
A13: Candlejack | B13: 2 | C13: 2 | D13: 0 | E13: 2 | F13: 1 | G13: 2 | H13: -1 | I13: 1 | J13: 0 | K13: 1 | N13: 0 | P13: Germany
A14: valkohukka | B14: 2 | C14: 3 | D14: 1 | E14: 2 | F14: 1 | G14: 2 | H14: -1 | I14: 0 | J14: 2 | K14: 1 | N14: 0 | P14: Finland
A15: Domingo | B15: 2 | C15: 3 | D15: 1 | E15: 2 | F15: 1 | G15: 3 | H15: -2 | I15: 2 | J15: 1 | K15: 1 | N15: 0 | P15: Poland
A16: Muadib | B16: 2 | C16: 2 | D16: 1 | E16: 1 | F16: 3 | G16: 0 | H16: 3 | I16: 3 | J16: 1 | K16: 1 | N16: 0 | P16: Germany
A17: Purrelito | B17: 2 | C17: 1 | D17: 0 | E17: 1 | F17: 2 | G17: 0 | H17: 2 | I17: 2 | J17: 1 | K17: 1 | N17: 0 | P17: Viking
A18: Verrinho | B18: 2 | C18: 2 | D18: 1 | E18: 1 | F18: 3 | G18: 1 | H18: 2 | I18: 0 | J18: 1 | K18: 1 | N18: 0 | P18: Italy
A19: Liam | B19: 2 | C19: 3 | D19: 2 | E19: 1 | F19: 1 | G19: 0 | H19: 1 | I19: 0 | J19: 1 | K19: 1 | N19: 0 | P19: Italy
A20: DocMaxx | B20: 2 | C20: 1 | D20: 0 | E20: 1 | F20: 2 | G20: 1 | H20: 1 | I20: 3 | J20: 1 | K20: 1 | N20: 0 | P20: Germany
A21: Bernuz | B21: 2 | C21: 2 | D21: 1 | E21: 1 | F21: 2 | G21: 1 | H21: 1 | I21: 2 | J21: 1 | K21: 1 | N21: 0 | P21: Viking
A22: Endalos | B22: 2 | C22: 2 | D22: 1 | E22: 1 | F22: 2 | G22: 1 | H22: 1 | I22: 1 | J22: 1 | K22: 1 | N22: 0 | P22: Norway
A23: Malodoror | B23: 2 | C23: 2 | D23: 1 | E23: 1 | F23: 3 | G23: 2 | H23: 1 | I23: 2 | J23: 3 | K23: 1 | N23: 0 | P23: Belgium
A24: MadeofWelsh | B24: 2 | C24: 1 | D24: 0 | E24: 1 | F24: 2 | G24: 1 | H24: 1 | I24: 1 | J24: 1 | K24: 1 | N24: 0 | P24: Wales
A25: bothun | B25: 2 | C25: 2 | D25: 1 | E25: 1 | F25: 2 | G25: 1 | H25: 1 | I25: 2 | J25: 1 | K25: 1 | N25: 0 | P25: Norway
A26: Pellevin | B26: 2 | C26: 2 | D26: 1 | E26: 1 | F26: 3 | G26: 2 | H26: 1 | I26: 2 | J26: 3 | K26: 1 | N26: 0 | P26: Sweden
A27: PurpleGoo | B27: 2 | C27: 1 | D27: 0 | E27: 1 | F27: 1 | G27: 0 | H27: 1 | I27: 2 | J27: 3 | K27: 1 | N27: 0 | P27: England
A28: Dionysian | B28: 2 | C28: 3 | D28: 2 | E28: 1 | F28: 1 | G28: 1 | H28: 0 | I28: 1 | J28: 2 | K28: 1 | N28: 0 | P28: Wales
A29: jopotzuki | B29: 2 | C29: 2 | D29: 1 | E29: 1 | F29: 3 | G29: 3 | H29: 0 | I29: 3 | J29: 1 | K29: 1 | N29: 0 | P29: Finland
A30: Driesfield | B30: 2 | C30: 2 | D30: 1 | E30: 1 | F30: 1 | G30: 1 | H30: 0 | I30: 3 | J30: 2 | K30: 1 | N30: 0 | P30: Belgium
A31: RoterSternHochdahl | B31: 2 | C31: 2 | D31: 1 | E31: 1 | F31: 1 | G31: 1 | H31: 0 | I31: 1 | J31: 0 | K31: 1 | N31: 0 | P31: Germany
A32: Woete | B32: 2 | C32: 1 | D32: 0 | E32: 1 | F32: 1 | G32: 1 | H32: 0 | I32: 2 | J32: 2 | K32: 1 | N32: 0 | P32: Belgium
A33: Bouzzy | B33: 2 | C33: 1 | D33: 0 | E33: 1 | F33: 1 | G33: 1 | H33: 0 | I33: 1 | J33: 3 | K33: 1 | N33: 0 | P33: France
A34: Wilzif | B34: 2 | C34: 1 | D34: 0 | E34: 1 | F34: 1 | G34: 1 | H34: 0 | I34: 2 | J34: 1 | K34: 1 | N34: 0 | P34: England
A35: Harza | B35: 2 | C35: 1 | D35: 0 | E35: 1 | F35: 1 | G35: 2 | H35: -1 | I35: 1 | J35: 3 | K35: 1 | N35: 0 | P35: Finland
A36: Slimaq | B36: 2 | C36: 2 | D36: 1 | E36: 1 | F36: 0 | G36: 1 | H36: -1 | I36: 0 | J36: 3 | K36: 1 | N36: 0 | P36: Poland
A37: Tripleskull | B37: 2 | C37: 2 | D37: 1 | E37: 1 | F37: 0 | G37: 1 | H37: -1 | I37: 2 | J37: 1 | K37: 1 | N37: 0 | P37: Denmark
A38: Duke_Luthor_Von_Hawkfire | B38: 2 | C38: 2 | D38: 1 | E38: 1 | F38: 1 | G38: 2 | H38: -1 | I38: 0 | J38: 3 | K38: 1 | N38: 0 | P38: Spain
A39: Mubo | B39: 2 | C39: 3 | D39: 2 | E39: 1 | F39: 1 | G39: 2 | H39: -1 | I39: 0 | J39: 2 | K39: 1 | N39: 0 | P39: England
A40: Gaunab | B40: 2 | C40: 3 | D40: 2 | E40: 1 | F40: 1 | G40: 2 | H40: -1 | I40: 1 | J40: 0 | K40: 1 | N40: 0 | P40: Germany
A41: Jaqra | B41: 2 | C41: 2 | D41: 1 | E41: 1 | F41: 1 | G41: 3 | H41: -2 | I41: 2 | J41: 2 | K41: 1 | N41: 0 | P41: Denmark
A42: Purdindas | B42: 2 | C42: 3 | D42: 2 | E42: 1 | F42: 1 | G42: 3 | H42: -2 | I42: 3 | J42: 2 | K42: 1 | N42: 0 | P42: Scotland
A43: Matt le fou | B43: 2 | C43: 1 | D43: 0 | E43: 1 | F43: 0 | G43: 2 | H43: -2 | I43: 1 | J43: 2 | K43: 1 | N43: 0 | P43: France
A44: Itzla | B44: 2 | C44: 2 | D44: 1 | E44: 1 | F44: 0 | G44: 2 | H44: -2 | I44: 2 | J44: 1 | K44: 1 | N44: 0 | P44: Hungary
A45: Malasnoticias | B45: 2 | C45: 2 | D45: 1 | E45: 1 | F45: 1 | G45: 3 | H45: -2 | I45: 2 | J45: 1 | K45: 1 | N45: 0 | P45: Spain
A46: Prince | B46: 2 | C46: 3 | D46: 2 | E46: 1 | F46: 0 | G46: 2 | H46: -2 | I46: 1 | J46: 1 | K46: 1 | N46: 0 | P46: Germany
A47: Jonny_Kanone | B47: 1 | C47: 1 | D47: 1 | E47: 0 | F47: 3 | G47: 0 | H47: 3 | I47: 0 | J47: 2 | L47: 1 | N47: 1 | P47: Germany
A48: Balder | B48: 1 | C48: 2 | D48: 2 | E48: 0 | F48: 3 | G48: 1 | H48: 2 | I48: 0 | J48: 2 | L48: 1 | N48: 1 | P48: Viking
A49: J-Ho | B49: 1 | C49: 1 | D49: 1 | E49: 0 | F49: 3 | G49: 1 | H49: 2 | I49: 2 | J49: 1 | L49: 1 | N49: 1 | P49: Finland
A50: Faccko | B50: 1 | C50: 1 | D50: 1 | E50: 0 | F50: 2 | G50: 0 | H50: 2 | I50: 2 | J50: 3 | L50: 1 | N50: 1 | P50: Viking
A51: SFisher91 | B51: 1 | C51: 2 | D51: 2 | E51: 0 | F51: 2 | G51: 1 | H51: 1 | I51: 1 | J51: 1 | L51: 1 | N51: 1 | P51: Wales
A52: Barry | B52: 1 | C52: 0 | D52: 0 | E52: 0 | F52: 1 | G52: 0 | H52: 1 | I52: 0 | J52: 2 | L52: 1 | N52: 1 | P52: Spain
A53: Garrick | B53: 1 | C53: 2 | D53: 2 | E53: 0 | F53: 1 | G53: 0 | H53: 1 | I53: 2 | J53: 3 | L53: 1 | N53: 1 | P53: Scotland
A54: JohnnyD | B54: 1 | C54: 1 | D54: 1 | E54: 0 | F54: 2 | G54: 1 | H54: 1 | I54: 1 | J54: 2 | L54: 1 | N54: 1 | P54: Sweden
A55: 20Phoenix | B55: 1 | C55: 2 | D55: 2 | E55: 0 | F55: 2 | G55: 1 | H55: 1 | I55: 3 | J55: 2 | L55: 1 | N55: 1 | P55: Wales
A56: Dirold | B56: 1 | C56: 1 | D56: 1 | E56: 0 | F56: 2 | G56: 1 | H56: 1 | I56: 2 | J56: 2 | L56: 1 | N56: 1 | P56: Italy
A57: Dark Duke | B57: 1 | C57: 2 | D57: 2 | E57: 0 | F57: 2 | G57: 1 | H57: 1 | I57: 1 | J57: 1 | L57: 1 | N57: 1 | P57: Spain
A58: Spartako | B58: 1 | C58: 1 | D58: 1 | E58: 0 | F58: 1 | G58: 0 | H58: 1 | I58: 2 | J58: 1 | L58: 1 | N58: 1 | P58: Italy
A59: Harti | B59: 1 | C59: 2 | D59: 2 | E59: 0 | F59: 2 | G59: 1 | H59: 1 | I59: 1 | J59: 0 | L59: 1 | N59: 1 | P59: France
A60: Kaltenland | B60: 1 | C60: 2 | D60: 2 | E60: 0 | F60: 1 | G60: 1 | H60: 0 | I60: 2 | J60: 2 | L60: 1 | N60: 1 | P60: Italy
A61: Matte8 | B61: 1 | C61: 3 | D61: 3 | E61: 0 | F61: 2 | G61: 2 | H61: 0 | I61: 0 | J61: 0 | L61: 1 | N61: 1 | P61: Italy
A62: cz | B62: 1 | C62: 2 | D62: 2 | E62: 0 | F62: 3 | G62: 3 | H62: 0 | I62: 2 | J62: 1 | L62: 1 | N62: 1 | P62: Hungary
A63: Justicium | B63: 1 | C63: 1 | D63: 1 | E63: 0 | F63: 2 | G63: 2 | H63: 0 | I63: 1 | J63: 2 | L63: 1 | N63: 1 | P63: France
A64: Skuld | B64: 1 | C64: 1 | D64: 1 | E64: 0 | F64: 2 | G64: 2 | H64: 0 | I64: 2 | J64: 0 | L64: 1 | N64: 1 | P64: Sweden
A65: Joemanji | B65: 1 | C65: 1 | D65: 1 | E65: 0 | F65: 1 | G65: 1 | H65: 0 | I65: 0 | J65: 3 | L65: 1 | N65: 1 | P65: England
A66: Leonek | B66: 1 | C66: 3 | D66: 3 | E66: 0 | F66: 2 | G66: 2 | H66: 0 | I66: 1 | J66: 2 | L66: 1 | N66: 1 | P66: Poland
A67: DonShula | B67: 1 | C67: 1 | D67: 1 | E67: 0 | F67: 2 | G67: 2 | H67: 0 | I67: 1 | J67: 2 | L67: 1 | N67: 1 | P67: Scotland
A68: Dekra1979 | B68: 1 | C68: 1 | D68: 1 | E68: 0 | F68: 1 | G68: 1 | H68: 0 | I68: 2 | J68: 2 | L68: 1 | N68: 1 | P68: Belgium
A69: brocCooli | B69: 1 | C69: 1 | D69: 1 | E69: 0 | F69: 2 | G69: 2 | H69: 0 | I69: 2 | J69: 2 | L69: 1 | N69: 1 | P69: Viking
A70: Obeliz | B70: 1 | C70: 2 | D70: 2 | E70: 0 | F70: 3 | G70: 3 | H70: 0 | I70: 0 | J70: 3 | L70: 1 | N70: 1 | P70: Spain
A71: Shawass | B71: 1 | C71: 2 | D71: 2 | E71: 0 | F71: 1 | G71: 1 | H71: 0 | I71: 2 | J71: 1 | L71: 1 | N71: 1 | P71: Poland
A72: Mewash | B72: 1 | C72: 1 | D72: 1 | E72: 0 | F72: 0 | G72: 1 | H72: -1 | I72: 0 | J72: 2 | L72: 1 | N72: 1 | P72: Poland
A73: edheim | B73: 1 | C73: 2 | D73: 2 | E73: 0 | F73: 1 | G73: 2 | H73: -1 | I73: 2 | J73: 3 | L73: 1 | N73: 1 | P73: Finland
A74: Favi | B74: 1 | C74: 2 | D74: 2 | E74: 0 | F74: 1 | G74: 2 | H74: -1 | I74: 1 | J74: 0 | L74: 1 | N74: 1 | P74: Hungary
A75: BiBi | B75: 1 | C75: 2 | D75: 2 | E75: 0 | F75: 0 | G75: 1 | H75: -1 | I75: 3 | J75: 1 | L75: 1 | N75: 1 | P75: France
A76: Wolio | B76: 1 | C76: 0 | D76: 0 | E76: 0 | F76: 0 | G76: 1 | H76: -1 | I76: 2 | J76: 2 | L76: 1 | N76: 1 | P76: Hungary
A77: Reszka | B77: 1 | C77: 1 | D77: 1 | E77: 0 | F77: 1 | G77: 2 | H77: -1 | I77: 1 | J77: 0 | L77: 1 | N77: 1 | P77: Poland
A78: ratogre | B78: 1 | C78: 2 | D78: 2 | E78: 0 | F78: 1 | G78: 2 | H78: -1 | I78: 2 | J78: 0 | L78: 1 | N78: 1 | P78: Finland
A79: sann0638 | B79: 1 | C79: 2 | D79: 2 | E79: 0 | F79: 1 | G79: 2 | H79: -1 | I79: 2 | J79: 2 | L79: 1 | N79: 1 | P79: Scotland
A80: Corwin | B80: 1 | C80: 1 | D80: 1 | E80: 0 | F80: 1 | G80: 2 | H80: -1 | I80: 2 | J80: 2 | L80: 1 | N80: 1 | P80: Viking
A81: Dragons | B81: 1 | C81: 2 | D81: 2 | E81: 0 | F81: 1 | G81: 3 | H81: -2 | I81: 2 | J81: 2 | L81: 1 | N81: 1 | P81: Sweden
A82: Inforthepain | B82: 1 | C82: 1 | D82: 1 | E82: 0 | F82: 0 | G82: 2 | H82: -2 | I82: 1 | J82: 1 | L82: 1 | N82: 1 | P82: Sweden
A83: Northernknight | B83: 1 | C83: 1 | D83: 1 | E83: 0 | F83: 1 | G83: 3 | H83: -2 | I83: 2 | J83: 3 | L83: 1 | N83: 1 | P83: Wales
A84: Elrik | B84: 1 | C84: 1 | D84: 1 | E84: 0 | F84: 0 | G84: 3 | H84: -3 | I84: 1 | J84: 3 | L84: 1 | N84: 1 | P84: Switzerland
A85: Tactel | B85: 0 | C85: 1 | D85: 2 | E85: -1 | F85: 2 | G85: 0 | H85: 2 | I85: 3 | J85: 2 | M85: 1 | N85: 2 | P85: Spain
A86: straume | B86: 0 | C86: 1 | D86: 2 | E86: -1 | F86: 3 | G86: 1 | H86: 2 | I86: 3 | J86: 1 | M86: 1 | N86: 2 | P86: Norway
A87: JamesEs | B87: 0 | C87: 0 | D87: 1 | E87: -1 | F87: 2 | G87: 0 | H87: 2 | I87: 1 | J87: 1 | M87: 1 | N87: 2 | P87: Scotland
A88: Strider84 | B88: 0 | C88: 2 | D88: 3 | E88: -1 | F88: 2 | G88: 0 | H88: 2 | I88: 1 | J88: 1 | M88: 1 | N88: 2 | P88: Switzerland
A89: BudWiser | B89: 0 | C89: 2 | D89: 3 | E89: -1 | F89: 3 | G89: 1 | H89: 2 | I89: 2 | J89: 1 | M89: 1 | N89: 2 | P89: France
A90: noraal | B90: 0 | C90: 1 | D90: 2 | E90: -1 | F90: 3 | G90: 1 | H90: 2 | I90: 2 | J90: 0 | M90: 1 | N90: 2 | P90: Hungary
A91: nonumber | B91: 0 | C91: 0 | D91: 1 | E91: -1 | F91: 2 | G91: 1 | H91: 1 | I91: 1 | J91: 3 | M91: 1 | N91: 2 | P91: Wales
A92: Madmatt13 | B92: 0 | C92: 2 | D92: 3 | E92: -1 | F92: 2 | G92: 1 | H92: 1 | I92: 0 | J92: 1 | M92: 1 | N92: 2 | P92: Switzerland
A93: GreatWhiteHope | B93: 0 | C93: 1 | D93: 2 | E93: -1 | F93: 1 | G93: 0 | H93: 1 | I93: 3 | J93: 1 | M93: 1 | N93: 2 | P93: Norway
A94: Alex05 | B94: 0 | C94: 1 | D94: 2 | E94: -1 | F94: 2 | G94: 1 | H94: 1 | I94: 1 | J94: 1 | M94: 1 | N94: 2 | P94: Hungary
A95: Araznaroth | B95: 0 | C95: 2 | D95: 3 | E95: -1 | F95: 2 | G95: 1 | H95: 1 | I95: 2 | J95: 2 | M95: 1 | N95: 2 | P95: Belgium
A96: Beppe | B96: 0 | C96: 1 | D96: 2 | E96: -1 | F96: 1 | G96: 0 | H96: 1 | I96: 3 | J96: 2 | M96: 1 | N96: 2 | P96: Italy
A97: JJ | B97: 0 | C97: 0 | D97: 1 | E97: -1 | F97: 1 | G97: 1 | H97: 0 | I97: 3 | J97: 2 | M97: 1 | N97: 2 | P97: Belgium
A98: Ploppy_McPloppy | B98: 0 | C98: 1 | D98: 2 | E98: -1 | F98: 3 | G98: 3 | H98: 0 | I98: 3 | J98: 2 | M98: 1 | N98: 2 | P98: Wales
A99: Phifoe | B99: 0 | C99: 1 | D99: 2 | E99: -1 | F99: 1 | G99: 1 | H99: 0 | I99: 1 | J99: 1 | M99: 1 | N99: 2 | P99: Switzerland
A100: MacWitt | B100: 0 | C100: 2 | D100: 3 | E100: -1 | F100: 1 | G100: 1 | H100: 0 | I100: 0 | J100: 3 | M100: 1 | N100: 2 | P100: Finland
A101: Podfrey | B101: 0 | C101: 0 | D101: 1 | E101: -1 | F101: 1 | G101: 1 | H101: 0 | I101: 0 | J101: 2 | M101: 1 | N101: 2 | P101: England
A102: Valen | B102: 0 | C102: 0 | D102: 1 | E102: -1 | F102: 1 | G102: 1 | H102: 0 | I102: 3 | J102: 1 | M102: 1 | N102: 2 | P102: Scotland
A103: JimJimany | B103: 0 | C103: 1 | D103: 2 | E103: -1 | F103: 1 | G103: 1 | H103: 0 | I103: 0 | J103: 1 | M103: 1 | N103: 2 | P103: England
A104: Warrior1980 | B104: 0 | C104: 2 | D104: 3 | E104: -1 | F104: 0 | G104: 1 | H104: -1 | I104: 0 | J104: 1 | M104: 1 | N104: 2 | P104: Poland
A105: Skoberget | B105: 0 | C105: 1 | D105: 2 | E105: -1 | F105: 1 | G105: 2 | H105: -1 | I105: 1 | J105: 3 | M105: 1 | N105: 2 | P105: Sweden
A106: Duckwing | B106: 0 | C106: 1 | D106: 2 | E106: -1 | F106: 2 | G106: 3 | H106: -1 | I106: 2 | J106: 1 | M106: 1 | N106: 2 | P106: Viking
A107: Lycos | B107: 0 | C107: 1 | D107: 2 | E107: -1 | F107: 2 | G107: 3 | H107: -1 | I107: 3 | J107: 1 | M107: 1 | N107: 2 | P107: England
A108: BeerBeer | B108: 0 | C108: 0 | D108: 1 | E108: -1 | F108: 1 | G108: 2 | H108: -1 | I108: 1 | J108: 2 | M108: 1 | N108: 2 | P108: Finland
A109: Macabeo | B109: 0 | C109: 0 | D109: 1 | E109: -1 | F109: 1 | G109: 2 | H109: -1 | I109: 0 | J109: 1 | M109: 1 | N109: 2 | P109: Switzerland
A110: gninocker | B110: 0 | C110: 0 | D110: 1 | E110: -1 | F110: 0 | G110: 1 | H110: -1 | I110: 3 | J110: 1 | M110: 1 | N110: 2 | P110: Belgium
A111: kfoged | B111: 0 | C111: 1 | D111: 2 | E111: -1 | F111: 1 | G111: 2 | H111: -1 | I111: 0 | J111: 3 | M111: 1 | N111: 2 | P111: Denmark
A112: MissSweden | B112: 0 | C112: 1 | D112: 2 | E112: -1 | F112: 1 | G112: 2 | H112: -1 | I112: 2 | J112: 0 | M112: 1 | N112: 2 | P112: Denmark
A113: Pidpad | B113: 0 | C113: 0 | D113: 1 | E113: -1 | F113: 0 | G113: 2 | H113: -2 | I113: 2 | J113: 1 | M113: 1 | N113: 2 | P113: Sweden
A114: Juniooor7 | B114: 0 | C114: 1 | D114: 2 | E114: -1 | F114: 1 | G114: 3 | H114: -2 | I114: 1 | J114: 2 | M114: 1 | N114: 2 | P114: Poland
A115: Goss | B115: 0 | C115: 1 | D115: 2 | E115: -1 | F115: 0 | G115: 3 | H115: -3 | I115: 2 | J115: 0 | M115: 1 | N115: 2 | P115: Switzerland
A116: Farina | B116: 0 | C116: 1 | D116: 3 | E116: -2 | F116: 3 | G116: 1 | H116: 2 | I116: 1 | J116: 3 | M116: 1 | N116: 2 | P116: Italy
A117: sigu70 | B117: 0 | C117: 0 | D117: 2 | E117: -2 | F117: 2 | G117: 1 | H117: 1 | I117: 1 | J117: 2 | M117: 1 | N117: 2 | P117: Switzerland
A118: FrankPedersen | B118: 0 | C118: 1 | D118: 3 | E118: -2 | F118: 2 | G118: 1 | H118: 1 | I118: 1 | J118: 3 | M118: 1 | N118: 2 | P118: Norway
A119: andydavo | B119: 0 | C119: 1 | D119: 3 | E119: -2 | F119: 2 | G119: 1 | H119: 1 | I119: 1 | J119: 0 | M119: 1 | N119: 2 | P119: Wales
A120: Melisqus | B120: 0 | C120: 1 | D120: 3 | E120: -2 | F120: 0 | G120: 0 | H120: 0 | I120: 2 | J120: 1 | M120: 1 | N120: 2 | P120: Sweden
A121: mynock | B121: 0 | C121: 1 | D121: 3 | E121: -2 | F121: 1 | G121: 1 | H121: 0 | I121: 0 | J121: 3 | M121: 1 | N121: 2 | P121: Norway
A122: Arioso | B122: 0 | C122: 1 | D122: 3 | E122: -2 | F122: 2 | G122: 2 | H122: 0 | I122: 3 | J122: 2 | M122: 1 | N122: 2 | P122: Germany
A123: Joanet | B123: 0 | C123: 1 | D123: 3 | E123: -2 | F123: 0 | G123: 1 | H123: -1 | I123: 1 | J123: 0 | M123: 1 | N123: 2 | P123: Spain
A124: Idroj | B124: 0 | C124: 0 | D124: 2 | E124: -2 | F124: 1 | G124: 2 | H124: -1 | I124: 2 | J124: 0 | M124: 1 | N124: 2 | P124: Spain
A125: Simon_ACP | B125: 0 | C125: 0 | D125: 3 | E125: -3 | F125: 2 | G125: 0 | H125: 2 | I125: 2 | J125: 0 | M125: 1 | N125: 2 | P125: France
A126: The_Ref | B126: 0 | C126: 0 | D126: 3 | E126: -3 | F126: 2 | G126: 1 | H126: 1 | I126: 1 | J126: 2 | M126: 1 | N126: 2 | P126: Norway
A127: Phoenix11 | B127: 0 | C127: 0 | D127: 3 | E127: -3 | F127: 2 | G127: 2 | H127: 0 | I127: 1 | J127: 1 | M127: 1 | N127: 2 | P127: Belgium
A128: zulu | B128: 0 | C128: 0 | D128: 3 | E128: -3 | F128: 2 | G128: 3 | H128: -1 | I128: 3 | J128: 1 | M128: 1 | N128: 2 | P128: Norway
A129: HumptyTrump | B129: 0 | C129: 0 | D129: 3 | E129: -3 | F129: 1 | G129: 3 | H129: -2 | I129: 2 | J129: 2 | M129: 1 | N129: 2 | P129: Scotland

Sheet Stunty
A1: Player | B1: Points | C1: TD For | D1: TD Against | E1: TD Net | F1: Cas For | G1: Cas Against | H1: Cas Net | I1: Bonus1 | J1: Bonus2 | K1: Wins | L1: Draws | M1: Losses | N1: Opp Score | O1: Race | P1: Group
A2: Mufflo | B2: 2 | C2: 3 | D2: 1 | E2: 2 | F2: 0 | G2: 0 | H2: 0 | I2: 1 | J2: 0 | K2: 1 | N2: 0 | O2: Ogres | P2: Viking
A3: Domingo | B3: 2 | C3: 3 | D3: 1 | E3: 2 | F3: 1 | G3: 3 | H3: -2 | I3: 2 | J3: 1 | K3: 1 | N3: 0 | O3: Ogres | P3: Poland
A4: JohnnyD | B4: 1 | C4: 1 | D4: 1 | E4: 0 | F4: 2 | G4: 1 | H4: 1 | I4: 1 | J4: 2 | L4: 1 | N4: 1 | O4: Halflings | P4: Sweden
A5: Strider84 | B5: 0 | C5: 2 | D5: 3 | E5: -1 | F5: 2 | G5: 0 | H5: 2 | I5: 1 | J5: 1 | M5: 1 | N5: 2 | O5: Goblins | P5: Switzerland
A6: Araznaroth | B6: 0 | C6: 2 | D6: 3 | E6: -1 | F6: 2 | G6: 1 | H6: 1 | I6: 2 | J6: 2 | M6: 1 | N6: 2 | O6: Goblins | P6: Belgium
A7: Phifoe | B7: 0 | C7: 1 | D7: 2 | E7: -1 | F7: 1 | G7: 1 | H7: 0 | I7: 1 | J7: 1 | M7: 1 | N7: 2 | O7: Goblins | P7: Switzerland
A8: JimJimany | B8: 0 | C8: 1 | D8: 2 | E8: -1 | F8: 1 | G8: 1 | H8: 0 | I8: 0 | J8: 1 | M8: 1 | N8: 2 | O8: Goblins | P8: England
A9: Lycos | B9: 0 | C9: 1 | D9: 2 | E9: -1 | F9: 2 | G9: 3 | H9: -1 | I9: 3 | J9: 1 | M9: 1 | N9: 2 | O9: Ogres | P9: England
A10: andydavo | B10: 0 | C10: 1 | D10: 3 | E10: -2 | F10: 2 | G10: 1 | H10: 1 | I10: 1 | J10: 0 | M10: 1 | N10: 2 | O10: Ogres | P10: Wales
A11: mynock | B11: 0 | C11: 1 | D11: 3 | E11: -2 | F11: 1 | G11: 1 | H11: 0 | I11: 0 | J11: 3 | M11: 1 | N11: 2 | O11: Goblins | P11: Norway
A12: zulu | B12: 0 | C12: 0 | D12: 3 | E12: -3 | F12: 2 | G12: 3 | H12: -1 | I12: 3 | J12: 1 | M12: 1 | N12: 2 | O12: Goblins | P12: Norway

Sheet GroupFixtures
A1: Round: 2 | C1: Home | D1: Away | M1: Points Before Games
A2: Swaps: 0 | C2: Germany | D2: Denmark | M2: Germany | N2: 213
C3: Viking | D3: Hungary | M3: Denmark | N3: 212
C4: England | D4: Finland | M4: Viking | N4: 210
C5: France | D5: Poland | M5: Hungary | N5: 209
C6: Italy | D6: Scotland | M6: England | N6: 209
C7: Wales | D7: Belgium | M7: Finland | N7: 209
C8: Spain | D8: Sweden | M8: France | N8: 209
C9: Norway | D9: Switzerland | M9: Poland | N9: 108
M10: Italy | N10: 108
M11: Scotland | N11: 7
M12: Wales | N12: 7
M13: Belgium | N13: 7
M14: Spain | N14: 7
M15: Sweden | N15: 6
M16: Norway | N16: 4
M17: Switzerland | N17: 3

Sheet GroupTable
A1: Group | B1: Points | C1: TD For | D1: TD Against | E1: Net TDs | F1: Cas For | G1: Cas Against | H1: Net Cas | I1: Group Total Bonus1 | J1: Group Total Bonus2 | K1: Group Wins | L1: Groups Draws | M1: Group Losses | N1: Individual Wins | O1: Individual Draws | P1: Individual Losses | Q1: Total Individual Points | R1: Opponent Score
A2: Germany | B2: 213 | C2: 15 | D2: 10 | E2: 5 | F2: 13 | G2: 10 | H2: 3 | I2: 13 | J2: 7 | K2: 1 | N2: 6 | O2: 1 | P2: 1 | Q2: 13 | R2: 3
A3: Denmark | B3: 212 | C3: 18 | D3: 8 | E3: 10 | F3: 9 | G3: 15 | H3: -6 | I3: 11 | J3: 12 | K3: 1 | N3: 6 | P3: 2 | Q3: 12 | R3: 4
A4: Viking | B4: 210 | C4: 12 | D4: 9 | E4: 3 | F4: 14 | G4: 9 | H4: 5 | I4: 13 | J4: 12 | K4: 1 | N4: 3 | O4: 4 | P4: 1 | Q4: 10 | R4: 6
A5: Hungary | B5: 209 | C5: 13 | D5: 10 | E5: 3 | F5: 12 | G5: 11 | H5: 1 | I5: 13 | J5: 7 | K5: 1 | N5: 3 | O5: 3 | P5: 2 | Q5: 9 | R5: 7
A6: England | B6: 209 | C6: 11 | D6: 8 | E6: 3 | F6: 10 | G6: 11 | H6: -1 | I6: 7 | J6: 13 | K6: 1 | N6: 4 | O6: 1 | P6: 3 | Q6: 9 | R6: 7
A7: Finland | B7: 209 | C7: 13 | D7: 11 | E7: 2 | F7: 12 | G7: 15 | H7: -3 | I7: 11 | J7: 15 | K7: 1 | N7: 3 | O7: 3 | P7: 2 | Q7: 9 | R7: 7
A8: France | B8: 209 | C8: 12 | D8: 11 | E8: 1 | F8: 13 | G8: 9 | H8: 4 | I8: 13 | J8: 9 | K8: 1 | N8: 3 | O8: 3 | P8: 2 | Q8: 9 | R8: 7
A9: Poland | B9: 108 | C9: 15 | D9: 14 | E9: 1 | F9: 6 | G9: 14 | H9: -8 | I9: 7 | J9: 12 | L9: 1 | N9: 2 | O9: 4 | P9: 2 | Q9: 8 | R9: 108
A10: Italy | B10: 108 | C10: 14 | D10: 15 | E10: -1 | F10: 14 | G10: 6 | H10: 8 | I10: 10 | J10: 12 | L10: 1 | N10: 2 | O10: 4 | P10: 2 | Q10: 8 | R10: 108
A11: Scotland | B11: 7 | C11: 11 | D11: 12 | E11: -1 | F11: 9 | G11: 13 | H11: -4 | I11: 14 | J11: 15 | M11: 1 | N11: 2 | O11: 3 | P11: 3 | Q11: 7 | R11: 209
A12: Wales | B12: 7 | C12: 11 | D12: 13 | E12: -2 | F12: 15 | G12: 12 | H12: 3 | I12: 13 | J12: 14 | M12: 1 | N12: 2 | O12: 3 | P12: 3 | Q12: 7 | R12: 209
A13: Belgium | B13: 7 | C13: 8 | D13: 11 | E13: -3 | F13: 11 | G13: 10 | H13: 1 | I13: 18 | J13: 15 | M13: 1 | N13: 3 | O13: 1 | P13: 4 | Q13: 7 | R13: 209
A14: Spain | B14: 7 | C14: 10 | D14: 13 | E14: -3 | F14: 11 | G14: 12 | H14: -1 | I14: 9 | J14: 12 | M14: 1 | N14: 2 | O14: 3 | P14: 3 | Q14: 7 | R14: 209
A15: Sweden | B15: 6 | C15: 9 | D15: 12 | E15: -3 | F15: 9 | G15: 14 | H15: -5 | I15: 13 | J15: 13 | M15: 1 | N15: 1 | O15: 4 | P15: 3 | Q15: 6 | R15: 210
A16: Norway | B16: 4 | C16: 8 | D16: 18 | E16: -10 | F16: 15 | G16: 9 | H16: 6 | I16: 14 | J16: 13 | M16: 1 | N16: 2 | P16: 6 | Q16: 4 | R16: 212
A17: Switzerland | B17: 3 | C17: 10 | D17: 15 | E17: -5 | F17: 10 | G17: 13 | H17: -3 | I17: 7 | J17: 9 | M17: 1 | N17: 1 | O17: 1 | P17: 6 | Q17: 3 | R17: 213

Sheet Presentation
A1: Round | B1: 1
A3: Board | B3: Home | C3: Away | D3: Home Team | E3: Away Team | F3: Home TD | G3: Away TD | H3: Home Cas | I3: Away Cas
A4: 1 | B4: =IF(A4="","",OFFSET(INDIRECT("Round"&Round&"!B1"),$A4,0)) -> Harti | C4: =IF(A4="","",OFFSET(INDIRECT("Round"&Round&"!c1"),$A4,0)) -> sann0638 | D4: =IF(A4="","",OFFSET(INDIRECT("Round"&Round&"!n1"),$A4,0)) -> France | E4: =IF(A4="","",OFFSET(INDIRECT("Round"&Round&"!o1"),$A4,0)) -> Scotland
A5: =IF(A4="",A3+1,IF(ROUNDUP(A4/8,0)=A4/8,"",A4+1)) -> 2 | B5: =IF(A5="","",OFFSET(INDIRECT("Round"&Round&"!B1"),$A5,0)) -> BiBi | C5: =IF(A5="","",OFFSET(INDIRECT("Round"&Round&"!c1"),$A5,0)) -> Garrick | D5: =IF(A5="","",OFFSET(INDIRECT("Round"&Round&"!n1"),$A5,0)) -> France | E5: =IF(A5="","",OFFSET(INDIRECT("Round"&Round&"!o1"),$A5,0)) -> Scotland
A6: =IF(A5="",A4+1,IF(ROUNDUP(A5/8,0)=A5/8,"",A5+1)) -> 3 | B6: =IF(A6="","",OFFSET(INDIRECT("Round"&Round&"!B1"),$A6,0)) -> Gros Nain | C6: =IF(A6="","",OFFSET(INDIRECT("Round"&Round&"!c1"),$A6,0)) -> HumptyTrump | D6: =IF(A6="","",OFFSET(INDIRECT("Round"&Round&"!n1"),$A6,0)) -> France | E6: =IF(A6="","",OFFSET(INDIRECT("Round"&Round&"!o1"),$A6,0)) -> Scotland
A7: 4 | B7: =IF(A7="","",OFFSET(INDIRECT("Round"&Round&"!B1"),$A7,0)) -> Justicium | C7: =IF(A7="","",OFFSET(INDIRECT("Round"&Round&"!c1"),$A7,0)) -> DonShula | D7: =IF(A7="","",OFFSET(INDIRECT("Round"&Round&"!n1"),$A7,0)) -> France | E7: =IF(A7="","",OFFSET(INDIRECT("Round"&Round&"!o1"),$A7,0)) -> Scotland
A8: 5 | B8: =IF(A8="","",OFFSET(INDIRECT("Round"&Round&"!B1"),$A8,0)) -> BudWiser | C8: =IF(A8="","",OFFSET(INDIRECT("Round"&Round&"!c1"),$A8,0)) -> Purdindas | D8: =IF(A8="","",OFFSET(INDIRECT("Round"&Round&"!n1"),$A8,0)) -> France | E8: =IF(A8="","",OFFSET(INDIRECT("Round"&Round&"!o1"),$A8,0)) -> Scotland
A9: 6 | B9: =IF(A9="","",OFFSET(INDIRECT("Round"&Round&"!B1"),$A9,0)) -> Simon_ACP | C9: =IF(A9="","",OFFSET(INDIRECT("Round"&Round&"!c1"),$A9,0)) -> Loki | D9: =IF(A9="","",OFFSET(INDIRECT("Round"&Round&"!n1"),$A9,0)) -> France | E9: =IF(A9="","",OFFSET(INDIRECT("Round"&Round&"!o1"),$A9,0)) -> Scotland
A10: 7 | B10: =IF(A10="","",OFFSET(INDIRECT("Round"&Round&"!B1"),$A10,0)) -> Bouzzy | C10: =IF(A10="","",OFFSET(INDIRECT("Round"&Round&"!c1"),$A10,0)) -> Valen | D10: =IF(A10="","",OFFSET(INDIRECT("Round"&Round&"!n1"),$A10,0)) -> France | E10: =IF(A10="","",OFFSET(INDIRECT("Round"&Round&"!o1"),$A10,0)) -> Scotland
A11: 8 | B11: =IF(A11="","",OFFSET(INDIRECT("Round"&Round&"!B1"),$A11,0)) -> Matt le fou | C11: =IF(A11="","",OFFSET(INDIRECT("Round"&Round&"!c1"),$A11,0)) -> JamesEs | D11: =IF(A11="","",OFFSET(INDIRECT("Round"&Round&"!n1"),$A11,0)) -> France | E11: =IF(A11="","",OFFSET(INDIRECT("Round"&Round&"!o1"),$A11,0)) -> Scotland
B12: =IF(A12="","",OFFSET(INDIRECT("Round"&Round&"!B1"),$A12,0)) ->  | C12: =IF(A12="","",OFFSET(INDIRECT("Round"&Round&"!c1"),$A12,0)) ->  | D12: =IF(A12="","",OFFSET(INDIRECT("Round"&Round&"!n1"),$A12,0)) ->  | E12: =IF(A12="","",OFFSET(INDIRECT("Round"&Round&"!o1"),$A12,0)) -> 
A13: 9 | B13: =IF(A13="","",OFFSET(INDIRECT("Round"&Round&"!B1"),$A13,0)) -> Duke_Luthor_Von_Hawkfire | C13: =IF(A13="","",OFFSET(INDIRECT("Round"&Round&"!c1"),$A13,0)) -> Alex05 | D13: =IF(A13="","",OFFSET(INDIRECT("Round"&Round&"!n1"),$A13,0)) -> Spain | E13: =IF(A13="","",OFFSET(INDIRECT("Round"&Round&"!o1"),$A13,0)) -> Hungary
A14: 10 | B14: =IF(A14="","",OFFSET(INDIRECT("Round"&Round&"!B1"),$A14,0)) -> Malasnoticias | C14: =IF(A14="","",OFFSET(INDIRECT("Round"&Round&"!c1"),$A14,0)) -> noraal | D14: =IF(A14="","",OFFSET(INDIRECT("Round"&Round&"!n1"),$A14,0)) -> Spain | E14: =IF(A14="","",OFFSET(INDIRECT("Round"&Round&"!o1"),$A14,0)) -> Hungary
A15: 11 | B15: =IF(A15="","",OFFSET(INDIRECT("Round"&Round&"!B1"),$A15,0)) -> Obeliz | C15: =IF(A15="","",OFFSET(INDIRECT("Round"&Round&"!c1"),$A15,0)) -> cz | D15: =IF(A15="","",OFFSET(INDIRECT("Round"&Round&"!n1"),$A15,0)) -> Spain | E15: =IF(A15="","",OFFSET(INDIRECT("Round"&Round&"!o1"),$A15,0)) -> Hungary
A16: 12 | B16: =IF(A16="","",OFFSET(INDIRECT("Round"&Round&"!B1"),$A16,0)) -> Dark Duke | C16: =IF(A16="","",OFFSET(INDIRECT("Round"&Round&"!c1"),$A16,0)) -> Favi | D16: =IF(A16="","",OFFSET(INDIRECT("Round"&Round&"!n1"),$A16,0)) -> Spain | E16: =IF(A16="","",OFFSET(INDIRECT("Round"&Round&"!o1"),$A16,0)) -> Hungary
A17: 13 | B17: =IF(A17="","",OFFSET(INDIRECT("Round"&Round&"!B1"),$A17,0)) -> Joanet | C17: =IF(A17="","",OFFSET(INDIRECT("Round"&Round&"!c1"),$A17,0)) -> swifty | D17: =IF(A17="","",OFFSET(INDIRECT("Round"&Round&"!n1"),$A17,0)) -> Spain | E17: =IF(A17="","",OFFSET(INDIRECT("Round"&Round&"!o1"),$A17,0)) -> Hungary
A18: 14 | B18: =IF(A18="","",OFFSET(INDIRECT("Round"&Round&"!B1"),$A18,0)) -> Tactel | C18: =IF(A18="","",OFFSET(INDIRECT("Round"&Round&"!c1"),$A18,0)) -> Itzla | D18: =IF(A18="","",OFFSET(INDIRECT("Round"&Round&"!n1"),$A18,0)) -> Spain | E18: =IF(A18="","",OFFSET(INDIRECT("Round"&Round&"!o1"),$A18,0)) -> Hungary
A19: 15 | B19: =IF(A19="","",OFFSET(INDIRECT("Round"&Round&"!B1"),$A19,0)) -> Idroj | C19: =IF(A19="","",OFFSET(INDIRECT("Round"&Round&"!c1"),$A19,0)) -> BlackOrc | D19: =IF(A19="","",OFFSET(INDIRECT("Round"&Round&"!n1"),$A19,0)) -> Spain | E19: =IF(A19="","",OFFSET(INDIRECT("Round"&Round&"!o1"),$A19,0)) -> Hungary
A20: 16 | B20: =IF(A20="","",OFFSET(INDIRECT("Round"&Round&"!B1"),$A20,0)) -> Barry | C20: =IF(A20="","",OFFSET(INDIRECT("Round"&Round&"!c1"),$A20,0)) -> Wolio | D20: =IF(A20="","",OFFSET(INDIRECT("Round"&Round&"!n1"),$A20,0)) -> Spain | E20: =IF(A20="","",OFFSET(INDIRECT("Round"&Round&"!o1"),$A20,0)) -> Hungary
B21: =IF(A21="","",OFFSET(INDIRECT("Round"&Round&"!B1"),$A21,0)) ->  | C21: =IF(A21="","",OFFSET(INDIRECT("Round"&Round&"!c1"),$A21,0)) ->  | D21: =IF(A21="","",OFFSET(INDIRECT("Round"&Round&"!n1"),$A21,0)) ->  | E21: =IF(A21="","",OFFSET(INDIRECT("Round"&Round&"!o1"),$A21,0)) -> 
A22: 17 | B22: =IF(A22="","",OFFSET(INDIRECT("Round"&Round&"!B1"),$A22,0)) -> Candlejack | C22: =IF(A22="","",OFFSET(INDIRECT("Round"&Round&"!c1"),$A22,0)) -> sigu70 | D22: =IF(A22="","",OFFSET(INDIRECT("Round"&Round&"!n1"),$A22,0)) -> Germany | E22: =IF(A22="","",OFFSET(INDIRECT("Round"&Round&"!o1"),$A22,0)) -> Switzerland
A23: 18 | B23: =IF(A23="","",OFFSET(INDIRECT("Round"&Round&"!B1"),$A23,0)) -> Prince | C23: =IF(A23="","",OFFSET(INDIRECT("Round"&Round&"!c1"),$A23,0)) -> Strider84 | D23: =IF(A23="","",OFFSET(INDIRECT("Round"&Round&"!n1"),$A23,0)) -> Germany | E23: =IF(A23="","",OFFSET(INDIRECT("Round"&Round&"!o1"),$A23,0)) -> Switzerland
A24: 19 | B24: =IF(A24="","",OFFSET(INDIRECT("Round"&Round&"!B1"),$A24,0)) -> DocMaxx | C24: =IF(A24="","",OFFSET(INDIRECT("Round"&Round&"!c1"),$A24,0)) -> Macabeo | D24: =IF(A24="","",OFFSET(INDIRECT("Round"&Round&"!n1"),$A24,0)) -> Germany | E24: =IF(A24="","",OFFSET(INDIRECT("Round"&Round&"!o1"),$A24,0)) -> Switzerland
A25: 20 | B25: =IF(A25="","",OFFSET(INDIRECT("Round"&Round&"!B1"),$A25,0)) -> Gaunab | C25: =IF(A25="","",OFFSET(INDIRECT("Round"&Round&"!c1"),$A25,0)) -> Madmatt13 | D25: =IF(A25="","",OFFSET(INDIRECT("Round"&Round&"!n1"),$A25,0)) -> Germany | E25: =IF(A25="","",OFFSET(INDIRECT("Round"&Round&"!o1"),$A25,0)) -> Switzerland
A26: 21 | B26: =IF(A26="","",OFFSET(INDIRECT("Round"&Round&"!B1"),$A26,0)) -> RoterSternHochdahl | C26: =IF(A26="","",OFFSET(INDIRECT("Round"&Round&"!c1"),$A26,0)) -> Phifoe | D26: =IF(A26="","",OFFSET(INDIRECT("Round"&Round&"!n1"),$A26,0)) -> Germany | E26: =IF(A26="","",OFFSET(INDIRECT("Round"&Round&"!o1"),$A26,0)) -> Switzerland
A27: 22 | B27: =IF(A27="","",OFFSET(INDIRECT("Round"&Round&"!B1"),$A27,0)) -> Arioso | C27: =IF(A27="","",OFFSET(INDIRECT("Round"&Round&"!c1"),$A27,0)) -> Jokaero | D27: =IF(A27="","",OFFSET(INDIRECT("Round"&Round&"!n1"),$A27,0)) -> Germany | E27: =IF(A27="","",OFFSET(INDIRECT("Round"&Round&"!o1"),$A27,0)) -> Switzerland
A28: 23 | B28: =IF(A28="","",OFFSET(INDIRECT("Round"&Round&"!B1"),$A28,0)) -> Muadib | C28: =IF(A28="","",OFFSET(INDIRECT("Round"&Round&"!c1"),$A28,0)) -> Goss | D28: =IF(A28="","",OFFSET(INDIRECT("Round"&Round&"!n1"),$A28,0)) -> Germany | E28: =IF(A28="","",OFFSET(INDIRECT("Round"&Round&"!o1"),$A28,0)) -> Switzerland
A29: 24 | B29: =IF(A29="","",OFFSET(INDIRECT("Round"&Round&"!B1"),$A29,0)) -> Jonny_Kanone | C29: =IF(A29="","",OFFSET(INDIRECT("Round"&Round&"!c1"),$A29,0)) -> Elrik | D29: =IF(A29="","",OFFSET(INDIRECT("Round"&Round&"!n1"),$A29,0)) -> Germany | E29: =IF(A29="","",OFFSET(INDIRECT("Round"&Round&"!o1"),$A29,0)) -> Switzerland
B30: =IF(A30="","",OFFSET(INDIRECT("Round"&Round&"!B1"),$A30,0)) ->  | C30: =IF(A30="","",OFFSET(INDIRECT("Round"&Round&"!c1"),$A30,0)) ->  | D30: =IF(A30="","",OFFSET(INDIRECT("Round"&Round&"!n1"),$A30,0)) ->  | E30: =IF(A30="","",OFFSET(INDIRECT("Round"&Round&"!o1"),$A30,0)) -> 
A31: 25 | B31: =IF(A31="","",OFFSET(INDIRECT("Round"&Round&"!B1"),$A31,0)) -> Pellevin | C31: =IF(A31="","",OFFSET(INDIRECT("Round"&Round&"!c1"),$A31,0)) -> Duckwing | D31: =IF(A31="","",OFFSET(INDIRECT("Round"&Round&"!n1"),$A31,0)) -> Sweden | E31: =IF(A31="","",OFFSET(INDIRECT("Round"&Round&"!o1"),$A31,0)) -> Viking
A32: 26 | B32: =IF(A32="","",OFFSET(INDIRECT("Round"&Round&"!B1"),$A32,0)) -> JohnnyD | C32: =IF(A32="","",OFFSET(INDIRECT("Round"&Round&"!c1"),$A32,0)) -> Corwin | D32: =IF(A32="","",OFFSET(INDIRECT("Round"&Round&"!n1"),$A32,0)) -> Sweden | E32: =IF(A32="","",OFFSET(INDIRECT("Round"&Round&"!o1"),$A32,0)) -> Viking
A33: 27 | B33: =IF(A33="","",OFFSET(INDIRECT("Round"&Round&"!B1"),$A33,0)) -> Skoberget | C33: =IF(A33="","",OFFSET(INDIRECT("Round"&Round&"!c1"),$A33,0)) -> Bernuz | D33: =IF(A33="","",OFFSET(INDIRECT("Round"&Round&"!n1"),$A33,0)) -> Sweden | E33: =IF(A33="","",OFFSET(INDIRECT("Round"&Round&"!o1"),$A33,0)) -> Viking
A34: =IF(A33="",A32+1,IF(ROUNDUP(A33/8,0)=A33/8,"",A33+1)) -> 28 | B34: =IF(A34="","",OFFSET(INDIRECT("Round"&Round&"!B1"),$A34,0)) -> Inforthepain | C34: =IF(A34="","",OFFSET(INDIRECT("Round"&Round&"!c1"),$A34,0)) -> Faccko | D34: =IF(A34="","",OFFSET(INDIRECT("Round"&Round&"!n1"),$A34,0)) -> Sweden | E34: =IF(A34="","",OFFSET(INDIRECT("Round"&Round&"!o1"),$A34,0)) -> Viking
A35: 29 | B35: =IF(A35="","",OFFSET(INDIRECT("Round"&Round&"!B1"),$A35,0)) -> Skuld | C35: =IF(A35="","",OFFSET(INDIRECT("Round"&Round&"!c1"),$A35,0)) -> brocCooli | D35: =IF(A35="","",OFFSET(INDIRECT("Round"&Round&"!n1"),$A35,0)) -> Sweden | E35: =IF(A35="","",OFFSET(INDIRECT("Round"&Round&"!o1"),$A35,0)) -> Viking
A36: 30 | B36: =IF(A36="","",OFFSET(INDIRECT("Round"&Round&"!B1"),$A36,0)) -> Melisqus | C36: =IF(A36="","",OFFSET(INDIRECT("Round"&Round&"!c1"),$A36,0)) -> Mufflo | D36: =IF(A36="","",OFFSET(INDIRECT("Round"&Round&"!n1"),$A36,0)) -> Sweden | E36: =IF(A36="","",OFFSET(INDIRECT("Round"&Round&"!o1"),$A36,0)) -> Viking
A37: 31 | B37: =IF(A37="","",OFFSET(INDIRECT("Round"&Round&"!B1"),$A37,0)) -> Pidpad | C37: =IF(A37="","",OFFSET(INDIRECT("Round"&Round&"!c1"),$A37,0)) -> Purrelito | D37: =IF(A37="","",OFFSET(INDIRECT("Round"&Round&"!n1"),$A37,0)) -> Sweden | E37: =IF(A37="","",OFFSET(INDIRECT("Round"&Round&"!o1"),$A37,0)) -> Viking
A38: 32 | B38: =IF(A38="","",OFFSET(INDIRECT("Round"&Round&"!B1"),$A38,0)) -> Dragons | C38: =IF(A38="","",OFFSET(INDIRECT("Round"&Round&"!c1"),$A38,0)) -> Balder | D38: =IF(A38="","",OFFSET(INDIRECT("Round"&Round&"!n1"),$A38,0)) -> Sweden | E38: =IF(A38="","",OFFSET(INDIRECT("Round"&Round&"!o1"),$A38,0)) -> Viking
B39: =IF(A39="","",OFFSET(INDIRECT("Round"&Round&"!B1"),$A39,0)) ->  | C39: =IF(A39="","",OFFSET(INDIRECT("Round"&Round&"!c1"),$A39,0)) ->  | D39: =IF(A39="","",OFFSET(INDIRECT("Round"&Round&"!n1"),$A39,0)) ->  | E39: =IF(A39="","",OFFSET(INDIRECT("Round"&Round&"!o1"),$A39,0)) -> 
A40: 33 | B40: =IF(A40="","",OFFSET(INDIRECT("Round"&Round&"!B1"),$A40,0)) -> JJ | C40: =IF(A40="","",OFFSET(INDIRECT("Round"&Round&"!c1"),$A40,0)) -> Wilzif | D40: =IF(A40="","",OFFSET(INDIRECT("Round"&Round&"!n1"),$A40,0)) -> Belgium | E40: =IF(A40="","",OFFSET(INDIRECT("Round"&Round&"!o1"),$A40,0)) -> England
A41: 34 | B41: =IF(A41="","",OFFSET(INDIRECT("Round"&Round&"!B1"),$A41,0)) -> Driesfield | C41: =IF(A41="","",OFFSET(INDIRECT("Round"&Round&"!c1"),$A41,0)) -> JimJimany | D41: =IF(A41="","",OFFSET(INDIRECT("Round"&Round&"!n1"),$A41,0)) -> Belgium | E41: =IF(A41="","",OFFSET(INDIRECT("Round"&Round&"!o1"),$A41,0)) -> England
A42: 35 | B42: =IF(A42="","",OFFSET(INDIRECT("Round"&Round&"!B1"),$A42,0)) -> gninocker | C42: =IF(A42="","",OFFSET(INDIRECT("Round"&Round&"!c1"),$A42,0)) -> PurpleGoo | D42: =IF(A42="","",OFFSET(INDIRECT("Round"&Round&"!n1"),$A42,0)) -> Belgium | E42: =IF(A42="","",OFFSET(INDIRECT("Round"&Round&"!o1"),$A42,0)) -> England
A43: 36 | B43: =IF(A43="","",OFFSET(INDIRECT("Round"&Round&"!B1"),$A43,0)) -> Dekra1979 | C43: =IF(A43="","",OFFSET(INDIRECT("Round"&Round&"!c1"),$A43,0)) -> Joemanji | D43: =IF(A43="","",OFFSET(INDIRECT("Round"&Round&"!n1"),$A43,0)) -> Belgium | E43: =IF(A43="","",OFFSET(INDIRECT("Round"&Round&"!o1"),$A43,0)) -> England
A44: 37 | B44: =IF(A44="","",OFFSET(INDIRECT("Round"&Round&"!B1"),$A44,0)) -> Araznaroth | C44: =IF(A44="","",OFFSET(INDIRECT("Round"&Round&"!c1"),$A44,0)) -> Mubo | D44: =IF(A44="","",OFFSET(INDIRECT("Round"&Round&"!n1"),$A44,0)) -> Belgium | E44: =IF(A44="","",OFFSET(INDIRECT("Round"&Round&"!o1"),$A44,0)) -> England
A45: 38 | B45: =IF(A45="","",OFFSET(INDIRECT("Round"&Round&"!B1"),$A45,0)) -> Woete | C45: =IF(A45="","",OFFSET(INDIRECT("Round"&Round&"!c1"),$A45,0)) -> Podfrey | D45: =IF(A45="","",OFFSET(INDIRECT("Round"&Round&"!n1"),$A45,0)) -> Belgium | E45: =IF(A45="","",OFFSET(INDIRECT("Round"&Round&"!o1"),$A45,0)) -> England
A46: 39 | B46: =IF(A46="","",OFFSET(INDIRECT("Round"&Round&"!B1"),$A46,0)) -> Malodoror | C46: =IF(A46="","",OFFSET(INDIRECT("Round"&Round&"!c1"),$A46,0)) -> Lycos | D46: =IF(A46="","",OFFSET(INDIRECT("Round"&Round&"!n1"),$A46,0)) -> Belgium | E46: =IF(A46="","",OFFSET(INDIRECT("Round"&Round&"!o1"),$A46,0)) -> England
A47: 40 | B47: =IF(A47="","",OFFSET(INDIRECT("Round"&Round&"!B1"),$A47,0)) -> Phoenix11 | C47: =IF(A47="","",OFFSET(INDIRECT("Round"&Round&"!c1"),$A47,0)) -> Geggster | D47: =IF(A47="","",OFFSET(INDIRECT("Round"&Round&"!n1"),$A47,0)) -> Belgium | E47: =IF(A47="","",OFFSET(INDIRECT("Round"&Round&"!o1"),$A47,0)) -> England
B48: =IF(A48="","",OFFSET(INDIRECT("Round"&Round&"!B1"),$A48,0)) ->  | C48: =IF(A48="","",OFFSET(INDIRECT("Round"&Round&"!c1"),$A48,0)) ->  | D48: =IF(A48="","",OFFSET(INDIRECT("Round"&Round&"!n1"),$A48,0)) ->  | E48: =IF(A48="","",OFFSET(INDIRECT("Round"&Round&"!o1"),$A48,0)) -> 
A49: 41 | B49: =IF(A49="","",OFFSET(INDIRECT("Round"&Round&"!B1"),$A49,0)) -> Tripleskull | C49: =IF(A49="","",OFFSET(INDIRECT("Round"&Round&"!c1"),$A49,0)) -> GreatWhiteHope | D49: =IF(A49="","",OFFSET(INDIRECT("Round"&Round&"!n1"),$A49,0)) -> Denmark | E49: =IF(A49="","",OFFSET(INDIRECT("Round"&Round&"!o1"),$A49,0)) -> Norway
A50: 42 | B50: =IF(A50="","",OFFSET(INDIRECT("Round"&Round&"!B1"),$A50,0)) -> Niebling | C50: =IF(A50="","",OFFSET(INDIRECT("Round"&Round&"!c1"),$A50,0)) -> FrankPedersen | D50: =IF(A50="","",OFFSET(INDIRECT("Round"&Round&"!n1"),$A50,0)) -> Denmark | E50: =IF(A50="","",OFFSET(INDIRECT("Round"&Round&"!o1"),$A50,0)) -> Norway
A51: 43 | B51: =IF(A51="","",OFFSET(INDIRECT("Round"&Round&"!B1"),$A51,0)) -> Jaqra | C51: =IF(A51="","",OFFSET(INDIRECT("Round"&Round&"!c1"),$A51,0)) -> straume | D51: =IF(A51="","",OFFSET(INDIRECT("Round"&Round&"!n1"),$A51,0)) -> Denmark | E51: =IF(A51="","",OFFSET(INDIRECT("Round"&Round&"!o1"),$A51,0)) -> Norway
A52: 44 | B52: =IF(A52="","",OFFSET(INDIRECT("Round"&Round&"!B1"),$A52,0)) -> Tank | C52: =IF(A52="","",OFFSET(INDIRECT("Round"&Round&"!c1"),$A52,0)) -> mynock | D52: =IF(A52="","",OFFSET(INDIRECT("Round"&Round&"!n1"),$A52,0)) -> Denmark | E52: =IF(A52="","",OFFSET(INDIRECT("Round"&Round&"!o1"),$A52,0)) -> Norway
A53: 45 | B53: =IF(A53="","",OFFSET(INDIRECT("Round"&Round&"!B1"),$A53,0)) -> MissSweden | C53: =IF(A53="","",OFFSET(INDIRECT("Round"&Round&"!c1"),$A53,0)) -> Endalos | D53: =IF(A53="","",OFFSET(INDIRECT("Round"&Round&"!n1"),$A53,0)) -> Denmark | E53: =IF(A53="","",OFFSET(INDIRECT("Round"&Round&"!o1"),$A53,0)) -> Norway
A54: 46 | B54: =IF(A54="","",OFFSET(INDIRECT("Round"&Round&"!B1"),$A54,0)) -> kfoged | C54: =IF(A54="","",OFFSET(INDIRECT("Round"&Round&"!c1"),$A54,0)) -> bothun | D54: =IF(A54="","",OFFSET(INDIRECT("Round"&Round&"!n1"),$A54,0)) -> Denmark | E54: =IF(A54="","",OFFSET(INDIRECT("Round"&Round&"!o1"),$A54,0)) -> Norway
A55: 47 | B55: =IF(A55="","",OFFSET(INDIRECT("Round"&Round&"!B1"),$A55,0)) -> Topper | C55: =IF(A55="","",OFFSET(INDIRECT("Round"&Round&"!c1"),$A55,0)) -> zulu | D55: =IF(A55="","",OFFSET(INDIRECT("Round"&Round&"!n1"),$A55,0)) -> Denmark | E55: =IF(A55="","",OFFSET(INDIRECT("Round"&Round&"!o1"),$A55,0)) -> Norway
A56: 48 | B56: =IF(A56="","",OFFSET(INDIRECT("Round"&Round&"!B1"),$A56,0)) -> SpecialOne | C56: =IF(A56="","",OFFSET(INDIRECT("Round"&Round&"!c1"),$A56,0)) -> The_Ref | D56: =IF(A56="","",OFFSET(INDIRECT("Round"&Round&"!n1"),$A56,0)) -> Denmark | E56: =IF(A56="","",OFFSET(INDIRECT("Round"&Round&"!o1"),$A56,0)) -> Norway
B57: =IF(A57="","",OFFSET(INDIRECT("Round"&Round&"!B1"),$A57,0)) ->  | C57: =IF(A57="","",OFFSET(INDIRECT("Round"&Round&"!c1"),$A57,0)) ->  | D57: =IF(A57="","",OFFSET(INDIRECT("Round"&Round&"!n1"),$A57,0)) ->  | E57: =IF(A57="","",OFFSET(INDIRECT("Round"&Round&"!o1"),$A57,0)) -> 
A58: 49 | B58: =IF(A58="","",OFFSET(INDIRECT("Round"&Round&"!B1"),$A58,0)) -> Beppe | C58: =IF(A58="","",OFFSET(INDIRECT("Round"&Round&"!c1"),$A58,0)) -> Slimaq | D58: =IF(A58="","",OFFSET(INDIRECT("Round"&Round&"!n1"),$A58,0)) -> Italy | E58: =IF(A58="","",OFFSET(INDIRECT("Round"&Round&"!o1"),$A58,0)) -> Poland
A59: 50 | B59: =IF(A59="","",OFFSET(INDIRECT("Round"&Round&"!B1"),$A59,0)) -> Farina | C59: =IF(A59="","",OFFSET(INDIRECT("Round"&Round&"!c1"),$A59,0)) -> Domingo | D59: =IF(A59="","",OFFSET(INDIRECT("Round"&Round&"!n1"),$A59,0)) -> Italy | E59: =IF(A59="","",OFFSET(INDIRECT("Round"&Round&"!o1"),$A59,0)) -> Poland
A60: 51 | B60: =IF(A60="","",OFFSET(INDIRECT("Round"&Round&"!B1"),$A60,0)) -> Spartako | C60: =IF(A60="","",OFFSET(INDIRECT("Round"&Round&"!c1"),$A60,0)) -> Mewash | D60: =IF(A60="","",OFFSET(INDIRECT("Round"&Round&"!n1"),$A60,0)) -> Italy | E60: =IF(A60="","",OFFSET(INDIRECT("Round"&Round&"!o1"),$A60,0)) -> Poland
A61: 52 | B61: =IF(A61="","",OFFSET(INDIRECT("Round"&Round&"!B1"),$A61,0)) -> Verrinho | C61: =IF(A61="","",OFFSET(INDIRECT("Round"&Round&"!c1"),$A61,0)) -> Juniooor7 | D61: =IF(A61="","",OFFSET(INDIRECT("Round"&Round&"!n1"),$A61,0)) -> Italy | E61: =IF(A61="","",OFFSET(INDIRECT("Round"&Round&"!o1"),$A61,0)) -> Poland
A62: 53 | B62: =IF(A62="","",OFFSET(INDIRECT("Round"&Round&"!B1"),$A62,0)) -> Liam | C62: =IF(A62="","",OFFSET(INDIRECT("Round"&Round&"!c1"),$A62,0)) -> Warrior1980 | D62: =IF(A62="","",OFFSET(INDIRECT("Round"&Round&"!n1"),$A62,0)) -> Italy | E62: =IF(A62="","",OFFSET(INDIRECT("Round"&Round&"!o1"),$A62,0)) -> Poland
A63: 54 | B63: =IF(A63="","",OFFSET(INDIRECT("Round"&Round&"!B1"),$A63,0)) -> Matte8 | C63: =IF(A63="","",OFFSET(INDIRECT("Round"&Round&"!c1"),$A63,0)) -> Leonek | D63: =IF(A63="","",OFFSET(INDIRECT("Round"&Round&"!n1"),$A63,0)) -> Italy | E63: =IF(A63="","",OFFSET(INDIRECT("Round"&Round&"!o1"),$A63,0)) -> Poland
A64: 55 | B64: =IF(A64="","",OFFSET(INDIRECT("Round"&Round&"!B1"),$A64,0)) -> Kaltenland | C64: =IF(A64="","",OFFSET(INDIRECT("Round"&Round&"!c1"),$A64,0)) -> Shawass | D64: =IF(A64="","",OFFSET(INDIRECT("Round"&Round&"!n1"),$A64,0)) -> Italy | E64: =IF(A64="","",OFFSET(INDIRECT("Round"&Round&"!o1"),$A64,0)) -> Poland
A65: 56 | B65: =IF(A65="","",OFFSET(INDIRECT("Round"&Round&"!B1"),$A65,0)) -> Dirold | C65: =IF(A65="","",OFFSET(INDIRECT("Round"&Round&"!c1"),$A65,0)) -> Reszka | D65: =IF(A65="","",OFFSET(INDIRECT("Round"&Round&"!n1"),$A65,0)) -> Italy | E65: =IF(A65="","",OFFSET(INDIRECT("Round"&Round&"!o1"),$A65,0)) -> Poland
B66: =IF(A66="","",OFFSET(INDIRECT("Round"&Round&"!B1"),$A66,0)) ->  | C66: =IF(A66="","",OFFSET(INDIRECT("Round"&Round&"!c1"),$A66,0)) ->  | D66: =IF(A66="","",OFFSET(INDIRECT("Round"&Round&"!n1"),$A66,0)) ->  | E66: =IF(A66="","",OFFSET(INDIRECT("Round"&Round&"!o1"),$A66,0)) -> 
A67: 57 | B67: =IF(A67="","",OFFSET(INDIRECT("Round"&Round&"!B1"),$A67,0)) -> jopotzuki | C67: =IF(A67="","",OFFSET(INDIRECT("Round"&Round&"!c1"),$A67,0)) -> Ploppy_McPloppy | D67: =IF(A67="","",OFFSET(INDIRECT("Round"&Round&"!n1"),$A67,0)) -> Finland | E67: =IF(A67="","",OFFSET(INDIRECT("Round"&Round&"!o1"),$A67,0)) -> Wales
A68: 58 | B68: =IF(A68="","",OFFSET(INDIRECT("Round"&Round&"!B1"),$A68,0)) -> valkohukka | C68: =IF(A68="","",OFFSET(INDIRECT("Round"&Round&"!c1"),$A68,0)) -> andydavo | D68: =IF(A68="","",OFFSET(INDIRECT("Round"&Round&"!n1"),$A68,0)) -> Finland | E68: =IF(A68="","",OFFSET(INDIRECT("Round"&Round&"!o1"),$A68,0)) -> Wales
A69: 59 | B69: =IF(A69="","",OFFSET(INDIRECT("Round"&Round&"!B1"),$A69,0)) -> BeerBeer | C69: =IF(A69="","",OFFSET(INDIRECT("Round"&Round&"!c1"),$A69,0)) -> MadeofWelsh | D69: =IF(A69="","",OFFSET(INDIRECT("Round"&Round&"!n1"),$A69,0)) -> Finland | E69: =IF(A69="","",OFFSET(INDIRECT("Round"&Round&"!o1"),$A69,0)) -> Wales
A70: 60 | B70: =IF(A70="","",OFFSET(INDIRECT("Round"&Round&"!B1"),$A70,0)) -> J-Ho | C70: =IF(A70="","",OFFSET(INDIRECT("Round"&Round&"!c1"),$A70,0)) -> Northernknight | D70: =IF(A70="","",OFFSET(INDIRECT("Round"&Round&"!n1"),$A70,0)) -> Finland | E70: =IF(A70="","",OFFSET(INDIRECT("Round"&Round&"!o1"),$A70,0)) -> Wales
A71: 61 | B71: =IF(A71="","",OFFSET(INDIRECT("Round"&Round&"!B1"),$A71,0)) -> edheim | C71: =IF(A71="","",OFFSET(INDIRECT("Round"&Round&"!c1"),$A71,0)) -> SFisher91 | D71: =IF(A71="","",OFFSET(INDIRECT("Round"&Round&"!n1"),$A71,0)) -> Finland | E71: =IF(A71="","",OFFSET(INDIRECT("Round"&Round&"!o1"),$A71,0)) -> Wales
A72: 62 | B72: =IF(A72="","",OFFSET(INDIRECT("Round"&Round&"!B1"),$A72,0)) -> MacWitt | C72: =IF(A72="","",OFFSET(INDIRECT("Round"&Round&"!c1"),$A72,0)) -> Dionysian | D72: =IF(A72="","",OFFSET(INDIRECT("Round"&Round&"!n1"),$A72,0)) -> Finland | E72: =IF(A72="","",OFFSET(INDIRECT("Round"&Round&"!o1"),$A72,0)) -> Wales
A73: 63 | B73: =IF(A73="","",OFFSET(INDIRECT("Round"&Round&"!B1"),$A73,0)) -> ratogre | C73: =IF(A73="","",OFFSET(INDIRECT("Round"&Round&"!c1"),$A73,0)) -> 20Phoenix | D73: =IF(A73="","",OFFSET(INDIRECT("Round"&Round&"!n1"),$A73,0)) -> Finland | E73: =IF(A73="","",OFFSET(INDIRECT("Round"&Round&"!o1"),$A73,0)) -> Wales
A74: 64 | B74: =IF(A74="","",OFFSET(INDIRECT("Round"&Round&"!B1"),$A74,0)) -> Harza | C74: =IF(A74="","",OFFSET(INDIRECT("Round"&Round&"!c1"),$A74,0)) -> nonumber | D74: =IF(A74="","",OFFSET(INDIRECT("Round"&Round&"!n1"),$A74,0)) -> Finland | E74: =IF(A74="","",OFFSET(INDIRECT("Round"&Round&"!o1"),$A74,0)) -> Wales
B75: =IF(A75="","",OFFSET(INDIRECT("Round"&Round&"!B1"),$A75,0)) ->  | C75: =IF(A75="","",OFFSET(INDIRECT("Round"&Round&"!c1"),$A75,0)) ->  | D75: =IF(A75="","",OFFSET(INDIRECT("Round"&Round&"!n1"),$A75,0)) ->  | E75: =IF(A75="","",OFFSET(INDIRECT("Round"&Round&"!o1"),$A75,0)) -> 
A76: 65 | B76: =IF(A76="","",OFFSET(INDIRECT("Round"&Round&"!B1"),$A76,0)) -> 0 | C76: =IF(A76="","",OFFSET(INDIRECT("Round"&Round&"!c1"),$A76,0)) -> 0 | D76: =IF(A76="","",OFFSET(INDIRECT("Round"&Round&"!n1"),$A76,0)) -> 0 | E76: =IF(A76="","",OFFSET(INDIRECT("Round"&Round&"!o1"),$A76,0)) -> 0
A77: 66 | B77: =IF(A77="","",OFFSET(INDIRECT("Round"&Round&"!B1"),$A77,0)) -> 0 | C77: =IF(A77="","",OFFSET(INDIRECT("Round"&Round&"!c1"),$A77,0)) -> 0 | D77: =IF(A77="","",OFFSET(INDIRECT("Round"&Round&"!n1"),$A77,0)) -> 0 | E77: =IF(A77="","",OFFSET(INDIRECT("Round"&Round&"!o1"),$A77,0)) -> 0
A78: 67 | B78: =IF(A78="","",OFFSET(INDIRECT("Round"&Round&"!B1"),$A78,0)) -> 0 | C78: =IF(A78="","",OFFSET(INDIRECT("Round"&Round&"!c1"),$A78,0)) -> 0 | D78: =IF(A78="","",OFFSET(INDIRECT("Round"&Round&"!n1"),$A78,0)) -> 0 | E78: =IF(A78="","",OFFSET(INDIRECT("Round"&Round&"!o1"),$A78,0)) -> 0
A79: 68 | B79: =IF(A79="","",OFFSET(INDIRECT("Round"&Round&"!B1"),$A79,0)) -> 0 | C79: =IF(A79="","",OFFSET(INDIRECT("Round"&Round&"!c1"),$A79,0)) -> 0 | D79: =IF(A79="","",OFFSET(INDIRECT("Round"&Round&"!n1"),$A79,0)) -> 0 | E79: =IF(A79="","",OFFSET(INDIRECT("Round"&Round&"!o1"),$A79,0)) -> 0
A80: 69 | B80: =IF(A80="","",OFFSET(INDIRECT("Round"&Round&"!B1"),$A80,0)) -> 0 | C80: =IF(A80="","",OFFSET(INDIRECT("Round"&Round&"!c1"),$A80,0)) -> 0 | D80: =IF(A80="","",OFFSET(INDIRECT("Round"&Round&"!n1"),$A80,0)) -> 0 | E80: =IF(A80="","",OFFSET(INDIRECT("Round"&Round&"!o1"),$A80,0)) -> 0
A81: 70 | B81: =IF(A81="","",OFFSET(INDIRECT("Round"&Round&"!B1"),$A81,0)) -> 0 | C81: =IF(A81="","",OFFSET(INDIRECT("Round"&Round&"!c1"),$A81,0)) -> 0 | D81: =IF(A81="","",OFFSET(INDIRECT("Round"&Round&"!n1"),$A81,0)) -> 0 | E81: =IF(A81="","",OFFSET(INDIRECT("Round"&Round&"!o1"),$A81,0)) -> 0
A82: 71 | B82: =IF(A82="","",OFFSET(INDIRECT("Round"&Round&"!B1"),$A82,0)) -> 0 | C82: =IF(A82="","",OFFSET(INDIRECT("Round"&Round&"!c1"),$A82,0)) -> 0 | D82: =IF(A82="","",OFFSET(INDIRECT("Round"&Round&"!n1"),$A82,0)) -> 0 | E82: =IF(A82="","",OFFSET(INDIRECT("Round"&Round&"!o1"),$A82,0)) -> 0
A83: 72 | B83: =IF(A83="","",OFFSET(INDIRECT("Round"&Round&"!B1"),$A83,0)) -> 0 | C83: =IF(A83="","",OFFSET(INDIRECT("Round"&Round&"!c1"),$A83,0)) -> 0 | D83: =IF(A83="","",OFFSET(INDIRECT("Round"&Round&"!n1"),$A83,0)) -> 0 | E83: =IF(A83="","",OFFSET(INDIRECT("Round"&Round&"!o1"),$A83,0)) -> 0
B84: =IF(A84="","",OFFSET(INDIRECT("Round"&Round&"!B1"),$A84,0)) ->  | C84: =IF(A84="","",OFFSET(INDIRECT("Round"&Round&"!c1"),$A84,0)) ->  | D84: =IF(A84="","",OFFSET(INDIRECT("Round"&Round&"!n1"),$A84,0)) ->  | E84: =IF(A84="","",OFFSET(INDIRECT("Round"&Round&"!o1"),$A84,0)) -> 
A85: 73 | B85: =IF(A85="","",OFFSET(INDIRECT("Round"&Round&"!B1"),$A85,0)) -> 0 | C85: =IF(A85="","",OFFSET(INDIRECT("Round"&Round&"!c1"),$A85,0)) -> 0 | D85: =IF(A85="","",OFFSET(INDIRECT("Round"&Round&"!n1"),$A85,0)) -> 0 | E85: =IF(A85="","",OFFSET(INDIRECT("Round"&Round&"!o1"),$A85,0)) -> 0
A86: 74 | B86: =IF(A86="","",OFFSET(INDIRECT("Round"&Round&"!B1"),$A86,0)) -> 0 | C86: =IF(A86="","",OFFSET(INDIRECT("Round"&Round&"!c1"),$A86,0)) -> 0 | D86: =IF(A86="","",OFFSET(INDIRECT("Round"&Round&"!n1"),$A86,0)) -> 0 | E86: =IF(A86="","",OFFSET(INDIRECT("Round"&Round&"!o1"),$A86,0)) -> 0
A87: 75 | B87: =IF(A87="","",OFFSET(INDIRECT("Round"&Round&"!B1"),$A87,0)) -> 0 | C87: =IF(A87="","",OFFSET(INDIRECT("Round"&Round&"!c1"),$A87,0)) -> 0 | D87: =IF(A87="","",OFFSET(INDIRECT("Round"&Round&"!n1"),$A87,0)) -> 0 | E87: =IF(A87="","",OFFSET(INDIRECT("Round"&Round&"!o1"),$A87,0)) -> 0
A88: 76 | B88: =IF(A88="","",OFFSET(INDIRECT("Round"&Round&"!B1"),$A88,0)) -> 0 | C88: =IF(A88="","",OFFSET(INDIRECT("Round"&Round&"!c1"),$A88,0)) -> 0 | D88: =IF(A88="","",OFFSET(INDIRECT("Round"&Round&"!n1"),$A88,0)) -> 0 | E88: =IF(A88="","",OFFSET(INDIRECT("Round"&Round&"!o1"),$A88,0)) -> 0
A89: 77 | B89: =IF(A89="","",OFFSET(INDIRECT("Round"&Round&"!B1"),$A89,0)) -> 0 | C89: =IF(A89="","",OFFSET(INDIRECT("Round"&Round&"!c1"),$A89,0)) -> 0 | D89: =IF(A89="","",OFFSET(INDIRECT("Round"&Round&"!n1"),$A89,0)) -> 0 | E89: =IF(A89="","",OFFSET(INDIRECT("Round"&Round&"!o1"),$A89,0)) -> 0
A90: 78 | B90: =IF(A90="","",OFFSET(INDIRECT("Round"&Round&"!B1"),$A90,0)) -> 0 | C90: =IF(A90="","",OFFSET(INDIRECT("Round"&Round&"!c1"),$A90,0)) -> 0 | D90: =IF(A90="","",OFFSET(INDIRECT("Round"&Round&"!n1"),$A90,0)) -> 0 | E90: =IF(A90="","",OFFSET(INDIRECT("Round"&Round&"!o1"),$A90,0)) -> 0
A91: 79 | B91: =IF(A91="","",OFFSET(INDIRECT("Round"&Round&"!B1"),$A91,0)) -> 0 | C91: =IF(A91="","",OFFSET(INDIRECT("Round"&Round&"!c1"),$A91,0)) -> 0 | D91: =IF(A91="","",OFFSET(INDIRECT("Round"&Round&"!n1"),$A91,0)) -> 0 | E91: =IF(A91="","",OFFSET(INDIRECT("Round"&Round&"!o1"),$A91,0)) -> 0
A92: 80 | B92: =IF(A92="","",OFFSET(INDIRECT("Round"&Round&"!B1"),$A92,0)) -> 0 | C92: =IF(A92="","",OFFSET(INDIRECT("Round"&Round&"!c1"),$A92,0)) -> 0 | D92: =IF(A92="","",OFFSET(INDIRECT("Round"&Round&"!n1"),$A92,0)) -> 0 | E92: =IF(A92="","",OFFSET(INDIRECT("Round"&Round&"!o1"),$A92,0)) -> 0
B93: =IF(A93="","",OFFSET(INDIRECT("Round"&Round&"!B1"),$A93,0)) ->  | C93: =IF(A93="","",OFFSET(INDIRECT("Round"&Round&"!c1"),$A93,0)) ->  | D93: =IF(A93="","",OFFSET(INDIRECT("Round"&Round&"!n1"),$A93,0)) ->  | E93: =IF(A93="","",OFFSET(INDIRECT("Round"&Round&"!o1"),$A93,0)) -> 
A94: 81 | B94: =IF(A94="","",OFFSET(INDIRECT("Round"&Round&"!B1"),$A94,0)) -> 0 | C94: =IF(A94="","",OFFSET(INDIRECT("Round"&Round&"!c1"),$A94,0)) -> 0 | D94: =IF(A94="","",OFFSET(INDIRECT("Round"&Round&"!n1"),$A94,0)) -> 0 | E94: =IF(A94="","",OFFSET(INDIRECT("Round"&Round&"!o1"),$A94,0)) -> 0
A95: 82 | B95: =IF(A95="","",OFFSET(INDIRECT("Round"&Round&"!B1"),$A95,0)) -> 0 | C95: =IF(A95="","",OFFSET(INDIRECT("Round"&Round&"!c1"),$A95,0)) -> 0 | D95: =IF(A95="","",OFFSET(INDIRECT("Round"&Round&"!n1"),$A95,0)) -> 0 | E95: =IF(A95="","",OFFSET(INDIRECT("Round"&Round&"!o1"),$A95,0)) -> 0
A96: 83 | B96: =IF(A96="","",OFFSET(INDIRECT("Round"&Round&"!B1"),$A96,0)) -> 0 | C96: =IF(A96="","",OFFSET(INDIRECT("Round"&Round&"!c1"),$A96,0)) -> 0 | D96: =IF(A96="","",OFFSET(INDIRECT("Round"&Round&"!n1"),$A96,0)) -> 0 | E96: =IF(A96="","",OFFSET(INDIRECT("Round"&Round&"!o1"),$A96,0)) -> 0
A97: 84 | B97: =IF(A97="","",OFFSET(INDIRECT("Round"&Round&"!B1"),$A97,0)) -> 0 | C97: =IF(A97="","",OFFSET(INDIRECT("Round"&Round&"!c1"),$A97,0)) -> 0 | D97: =IF(A97="","",OFFSET(INDIRECT("Round"&Round&"!n1"),$A97,0)) -> 0 | E97: =IF(A97="","",OFFSET(INDIRECT("Round"&Round&"!o1"),$A97,0)) -> 0
A98: =IF(A97="",A96+1,IF(ROUNDUP(A97/8,0)=A97/8,"",A97+1)) -> 85 | B98: =IF(A98="","",OFFSET(INDIRECT("Round"&Round&"!B1"),$A98,0)) -> 0 | C98: =IF(A98="","",OFFSET(INDIRECT("Round"&Round&"!c1"),$A98,0)) -> 0 | D98: =IF(A98="","",OFFSET(INDIRECT("Round"&Round&"!n1"),$A98,0)) -> 0 | E98: =IF(A98="","",OFFSET(INDIRECT("Round"&Round&"!o1"),$A98,0)) -> 0
A99: 86 | B99: =IF(A99="","",OFFSET(INDIRECT("Round"&Round&"!B1"),$A99,0)) -> 0 | C99: =IF(A99="","",OFFSET(INDIRECT("Round"&Round&"!c1"),$A99,0)) -> 0 | D99: =IF(A99="","",OFFSET(INDIRECT("Round"&Round&"!n1"),$A99,0)) -> 0 | E99: =IF(A99="","",OFFSET(INDIRECT("Round"&Round&"!o1"),$A99,0)) -> 0
A100: 87 | B100: =IF(A100="","",OFFSET(INDIRECT("Round"&Round&"!B1"),$A100,0)) -> 0 | C100: =IF(A100="","",OFFSET(INDIRECT("Round"&Round&"!c1"),$A100,0)) -> 0 | D100: =IF(A100="","",OFFSET(INDIRECT("Round"&Round&"!n1"),$A100,0)) -> 0 | E100: =IF(A100="","",OFFSET(INDIRECT("Round"&Round&"!o1"),$A100,0)) -> 0
A101: 88 | B101: =IF(A101="","",OFFSET(INDIRECT("Round"&Round&"!B1"),$A101,0)) -> 0 | C101: =IF(A101="","",OFFSET(INDIRECT("Round"&Round&"!c1"),$A101,0)) -> 0 | D101: =IF(A101="","",OFFSET(INDIRECT("Round"&Round&"!n1"),$A101,0)) -> 0 | E101: =IF(A101="","",OFFSET(INDIRECT("Round"&Round&"!o1"),$A101,0)) -> 0
B102: =IF(A102="","",OFFSET(INDIRECT("Round"&Round&"!B1"),$A102,0)) ->  | C102: =IF(A102="","",OFFSET(INDIRECT("Round"&Round&"!c1"),$A102,0)) ->  | D102: =IF(A102="","",OFFSET(INDIRECT("Round"&Round&"!n1"),$A102,0)) ->  | E102: =IF(A102="","",OFFSET(INDIRECT("Round"&Round&"!o1"),$A102,0)) -> 
A103: 89 | B103: =IF(A103="","",OFFSET(INDIRECT("Round"&Round&"!B1"),$A103,0)) -> 0 | C103: =IF(A103="","",OFFSET(INDIRECT("Round"&Round&"!c1"),$A103,0)) -> 0 | D103: =IF(A103="","",OFFSET(INDIRECT("Round"&Round&"!n1"),$A103,0)) -> 0 | E103: =IF(A103="","",OFFSET(INDIRECT("Round"&Round&"!o1"),$A103,0)) -> 0
A104: 90 | B104: =IF(A104="","",OFFSET(INDIRECT("Round"&Round&"!B1"),$A104,0)) -> 0 | C104: =IF(A104="","",OFFSET(INDIRECT("Round"&Round&"!c1"),$A104,0)) -> 0 | D104: =IF(A104="","",OFFSET(INDIRECT("Round"&Round&"!n1"),$A104,0)) -> 0 | E104: =IF(A104="","",OFFSET(INDIRECT("Round"&Round&"!o1"),$A104,0)) -> 0
A105: 91 | B105: =IF(A105="","",OFFSET(INDIRECT("Round"&Round&"!B1"),$A105,0)) -> 0 | C105: =IF(A105="","",OFFSET(INDIRECT("Round"&Round&"!c1"),$A105,0)) -> 0 | D105: =IF(A105="","",OFFSET(INDIRECT("Round"&Round&"!n1"),$A105,0)) -> 0 | E105: =IF(A105="","",OFFSET(INDIRECT("Round"&Round&"!o1"),$A105,0)) -> 0
A106: 92 | B106: =IF(A106="","",OFFSET(INDIRECT("Round"&Round&"!B1"),$A106,0)) -> 0 | C106: =IF(A106="","",OFFSET(INDIRECT("Round"&Round&"!c1"),$A106,0)) -> 0 | D106: =IF(A106="","",OFFSET(INDIRECT("Round"&Round&"!n1"),$A106,0)) -> 0 | E106: =IF(A106="","",OFFSET(INDIRECT("Round"&Round&"!o1"),$A106,0)) -> 0
A107: 93 | B107: =IF(A107="","",OFFSET(INDIRECT("Round"&Round&"!B1"),$A107,0)) -> 0 | C107: =IF(A107="","",OFFSET(INDIRECT("Round"&Round&"!c1"),$A107,0)) -> 0 | D107: =IF(A107="","",OFFSET(INDIRECT("Round"&Round&"!n1"),$A107,0)) -> 0 | E107: =IF(A107="","",OFFSET(INDIRECT("Round"&Round&"!o1"),$A107,0)) -> 0
A108: 94 | B108: =IF(A108="","",OFFSET(INDIRECT("Round"&Round&"!B1"),$A108,0)) -> 0 | C108: =IF(A108="","",OFFSET(INDIRECT("Round"&Round&"!c1"),$A108,0)) -> 0 | D108: =IF(A108="","",OFFSET(INDIRECT("Round"&Round&"!n1"),$A108,0)) -> 0 | E108: =IF(A108="","",OFFSET(INDIRECT("Round"&Round&"!o1"),$A108,0)) -> 0
A109: 95 | B109: =IF(A109="","",OFFSET(INDIRECT("Round"&Round&"!B1"),$A109,0)) -> 0 | C109: =IF(A109="","",OFFSET(INDIRECT("Round"&Round&"!c1"),$A109,0)) -> 0 | D109: =IF(A109="","",OFFSET(INDIRECT("Round"&Round&"!n1"),$A109,0)) -> 0 | E109: =IF(A109="","",OFFSET(INDIRECT("Round"&Round&"!o1"),$A109,0)) -> 0
A110: 96 | B110: =IF(A110="","",OFFSET(INDIRECT("Round"&Round&"!B1"),$A110,0)) -> 0 | C110: =IF(A110="","",OFFSET(INDIRECT("Round"&Round&"!c1"),$A110,0)) -> 0 | D110: =IF(A110="","",OFFSET(INDIRECT("Round"&Round&"!n1"),$A110,0)) -> 0 | E110: =IF(A110="","",OFFSET(INDIRECT("Round"&Round&"!o1"),$A110,0)) -> 0
B111: =IF(A111="","",OFFSET(INDIRECT("Round"&Round&"!B1"),$A111,0)) ->  | C111: =IF(A111="","",OFFSET(INDIRECT("Round"&Round&"!c1"),$A111,0)) ->  | D111: =IF(A111="","",OFFSET(INDIRECT("Round"&Round&"!n1"),$A111,0)) ->  | E111: =IF(A111="","",OFFSET(INDIRECT("Round"&Round&"!o1"),$A111,0)) -> 
A112: 97 | B112: =IF(A112="","",OFFSET(INDIRECT("Round"&Round&"!B1"),$A112,0)) -> 0 | C112: =IF(A112="","",OFFSET(INDIRECT("Round"&Round&"!c1"),$A112,0)) -> 0 | D112: =IF(A112="","",OFFSET(INDIRECT("Round"&Round&"!n1"),$A112,0)) -> 0 | E112: =IF(A112="","",OFFSET(INDIRECT("Round"&Round&"!o1"),$A112,0)) -> 0
A113: 98 | B113: =IF(A113="","",OFFSET(INDIRECT("Round"&Round&"!B1"),$A113,0)) -> 0 | C113: =IF(A113="","",OFFSET(INDIRECT("Round"&Round&"!c1"),$A113,0)) -> 0 | D113: =IF(A113="","",OFFSET(INDIRECT("Round"&Round&"!n1"),$A113,0)) -> 0 | E113: =IF(A113="","",OFFSET(INDIRECT("Round"&Round&"!o1"),$A113,0)) -> 0
A114: 99 | B114: =IF(A114="","",OFFSET(INDIRECT("Round"&Round&"!B1"),$A114,0)) -> 0 | C114: =IF(A114="","",OFFSET(INDIRECT("Round"&Round&"!c1"),$A114,0)) -> 0 | D114: =IF(A114="","",OFFSET(INDIRECT("Round"&Round&"!n1"),$A114,0)) -> 0 | E114: =IF(A114="","",OFFSET(INDIRECT("Round"&Round&"!o1"),$A114,0)) -> 0
A115: 100 | B115: =IF(A115="","",OFFSET(INDIRECT("Round"&Round&"!B1"),$A115,0)) -> 0 | C115: =IF(A115="","",OFFSET(INDIRECT("Round"&Round&"!c1"),$A115,0)) -> 0 | D115: =IF(A115="","",OFFSET(INDIRECT("Round"&Round&"!n1"),$A115,0)) -> 0 | E115: =IF(A115="","",OFFSET(INDIRECT("Round"&Round&"!o1"),$A115,0)) -> 0
A116: 101 | B116: =IF(A116="","",OFFSET(INDIRECT("Round"&Round&"!B1"),$A116,0)) -> 0 | C116: =IF(A116="","",OFFSET(INDIRECT("Round"&Round&"!c1"),$A116,0)) -> 0 | D116: =IF(A116="","",OFFSET(INDIRECT("Round"&Round&"!n1"),$A116,0)) -> 0 | E116: =IF(A116="","",OFFSET(INDIRECT("Round"&Round&"!o1"),$A116,0)) -> 0
A117: 102 | B117: =IF(A117="","",OFFSET(INDIRECT("Round"&Round&"!B1"),$A117,0)) -> 0 | C117: =IF(A117="","",OFFSET(INDIRECT("Round"&Round&"!c1"),$A117,0)) -> 0 | D117: =IF(A117="","",OFFSET(INDIRECT("Round"&Round&"!n1"),$A117,0)) -> 0 | E117: =IF(A117="","",OFFSET(INDIRECT("Round"&Round&"!o1"),$A117,0)) -> 0
A118: 103 | B118: =IF(A118="","",OFFSET(INDIRECT("Round"&Round&"!B1"),$A118,0)) -> 0 | C118: =IF(A118="","",OFFSET(INDIRECT("Round"&Round&"!c1"),$A118,0)) -> 0 | D118: =IF(A118="","",OFFSET(INDIRECT("Round"&Round&"!n1"),$A118,0)) -> 0 | E118: =IF(A118="","",OFFSET(INDIRECT("Round"&Round&"!o1"),$A118,0)) -> 0
A119: 104 | B119: =IF(A119="","",OFFSET(INDIRECT("Round"&Round&"!B1"),$A119,0)) -> 0 | C119: =IF(A119="","",OFFSET(INDIRECT("Round"&Round&"!c1"),$A119,0)) -> 0 | D119: =IF(A119="","",OFFSET(INDIRECT("Round"&Round&"!n1"),$A119,0)) -> 0 | E119: =IF(A119="","",OFFSET(INDIRECT("Round"&Round&"!o1"),$A119,0)) -> 0
B120: =IF(A120="","",OFFSET(INDIRECT("Round"&Round&"!B1"),$A120,0)) ->  | C120: =IF(A120="","",OFFSET(INDIRECT("Round"&Round&"!c1"),$A120,0)) ->  | D120: =IF(A120="","",OFFSET(INDIRECT("Round"&Round&"!n1"),$A120,0)) ->  | E120: =IF(A120="","",OFFSET(INDIRECT("Round"&Round&"!o1"),$A120,0)) -> 
A121: 105 | B121: =IF(A121="","",OFFSET(INDIRECT("Round"&Round&"!B1"),$A121,0)) -> 0 | C121: =IF(A121="","",OFFSET(INDIRECT("Round"&Round&"!c1"),$A121,0)) -> 0 | D121: =IF(A121="","",OFFSET(INDIRECT("Round"&Round&"!n1"),$A121,0)) -> 0 | E121: =IF(A121="","",OFFSET(INDIRECT("Round"&Round&"!o1"),$A121,0)) -> 0
A122: 106 | B122: =IF(A122="","",OFFSET(INDIRECT("Round"&Round&"!B1"),$A122,0)) -> 0 | C122: =IF(A122="","",OFFSET(INDIRECT("Round"&Round&"!c1"),$A122,0)) -> 0 | D122: =IF(A122="","",OFFSET(INDIRECT("Round"&Round&"!n1"),$A122,0)) -> 0 | E122: =IF(A122="","",OFFSET(INDIRECT("Round"&Round&"!o1"),$A122,0)) -> 0
A123: 107 | B123: =IF(A123="","",OFFSET(INDIRECT("Round"&Round&"!B1"),$A123,0)) -> 0 | C123: =IF(A123="","",OFFSET(INDIRECT("Round"&Round&"!c1"),$A123,0)) -> 0 | D123: =IF(A123="","",OFFSET(INDIRECT("Round"&Round&"!n1"),$A123,0)) -> 0 | E123: =IF(A123="","",OFFSET(INDIRECT("Round"&Round&"!o1"),$A123,0)) -> 0
A124: 108 | B124: =IF(A124="","",OFFSET(INDIRECT("Round"&Round&"!B1"),$A124,0)) -> 0 | C124: =IF(A124="","",OFFSET(INDIRECT("Round"&Round&"!c1"),$A124,0)) -> 0 | D124: =IF(A124="","",OFFSET(INDIRECT("Round"&Round&"!n1"),$A124,0)) -> 0 | E124: =IF(A124="","",OFFSET(INDIRECT("Round"&Round&"!o1"),$A124,0)) -> 0
A125: 109 | B125: =IF(A125="","",OFFSET(INDIRECT("Round"&Round&"!B1"),$A125,0)) -> 0 | C125: =IF(A125="","",OFFSET(INDIRECT("Round"&Round&"!c1"),$A125,0)) -> 0 | D125: =IF(A125="","",OFFSET(INDIRECT("Round"&Round&"!n1"),$A125,0)) -> 0 | E125: =IF(A125="","",OFFSET(INDIRECT("Round"&Round&"!o1"),$A125,0)) -> 0
A126: 110 | B126: =IF(A126="","",OFFSET(INDIRECT("Round"&Round&"!B1"),$A126,0)) -> 0 | C126: =IF(A126="","",OFFSET(INDIRECT("Round"&Round&"!c1"),$A126,0)) -> 0 | D126: =IF(A126="","",OFFSET(INDIRECT("Round"&Round&"!n1"),$A126,0)) -> 0 | E126: =IF(A126="","",OFFSET(INDIRECT("Round"&Round&"!o1"),$A126,0)) -> 0
A127: 111 | B127: =IF(A127="","",OFFSET(INDIRECT("Round"&Round&"!B1"),$A127,0)) -> 0 | C127: =IF(A127="","",OFFSET(INDIRECT("Round"&Round&"!c1"),$A127,0)) -> 0 | D127: =IF(A127="","",OFFSET(INDIRECT("Round"&Round&"!n1"),$A127,0)) -> 0 | E127: =IF(A127="","",OFFSET(INDIRECT("Round"&Round&"!o1"),$A127,0)) -> 0
A128: 112 | B128: =IF(A128="","",OFFSET(INDIRECT("Round"&Round&"!B1"),$A128,0)) -> 0 | C128: =IF(A128="","",OFFSET(INDIRECT("Round"&Round&"!c1"),$A128,0)) -> 0 | D128: =IF(A128="","",OFFSET(INDIRECT("Round"&Round&"!n1"),$A128,0)) -> 0 | E128: =IF(A128="","",OFFSET(INDIRECT("Round"&Round&"!o1"),$A128,0)) -> 0
B129: =IF(A129="","",OFFSET(INDIRECT("Round"&Round&"!B1"),$A129,0)) ->  | C129: =IF(A129="","",OFFSET(INDIRECT("Round"&Round&"!c1"),$A129,0)) ->  | D129: =IF(A129="","",OFFSET(INDIRECT("Round"&Round&"!n1"),$A129,0)) ->  | E129: =IF(A129="","",OFFSET(INDIRECT("Round"&Round&"!o1"),$A129,0)) -> 
A130: 113 | B130: =IF(A130="","",OFFSET(INDIRECT("Round"&Round&"!B1"),$A130,0)) -> 0 | C130: =IF(A130="","",OFFSET(INDIRECT("Round"&Round&"!c1"),$A130,0)) -> 0 | D130: =IF(A130="","",OFFSET(INDIRECT("Round"&Round&"!n1"),$A130,0)) -> 0 | E130: =IF(A130="","",OFFSET(INDIRECT("Round"&Round&"!o1"),$A130,0)) -> 0
A131: 114 | B131: =IF(A131="","",OFFSET(INDIRECT("Round"&Round&"!B1"),$A131,0)) -> 0 | C131: =IF(A131="","",OFFSET(INDIRECT("Round"&Round&"!c1"),$A131,0)) -> 0 | D131: =IF(A131="","",OFFSET(INDIRECT("Round"&Round&"!n1"),$A131,0)) -> 0 | E131: =IF(A131="","",OFFSET(INDIRECT("Round"&Round&"!o1"),$A131,0)) -> 0
A132: 115 | B132: =IF(A132="","",OFFSET(INDIRECT("Round"&Round&"!B1"),$A132,0)) -> 0 | C132: =IF(A132="","",OFFSET(INDIRECT("Round"&Round&"!c1"),$A132,0)) -> 0 | D132: =IF(A132="","",OFFSET(INDIRECT("Round"&Round&"!n1"),$A132,0)) -> 0 | E132: =IF(A132="","",OFFSET(INDIRECT("Round"&Round&"!o1"),$A132,0)) -> 0
A133: 116 | B133: =IF(A133="","",OFFSET(INDIRECT("Round"&Round&"!B1"),$A133,0)) -> 0 | C133: =IF(A133="","",OFFSET(INDIRECT("Round"&Round&"!c1"),$A133,0)) -> 0 | D133: =IF(A133="","",OFFSET(INDIRECT("Round"&Round&"!n1"),$A133,0)) -> 0 | E133: =IF(A133="","",OFFSET(INDIRECT("Round"&Round&"!o1"),$A133,0)) -> 0
A134: 117 | B134: =IF(A134="","",OFFSET(INDIRECT("Round"&Round&"!B1"),$A134,0)) -> 0 | C134: =IF(A134="","",OFFSET(INDIRECT("Round"&Round&"!c1"),$A134,0)) -> 0 | D134: =IF(A134="","",OFFSET(INDIRECT("Round"&Round&"!n1"),$A134,0)) -> 0 | E134: =IF(A134="","",OFFSET(INDIRECT("Round"&Round&"!o1"),$A134,0)) -> 0
A135: 118 | B135: =IF(A135="","",OFFSET(INDIRECT("Round"&Round&"!B1"),$A135,0)) -> 0 | C135: =IF(A135="","",OFFSET(INDIRECT("Round"&Round&"!c1"),$A135,0)) -> 0 | D135: =IF(A135="","",OFFSET(INDIRECT("Round"&Round&"!n1"),$A135,0)) -> 0 | E135: =IF(A135="","",OFFSET(INDIRECT("Round"&Round&"!o1"),$A135,0)) -> 0
A136: 119 | B136: =IF(A136="","",OFFSET(INDIRECT("Round"&Round&"!B1"),$A136,0)) -> 0 | C136: =IF(A136="","",OFFSET(INDIRECT("Round"&Round&"!c1"),$A136,0)) -> 0 | D136: =IF(A136="","",OFFSET(INDIRECT("Round"&Round&"!n1"),$A136,0)) -> 0 | E136: =IF(A136="","",OFFSET(INDIRECT("Round"&Round&"!o1"),$A136,0)) -> 0
A137: 120 | B137: =IF(A137="","",OFFSET(INDIRECT("Round"&Round&"!B1"),$A137,0)) -> 0 | C137: =IF(A137="","",OFFSET(INDIRECT("Round"&Round&"!c1"),$A137,0)) -> 0 | D137: =IF(A137="","",OFFSET(INDIRECT("Round"&Round&"!n1"),$A137,0)) -> 0 | E137: =IF(A137="","",OFFSET(INDIRECT("Round"&Round&"!o1"),$A137,0)) -> 0
B138: =IF(A138="","",OFFSET(INDIRECT("Round"&Round&"!B1"),$A138,0)) ->  | C138: =IF(A138="","",OFFSET(INDIRECT("Round"&Round&"!c1"),$A138,0)) ->  | D138: =IF(A138="","",OFFSET(INDIRECT("Round"&Round&"!n1"),$A138,0)) ->  | E138: =IF(A138="","",OFFSET(INDIRECT("Round"&Round&"!o1"),$A138,0)) -> 
A139: 121 | B139: =IF(A139="","",OFFSET(INDIRECT("Round"&Round&"!B1"),$A139,0)) -> 0 | C139: =IF(A139="","",OFFSET(INDIRECT("Round"&Round&"!c1"),$A139,0)) -> 0 | D139: =IF(A139="","",OFFSET(INDIRECT("Round"&Round&"!n1"),$A139,0)) -> 0 | E139: =IF(A139="","",OFFSET(INDIRECT("Round"&Round&"!o1"),$A139,0)) -> 0
A140: 122 | B140: =IF(A140="","",OFFSET(INDIRECT("Round"&Round&"!B1"),$A140,0)) -> 0 | C140: =IF(A140="","",OFFSET(INDIRECT("Round"&Round&"!c1"),$A140,0)) -> 0 | D140: =IF(A140="","",OFFSET(INDIRECT("Round"&Round&"!n1"),$A140,0)) -> 0 | E140: =IF(A140="","",OFFSET(INDIRECT("Round"&Round&"!o1"),$A140,0)) -> 0
A141: 123 | B141: =IF(A141="","",OFFSET(INDIRECT("Round"&Round&"!B1"),$A141,0)) -> 0 | C141: =IF(A141="","",OFFSET(INDIRECT("Round"&Round&"!c1"),$A141,0)) -> 0 | D141: =IF(A141="","",OFFSET(INDIRECT("Round"&Round&"!n1"),$A141,0)) -> 0 | E141: =IF(A141="","",OFFSET(INDIRECT("Round"&Round&"!o1"),$A141,0)) -> 0
A142: 124 | B142: =IF(A142="","",OFFSET(INDIRECT("Round"&Round&"!B1"),$A142,0)) -> 0 | C142: =IF(A142="","",OFFSET(INDIRECT("Round"&Round&"!c1"),$A142,0)) -> 0 | D142: =IF(A142="","",OFFSET(INDIRECT("Round"&Round&"!n1"),$A142,0)) -> 0 | E142: =IF(A142="","",OFFSET(INDIRECT("Round"&Round&"!o1"),$A142,0)) -> 0
A143: 125 | B143: =IF(A143="","",OFFSET(INDIRECT("Round"&Round&"!B1"),$A143,0)) -> 0 | C143: =IF(A143="","",OFFSET(INDIRECT("Round"&Round&"!c1"),$A143,0)) -> 0 | D143: =IF(A143="","",OFFSET(INDIRECT("Round"&Round&"!n1"),$A143,0)) -> 0 | E143: =IF(A143="","",OFFSET(INDIRECT("Round"&Round&"!o1"),$A143,0)) -> 0
A144: 126 | B144: =IF(A144="","",OFFSET(INDIRECT("Round"&Round&"!B1"),$A144,0)) -> 0 | C144: =IF(A144="","",OFFSET(INDIRECT("Round"&Round&"!c1"),$A144,0)) -> 0 | D144: =IF(A144="","",OFFSET(INDIRECT("Round"&Round&"!n1"),$A144,0)) -> 0 | E144: =IF(A144="","",OFFSET(INDIRECT("Round"&Round&"!o1"),$A144,0)) -> 0
A145: 127 | B145: =IF(A145="","",OFFSET(INDIRECT("Round"&Round&"!B1"),$A145,0)) -> 0 | C145: =IF(A145="","",OFFSET(INDIRECT("Round"&Round&"!c1"),$A145,0)) -> 0 | D145: =IF(A145="","",OFFSET(INDIRECT("Round"&Round&"!n1"),$A145,0)) -> 0 | E145: =IF(A145="","",OFFSET(INDIRECT("Round"&Round&"!o1"),$A145,0)) -> 0
A146: 128 | B146: =IF(A146="","",OFFSET(INDIRECT("Round"&Round&"!B1"),$A146,0)) -> 0 | C146: =IF(A146="","",OFFSET(INDIRECT("Round"&Round&"!c1"),$A146,0)) -> 0 | D146: =IF(A146="","",OFFSET(INDIRECT("Round"&Round&"!n1"),$A146,0)) -> 0 | E146: =IF(A146="","",OFFSET(INDIRECT("Round"&Round&"!o1"),$A146,0)) -> 0
B147: =IF(A147="","",OFFSET(INDIRECT("Round"&Round&"!B1"),$A147,0)) ->  | C147: =IF(A147="","",OFFSET(INDIRECT("Round"&Round&"!c1"),$A147,0)) ->  | D147: =IF(A147="","",OFFSET(INDIRECT("Round"&Round&"!n1"),$A147,0)) ->  | E147: =IF(A147="","",OFFSET(INDIRECT("Round"&Round&"!o1"),$A147,0)) -> 
A148: 129 | B148: =IF(A148="","",OFFSET(INDIRECT("Round"&Round&"!B1"),$A148,0)) -> 0 | C148: =IF(A148="","",OFFSET(INDIRECT("Round"&Round&"!c1"),$A148,0)) -> 0 | D148: =IF(A148="","",OFFSET(INDIRECT("Round"&Round&"!n1"),$A148,0)) -> 0 | E148: =IF(A148="","",OFFSET(INDIRECT("Round"&Round&"!o1"),$A148,0)) -> 0
A149: 130 | B149: =IF(A149="","",OFFSET(INDIRECT("Round"&Round&"!B1"),$A149,0)) -> 0 | C149: =IF(A149="","",OFFSET(INDIRECT("Round"&Round&"!c1"),$A149,0)) -> 0 | D149: =IF(A149="","",OFFSET(INDIRECT("Round"&Round&"!n1"),$A149,0)) -> 0 | E149: =IF(A149="","",OFFSET(INDIRECT("Round"&Round&"!o1"),$A149,0)) -> 0
A150: 131 | B150: =IF(A150="","",OFFSET(INDIRECT("Round"&Round&"!B1"),$A150,0)) -> 0 | C150: =IF(A150="","",OFFSET(INDIRECT("Round"&Round&"!c1"),$A150,0)) -> 0 | D150: =IF(A150="","",OFFSET(INDIRECT("Round"&Round&"!n1"),$A150,0)) -> 0 | E150: =IF(A150="","",OFFSET(INDIRECT("Round"&Round&"!o1"),$A150,0)) -> 0
A151: 132 | B151: =IF(A151="","",OFFSET(INDIRECT("Round"&Round&"!B1"),$A151,0)) -> 0 | C151: =IF(A151="","",OFFSET(INDIRECT("Round"&Round&"!c1"),$A151,0)) -> 0 | D151: =IF(A151="","",OFFSET(INDIRECT("Round"&Round&"!n1"),$A151,0)) -> 0 | E151: =IF(A151="","",OFFSET(INDIRECT("Round"&Round&"!o1"),$A151,0)) -> 0
A152: 133 | B152: =IF(A152="","",OFFSET(INDIRECT("Round"&Round&"!B1"),$A152,0)) -> 0 | C152: =IF(A152="","",OFFSET(INDIRECT("Round"&Round&"!c1"),$A152,0)) -> 0 | D152: =IF(A152="","",OFFSET(INDIRECT("Round"&Round&"!n1"),$A152,0)) -> 0 | E152: =IF(A152="","",OFFSET(INDIRECT("Round"&Round&"!o1"),$A152,0)) -> 0
A153: 134 | B153: =IF(A153="","",OFFSET(INDIRECT("Round"&Round&"!B1"),$A153,0)) -> 0 | C153: =IF(A153="","",OFFSET(INDIRECT("Round"&Round&"!c1"),$A153,0)) -> 0 | D153: =IF(A153="","",OFFSET(INDIRECT("Round"&Round&"!n1"),$A153,0)) -> 0 | E153: =IF(A153="","",OFFSET(INDIRECT("Round"&Round&"!o1"),$A153,0)) -> 0
A154: 135 | B154: =IF(A154="","",OFFSET(INDIRECT("Round"&Round&"!B1"),$A154,0)) -> 0 | C154: =IF(A154="","",OFFSET(INDIRECT("Round"&Round&"!c1"),$A154,0)) -> 0 | D154: =IF(A154="","",OFFSET(INDIRECT("Round"&Round&"!n1"),$A154,0)) -> 0 | E154: =IF(A154="","",OFFSET(INDIRECT("Round"&Round&"!o1"),$A154,0)) -> 0
A155: 136 | B155: =IF(A155="","",OFFSET(INDIRECT("Round"&Round&"!B1"),$A155,0)) -> 0 | C155: =IF(A155="","",OFFSET(INDIRECT("Round"&Round&"!c1"),$A155,0)) -> 0 | D155: =IF(A155="","",OFFSET(INDIRECT("Round"&Round&"!n1"),$A155,0)) -> 0 | E155: =IF(A155="","",OFFSET(INDIRECT("Round"&Round&"!o1"),$A155,0)) -> 0
B156: =IF(A156="","",OFFSET(INDIRECT("Round"&Round&"!B1"),$A156,0)) ->  | C156: =IF(A156="","",OFFSET(INDIRECT("Round"&Round&"!c1"),$A156,0)) ->  | D156: =IF(A156="","",OFFSET(INDIRECT("Round"&Round&"!n1"),$A156,0)) ->  | E156: =IF(A156="","",OFFSET(INDIRECT("Round"&Round&"!o1"),$A156,0)) -> 
A157: 137 | B157: =IF(A157="","",OFFSET(INDIRECT("Round"&Round&"!B1"),$A157,0)) -> 0 | C157: =IF(A157="","",OFFSET(INDIRECT("Round"&Round&"!c1"),$A157,0)) -> 0 | D157: =IF(A157="","",OFFSET(INDIRECT("Round"&Round&"!n1"),$A157,0)) -> 0 | E157: =IF(A157="","",OFFSET(INDIRECT("Round"&Round&"!o1"),$A157,0)) -> 0
A158: 138 | B158: =IF(A158="","",OFFSET(INDIRECT("Round"&Round&"!B1"),$A158,0)) -> 0 | C158: =IF(A158="","",OFFSET(INDIRECT("Round"&Round&"!c1"),$A158,0)) -> 0 | D158: =IF(A158="","",OFFSET(INDIRECT("Round"&Round&"!n1"),$A158,0)) -> 0 | E158: =IF(A158="","",OFFSET(INDIRECT("Round"&Round&"!o1"),$A158,0)) -> 0
A159: 139 | B159: =IF(A159="","",OFFSET(INDIRECT("Round"&Round&"!B1"),$A159,0)) -> 0 | C159: =IF(A159="","",OFFSET(INDIRECT("Round"&Round&"!c1"),$A159,0)) -> 0 | D159: =IF(A159="","",OFFSET(INDIRECT("Round"&Round&"!n1"),$A159,0)) -> 0 | E159: =IF(A159="","",OFFSET(INDIRECT("Round"&Round&"!o1"),$A159,0)) -> 0
A160: 140 | B160: =IF(A160="","",OFFSET(INDIRECT("Round"&Round&"!B1"),$A160,0)) -> 0 | C160: =IF(A160="","",OFFSET(INDIRECT("Round"&Round&"!c1"),$A160,0)) -> 0 | D160: =IF(A160="","",OFFSET(INDIRECT("Round"&Round&"!n1"),$A160,0)) -> 0 | E160: =IF(A160="","",OFFSET(INDIRECT("Round"&Round&"!o1"),$A160,0)) -> 0
A161: 141 | B161: =IF(A161="","",OFFSET(INDIRECT("Round"&Round&"!B1"),$A161,0)) -> 0 | C161: =IF(A161="","",OFFSET(INDIRECT("Round"&Round&"!c1"),$A161,0)) -> 0 | D161: =IF(A161="","",OFFSET(INDIRECT("Round"&Round&"!n1"),$A161,0)) -> 0 | E161: =IF(A161="","",OFFSET(INDIRECT("Round"&Round&"!o1"),$A161,0)) -> 0
A162: =IF(A161="",A160+1,IF(ROUNDUP(A161/8,0)=A161/8,"",A161+1)) -> 142 | B162: =IF(A162="","",OFFSET(INDIRECT("Round"&Round&"!B1"),$A162,0)) -> 0 | C162: =IF(A162="","",OFFSET(INDIRECT("Round"&Round&"!c1"),$A162,0)) -> 0 | D162: =IF(A162="","",OFFSET(INDIRECT("Round"&Round&"!n1"),$A162,0)) -> 0 | E162: =IF(A162="","",OFFSET(INDIRECT("Round"&Round&"!o1"),$A162,0)) -> 0
A163: 143 | B163: =IF(A163="","",OFFSET(INDIRECT("Round"&Round&"!B1"),$A163,0)) -> 0 | C163: =IF(A163="","",OFFSET(INDIRECT("Round"&Round&"!c1"),$A163,0)) -> 0 | D163: =IF(A163="","",OFFSET(INDIRECT("Round"&Round&"!n1"),$A163,0)) -> 0 | E163: =IF(A163="","",OFFSET(INDIRECT("Round"&Round&"!o1"),$A163,0)) -> 0
A164: 144 | B164: =IF(A164="","",OFFSET(INDIRECT("Round"&Round&"!B1"),$A164,0)) -> 0 | C164: =IF(A164="","",OFFSET(INDIRECT("Round"&Round&"!c1"),$A164,0)) -> 0 | D164: =IF(A164="","",OFFSET(INDIRECT("Round"&Round&"!n1"),$A164,0)) -> 0 | E164: =IF(A164="","",OFFSET(INDIRECT("Round"&Round&"!o1"),$A164,0)) -> 0
B165: =IF(A165="","",OFFSET(INDIRECT("Round"&Round&"!B1"),$A165,0)) ->  | C165: =IF(A165="","",OFFSET(INDIRECT("Round"&Round&"!c1"),$A165,0)) ->  | D165: =IF(A165="","",OFFSET(INDIRECT("Round"&Round&"!n1"),$A165,0)) ->  | E165: =IF(A165="","",OFFSET(INDIRECT("Round"&Round&"!o1"),$A165,0)) -> 
A166: 145 | B166: =IF(A166="","",OFFSET(INDIRECT("Round"&Round&"!B1"),$A166,0)) -> 0 | C166: =IF(A166="","",OFFSET(INDIRECT("Round"&Round&"!c1"),$A166,0)) -> 0 | D166: =IF(A166="","",OFFSET(INDIRECT("Round"&Round&"!n1"),$A166,0)) -> 0 | E166: =IF(A166="","",OFFSET(INDIRECT("Round"&Round&"!o1"),$A166,0)) -> 0
A167: 146 | B167: =IF(A167="","",OFFSET(INDIRECT("Round"&Round&"!B1"),$A167,0)) -> 0 | C167: =IF(A167="","",OFFSET(INDIRECT("Round"&Round&"!c1"),$A167,0)) -> 0 | D167: =IF(A167="","",OFFSET(INDIRECT("Round"&Round&"!n1"),$A167,0)) -> 0 | E167: =IF(A167="","",OFFSET(INDIRECT("Round"&Round&"!o1"),$A167,0)) -> 0
A168: 147 | B168: =IF(A168="","",OFFSET(INDIRECT("Round"&Round&"!B1"),$A168,0)) -> 0 | C168: =IF(A168="","",OFFSET(INDIRECT("Round"&Round&"!c1"),$A168,0)) -> 0 | D168: =IF(A168="","",OFFSET(INDIRECT("Round"&Round&"!n1"),$A168,0)) -> 0 | E168: =IF(A168="","",OFFSET(INDIRECT("Round"&Round&"!o1"),$A168,0)) -> 0
A169: 148 | B169: =IF(A169="","",OFFSET(INDIRECT("Round"&Round&"!B1"),$A169,0)) -> 0 | C169: =IF(A169="","",OFFSET(INDIRECT("Round"&Round&"!c1"),$A169,0)) -> 0 | D169: =IF(A169="","",OFFSET(INDIRECT("Round"&Round&"!n1"),$A169,0)) -> 0 | E169: =IF(A169="","",OFFSET(INDIRECT("Round"&Round&"!o1"),$A169,0)) -> 0
A170: 149 | B170: =IF(A170="","",OFFSET(INDIRECT("Round"&Round&"!B1"),$A170,0)) -> 0 | C170: =IF(A170="","",OFFSET(INDIRECT("Round"&Round&"!c1"),$A170,0)) -> 0 | D170: =IF(A170="","",OFFSET(INDIRECT("Round"&Round&"!n1"),$A170,0)) -> 0 | E170: =IF(A170="","",OFFSET(INDIRECT("Round"&Round&"!o1"),$A170,0)) -> 0
A171: 150 | B171: =IF(A171="","",OFFSET(INDIRECT("Round"&Round&"!B1"),$A171,0)) -> 0 | C171: =IF(A171="","",OFFSET(INDIRECT("Round"&Round&"!c1"),$A171,0)) -> 0 | D171: =IF(A171="","",OFFSET(INDIRECT("Round"&Round&"!n1"),$A171,0)) -> 0 | E171: =IF(A171="","",OFFSET(INDIRECT("Round"&Round&"!o1"),$A171,0)) -> 0
A172: 151 | B172: =IF(A172="","",OFFSET(INDIRECT("Round"&Round&"!B1"),$A172,0)) -> 0 | C172: =IF(A172="","",OFFSET(INDIRECT("Round"&Round&"!c1"),$A172,0)) -> 0 | D172: =IF(A172="","",OFFSET(INDIRECT("Round"&Round&"!n1"),$A172,0)) -> 0 | E172: =IF(A172="","",OFFSET(INDIRECT("Round"&Round&"!o1"),$A172,0)) -> 0
A173: 152 | B173: =IF(A173="","",OFFSET(INDIRECT("Round"&Round&"!B1"),$A173,0)) -> 0 | C173: =IF(A173="","",OFFSET(INDIRECT("Round"&Round&"!c1"),$A173,0)) -> 0 | D173: =IF(A173="","",OFFSET(INDIRECT("Round"&Round&"!n1"),$A173,0)) -> 0 | E173: =IF(A173="","",OFFSET(INDIRECT("Round"&Round&"!o1"),$A173,0)) -> 0
B174: =IF(A174="","",OFFSET(INDIRECT("Round"&Round&"!B1"),$A174,0)) ->  | C174: =IF(A174="","",OFFSET(INDIRECT("Round"&Round&"!c1"),$A174,0)) ->  | D174: =IF(A174="","",OFFSET(INDIRECT("Round"&Round&"!n1"),$A174,0)) ->  | E174: =IF(A174="","",OFFSET(INDIRECT("Round"&Round&"!o1"),$A174,0)) -> 
A175: 153 | B175: =IF(A175="","",OFFSET(INDIRECT("Round"&Round&"!B1"),$A175,0)) -> 0 | C175: =IF(A175="","",OFFSET(INDIRECT("Round"&Round&"!c1"),$A175,0)) -> 0 | D175: =IF(A175="","",OFFSET(INDIRECT("Round"&Round&"!n1"),$A175,0)) -> 0 | E175: =IF(A175="","",OFFSET(INDIRECT("Round"&Round&"!o1"),$A175,0)) -> 0
A176: 154 | B176: =IF(A176="","",OFFSET(INDIRECT("Round"&Round&"!B1"),$A176,0)) -> 0 | C176: =IF(A176="","",OFFSET(INDIRECT("Round"&Round&"!c1"),$A176,0)) -> 0 | D176: =IF(A176="","",OFFSET(INDIRECT("Round"&Round&"!n1"),$A176,0)) -> 0 | E176: =IF(A176="","",OFFSET(INDIRECT("Round"&Round&"!o1"),$A176,0)) -> 0
A177: 155 | B177: =IF(A177="","",OFFSET(INDIRECT("Round"&Round&"!B1"),$A177,0)) -> 0 | C177: =IF(A177="","",OFFSET(INDIRECT("Round"&Round&"!c1"),$A177,0)) -> 0 | D177: =IF(A177="","",OFFSET(INDIRECT("Round"&Round&"!n1"),$A177,0)) -> 0 | E177: =IF(A177="","",OFFSET(INDIRECT("Round"&Round&"!o1"),$A177,0)) -> 0
A178: 156 | B178: =IF(A178="","",OFFSET(INDIRECT("Round"&Round&"!B1"),$A178,0)) -> 0 | C178: =IF(A178="","",OFFSET(INDIRECT("Round"&Round&"!c1"),$A178,0)) -> 0 | D178: =IF(A178="","",OFFSET(INDIRECT("Round"&Round&"!n1"),$A178,0)) -> 0 | E178: =IF(A178="","",OFFSET(INDIRECT("Round"&Round&"!o1"),$A178,0)) -> 0
A179: 157 | B179: =IF(A179="","",OFFSET(INDIRECT("Round"&Round&"!B1"),$A179,0)) -> 0 | C179: =IF(A179="","",OFFSET(INDIRECT("Round"&Round&"!c1"),$A179,0)) -> 0 | D179: =IF(A179="","",OFFSET(INDIRECT("Round"&Round&"!n1"),$A179,0)) -> 0 | E179: =IF(A179="","",OFFSET(INDIRECT("Round"&Round&"!o1"),$A179,0)) -> 0
A180: 158 | B180: =IF(A180="","",OFFSET(INDIRECT("Round"&Round&"!B1"),$A180,0)) -> 0 | C180: =IF(A180="","",OFFSET(INDIRECT("Round"&Round&"!c1"),$A180,0)) -> 0 | D180: =IF(A180="","",OFFSET(INDIRECT("Round"&Round&"!n1"),$A180,0)) -> 0 | E180: =IF(A180="","",OFFSET(INDIRECT("Round"&Round&"!o1"),$A180,0)) -> 0
A181: 159 | B181: =IF(A181="","",OFFSET(INDIRECT("Round"&Round&"!B1"),$A181,0)) -> 0 | C181: =IF(A181="","",OFFSET(INDIRECT("Round"&Round&"!c1"),$A181,0)) -> 0 | D181: =IF(A181="","",OFFSET(INDIRECT("Round"&Round&"!n1"),$A181,0)) -> 0 | E181: =IF(A181="","",OFFSET(INDIRECT("Round"&Round&"!o1"),$A181,0)) -> 0
A182: 160 | B182: =IF(A182="","",OFFSET(INDIRECT("Round"&Round&"!B1"),$A182,0)) -> 0 | C182: =IF(A182="","",OFFSET(INDIRECT("Round"&Round&"!c1"),$A182,0)) -> 0 | D182: =IF(A182="","",OFFSET(INDIRECT("Round"&Round&"!n1"),$A182,0)) -> 0 | E182: =IF(A182="","",OFFSET(INDIRECT("Round"&Round&"!o1"),$A182,0)) -> 0
B183: =IF(A183="","",OFFSET(INDIRECT("Round"&Round&"!B1"),$A183,0)) ->  | C183: =IF(A183="","",OFFSET(INDIRECT("Round"&Round&"!c1"),$A183,0)) ->  | D183: =IF(A183="","",OFFSET(INDIRECT("Round"&Round&"!n1"),$A183,0)) ->  | E183: =IF(A183="","",OFFSET(INDIRECT("Round"&Round&"!o1"),$A183,0)) -> 

Sheet GroupMatrix
B1: Belgium | C1: Denmark | D1: England | E1: Finland | F1: France | G1: Germany | H1: Hungary | I1: Italy | J1: Norway | K1: Poland | L1: Scotland | M1: Spain | N1: Sweden | O1: Switzerland | P1: Viking | Q1: Wales
A2: Belgium | D2: Rd 1 - 7
A3: Denmark | J3: Rd 1 - 212
A4: England | B4: Rd 1 - 209
A5: Finland | Q5: Rd 1 - 209
A6: France | L6: Rd 1 - 209
A7: Germany | O7: Rd 1 - 213
A8: Hungary | M8: Rd 1 - 209
A9: Italy | K9: Rd 1 - 108
A10: Norway | C10: Rd 1 - 4
A11: Poland | I11: Rd 1 - 108
A12: Scotland | F12: Rd 1 - 7
A13: Spain | H13: Rd 1 - 7
A14: Sweden | P14: Rd 1 - 6
A15: Switzerland | G15: Rd 1 - 3
A16: Viking | N16: Rd 1 - 210
A17: Wales | E17: Rd 1 - 7

Sheet Matrix
B1: Niebling | C1: PurpleGoo | D1: Mubo | E1: Dirold | F1: The_Ref | G1: Tripleskull | H1: MissSweden | I1: Topper | J1: Joemanji | K1: edheim | L1: FrankPedersen | M1: Obeliz | N1: Northernknight | O1: Woete | P1: RoterSternHochdahl | Q1: Jonny_Kanone | R1: Itzla | S1: Farina | T1: Garrick | U1: Dark Duke | V1: 20Phoenix | W1: Malodoror | X1: Bouzzy | Y1: DocMaxx | Z1: BlackOrc | AA1: Kaltenland | AB1: Shawass | AC1: Malasnoticias | AD1: Macabeo | AE1: Corwin | AF1: SFisher91 | AG1: Phoenix11 | AH1: Wolio | AI1: Reszka | AJ1: Slimaq | AK1: Skuld | AL1: Balder | AM1: Dionysian | AN1: Harza | AO1: Idroj | AP1: Faccko | AQ1: MacWitt | AR1: Pellevin | AS1: Araznaroth | AT1: JimJimany | AU1: zulu | AV1: mynock | AW1: Strider84 | AX1: Phifoe | AY1: JohnnyD | AZ1: Dekra1979 | BA1: straume | BB1: Barry | BC1: Tactel | BD1: Pidpad | BE1: Elrik | BF1: Simon_ACP | BG1: sann0638 | BH1: Goss | BI1: Muadib | BJ1: swifty | BK1: Matte8 | BL1: Joanet | BM1: SpecialOne | BN1: Prince | BO1: GreatWhiteHope | BP1: Bernuz | BQ1: MadeofWelsh | BR1: Tank | BS1: BeerBeer | BT1: ratogre | BU1: BudWiser | BV1: Gros Nain | BW1: Warrior1980 | BX1: Juniooor7 | BY1: Madmatt13 | BZ1: jopotzuki | CA1: J-Ho | CB1: Verrinho | CC1: Valen | CD1: Lycos | CE1: Domingo | CF1: Mufflo | CG1: andydavo | CH1: Geggster | CI1: Arioso | CJ1: Gaunab | CK1: Alex05 | CL1: Beppe | CM1: Melisqus | CN1: Dragons | CO1: Jaqra | CP1: Harti | CQ1: Favi | CR1: Spartako | CS1: DonShula | CT1: HumptyTrump | CU1: Purrelito | CV1: nonumber | CW1: Driesfield | CX1: kfoged | CY1: Podfrey | CZ1: valkohukka | DA1: Skoberget | DB1: brocCooli | DC1: Ploppy_McPloppy | DD1: BiBi | DE1: Matt le fou | DF1: Candlejack | DG1: Purdindas | DH1: JJ | DI1: Wilzif | DJ1: noraal | DK1: cz | DL1: Loki | DM1: gninocker | DN1: Mewash | DO1: Leonek | DP1: JamesEs | DQ1: Duke_Luthor_Von_Hawkfire | DR1: Jokaero | DS1: Duckwing | DT1: Justicium | DU1: Liam | DV1: Endalos | DW1: bothun | DX1: Inforthepain | DY1: sigu70
A2: Niebling | L2: R1, 2 - 0 | CW2: R1, 1 - 0 | CX2: R5, 1 - 0 | CY2: R1, 1 - 0 | CZ2: R3, 0 - 1 | DB2: R4, 1 - 0 | DC2: R6, 1 - 0 | DE2: R1, 0.5 - 0.5 | DF2: R4, 4 - 18 | DG2: R2, 0 - 1 | DI2: R4, 1 - 0 | DK2: R5, 0 - 1 | DL2: R7, 0.5 - 0.5 | DM2: R1, 1 - 0 | DN2: R8, 1 - 0 | DO2: R3, 0 - 1 | DP2: R3, 1 - 0 | DQ2: R3, 23 - 5 | DS2: R3, 0 - 1 | DU2: R1, 0 - 1 | DX2: R3, 1 - 0 | DY2: R5, 1 - 0
A3: PurpleGoo | CX3: R1, 0.5 - 0.5 | CZ3: R4, 0.5 - 0.5 | DA3: R5, 0.5 - 0.5 | DB3: R2, 0 - 1 | DC3: R1, 1 - 0 | DF3: R4, 0.5 - 0.5 | DH3: R3, 1 - 0 | DJ3: R1, 0.5 - 0.5 | DL3: R3, 0.5 - 0.5 | DM3: R1, 2 - 0 | DQ3: R1, 1 - 0 | DR3: R3, 0 - 1 | DS3: R5, 1 - 0 | DV3: R4, 5 - 22 | DW3: R6, 0 - 1
A4: Mubo | AS4: R1, 2 - 0 | CW4: R1, 0.5 - 0.5 | CX4: R4, 0.5 - 0.5 | CY4: R1, 0 - 1 | CZ4: R2, 0.5 - 0.5 | DB4: R3, 0 - 1 | DC4: R3, 1 - 0 | DD4: R4, 0 - 1 | DE4: R4, 0.5 - 0.5 | DF4: R5, 3 - 20 | DG4: R4, 0 - 1 | DJ4: R5, 0 - 1 | DK4: R6, 1 - 0 | DL4: R6, 1 - 0 | DM4: R1, 1 - 0 | DN4: R3, 1 - 0 | DO4: R2, 0 - 1 | DP4: R1, 0.5 - 0.5 | DQ4: R2, 0 - 1 | DT4: R2, 0 - 1 | DU4: R2, 22 - 6 | DV4: R5, 0.5 - 0.5 | DW4: R5, 1 - 0 | DX4: R2, 0 - 1
A5: Dirold | AI5: R1, 1 - 1 | CW5: R4, 0 - 1 | CX5: R5, 0.5 - 0.5 | CY5: R1, 0 - 1 | CZ5: R1, 1 - 0 | DA5: R1, 0.5 - 0.5 | DB5: R2, 0 - 1 | DC5: R4, 0.5 - 0.5 | DD5: R3, 0.5 - 0.5 | DE5: R7, 1 - 0 | DH5: R6, 0 - 1 | DI5: R1, 0 - 1 | DJ5: R3, 0.5 - 0.5 | DK5: R6, 0.5 - 0.5 | DL5: R4, 0.5 - 0.5 | DM5: R1, 1 - 0 | DN5: R4, 0.5 - 0.5 | DP5: R2, 1 - 0 | DQ5: R1, 0.5 - 0.5 | DR5: R3, 0 - 1 | DT5: R3, 21 - 4 | DU5: R2, 0 - 1 | DV5: R6, 0.5 - 0.5 | DX5: R3, 1 - 0 | DY5: R6, 19 - 3
A6: The_Ref | BM6: R1, 0 - 2 | CY6: R5, 0 - 1 | CZ6: R2, 1 - 0 | DA6: R1, 0.5 - 0.5 | DB6: R2, 0.5 - 0.5 | DD6: R1, 0 - 1 | DE6: R4, 1 - 0 | DF6: R5, 1 - 0 | DG6: R4, 0 - 1 | DH6: R1, 0 - 1 | DI6: R5, 0 - 1 | DJ6: R3, 0.5 - 0.5 | DK6: R1, 0 - 1 | DL6: R1, 0.5 - 0.5 | DO6: R5, 0 - 1 | DP6: R1, 0.5 - 0.5 | DS6: R6, 1 - 0 | DT6: R3, 1 - 0 | DW6: R2, 1 - 0 | DY6: R6, 0 - 1
A7: Tripleskull | BO7: R1, 2 - 0 | CW7: R5, 1 - 0 | CX7: R1, 0 - 1 | CY7: R5, 0.5 - 0.5 | CZ7: R4, 0 - 1 | DA7: R6, 0.5 - 0.5 | DC7: R4, 0.5 - 0.5 | DE7: R4, 0.5 - 0.5 | DF7: R6, 0.5 - 0.5 | DG7: R1, 0.5 - 0.5 | DH7: R3, 1 - 0 | DI7: R3, 1 - 0 | DJ7: R6, 0.5 - 0.5 | DK7: R3, 0.5 - 0.5 | DL7: R2, 1 - 0 | DM7: R2, 1 - 0 | DN7: R3, 0.5 - 0.5 | DO7: R1, 1 - 0 | DP7: R7, 1 - 0 | DQ7: R3, 1 - 0 | DR7: R5, 0.5 - 0.5 | DU7: R3, 1 - 0 | DV7: R2, 1 - 0 | DW7: R5, 0 - 1
A8: MissSweden | CW8: R1, 1 - 0 | CY8: R4, 0 - 1 | CZ8: R1, 1 - 0 | DA8: R3, 1 - 0 | DB8: R1, 1 - 0 | DD8: R5, 0.5 - 0.5 | DF8: R3, 0 - 1 | DG8: R7, 0 - 1 | DH8: R4, 1 - 0 | DJ8: R2, 1 - 0 | DL8: R1, 0 - 1 | DM8: R5, 1 - 0 | DN8: R1, 1 - 0 | DO8: R2, 0 - 1 | DQ8: R1, 0.5 - 0.5 | DT8: R7, 0 - 1 | DV8: R1, 0 - 2 | DW8: R5, 0.5 - 0.5 | DY8: R2, 0 - 1
A9: Topper | AU9: R1, 2 - 0 | CW9: R1, 0 - 1 | CX9: R1, 1 - 0 | CY9: R1, 0.5 - 0.5 | CZ9: R5, 0 - 1 | DC9: R3, 0 - 1 | DD9: R7, 0.5 - 0.5 | DF9: R1, 1 - 0 | DH9: R4, 0 - 1 | DI9: R4, 0 - 1 | DJ9: R1, 0 - 1 | DK9: R2, 1 - 0 | DM9: R3, 0 - 1 | DO9: R2, 0.5 - 0.5 | DS9: R2, 1 - 0 | DT9: R4, 19 - 4 | DU9: R5, 0.5 - 0.5 | DV9: R2, 0.5 - 0.5 | DX9: R6, 0.5 - 0.5 | DY9: R3, 1 - 0
A10: Joemanji | AZ10: R1, 1 - 1 | CW10: R4, 1 - 0 | CY10: R1, 0.5 - 0.5 | CZ10: R3, 0 - 1 | DA10: R1, 1 - 0 | DB10: R2, 1 - 0 | DC10: R2, 0.5 - 0.5 | DD10: R2, 1 - 0 | DE10: R2, 1 - 0 | DF10: R1, 0.5 - 0.5 | DG10: R1, 0.5 - 0.5 | DH10: R2, 0.5 - 0.5 | DI10: R5, 0 - 1 | DK10: R1, 1 - 0 | DL10: R6, 1 - 0 | DM10: R6, 0.5 - 0.5 | DP10: R1, 0.5 - 0.5 | DQ10: R2, 0 - 1 | DR10: R3, 0.5 - 0.5 | DS10: R1, 0.5 - 0.5 | DT10: R1, 0.5 - 0.5 | DV10: R3, 1 - 0 | DW10: R4, 1 - 0 | DX10: R5, 0.5 - 0.5 | DY10: R1, 1 - 0
A11: edheim | AF11: R1, 1 - 1 | CX11: R1, 1 - 0 | CY11: R1, 1 - 0 | CZ11: R4, 1 - 0 | DA11: R1, 0 - 1 | DB11: R2, 1 - 0 | DC11: R1, 0.5 - 0.5 | DD11: R6, 0.5 - 0.5 | DE11: R1, 0 - 1 | DF11: R3, 1 - 0 | DH11: R2, 0.5 - 0.5 | DI11: R2, 0.5 - 0.5 | DJ11: R1, 0.5 - 0.5 | DK11: R2, 1 - 0 | DL11: R6, 1 - 0 | DM11: R7, 0.5 - 0.5 | DN11: R1, 0.5 - 0.5 | DP11: R2, 1 - 0 | DS11: R5, 1 - 0 | DT11: R5, 0 - 1 | DV11: R1, 0.5 - 0.5 | DW11: R1, 0 - 1 | DX11: R1, 0.5 - 0.5 | DY11: R4, 1 - 0
A12: FrankPedersen | B12: R1, 0 - 2 | CW12: R1, 1 - 0 | CY12: R8, 0 - 1 | CZ12: R1, 0.5 - 0.5 | DA12: R3, 1 - 0 | DB12: R3, 0 - 1 | DC12: R3, 0.5 - 0.5 | DD12: R1, 1 - 0 | DF12: R2, 0.5 - 0.5 | DG12: R2, 1 - 0 | DH12: R1, 1 - 0 | DJ12: R4, 20 - 3 | DK12: R2, 1 - 0 | DM12: R2, 1 - 0 | DO12: R1, 0.5 - 0.5 | DR12: R1, 0.5 - 0.5 | DT12: R3, 1 - 0 | DU12: R1, 1 - 0 | DW12: R1, 0 - 1
A13: Obeliz | CW13: R4, 0.5 - 0.5 | CZ13: R1, 0.5 - 0.5 | DA13: R1, 0.5 - 0.5 | DB13: R1, 0 - 1 | DC13: R2, 0.5 - 0.5 | DD13: R4, 0 - 1 | DE13: R3, 0 - 1 | DF13: R2, 0 - 1 | DG13: R3, 0.5 - 0.5 | DH13: R2, 0.5 - 0.5 | DJ13: R2, 1 - 0 | DK13: R1, 1 - 1 | DL13: R8, 0.5 - 0.5 | DM13: R1, 1 - 0 | DP13: R4, 0 - 1 | DQ13: R2, 0 - 1 | DR13: R3, 0.5 - 0.5 | DU13: R4, 0 - 1 | DV13: R5, 0 - 1 | DW13: R1, 1 - 0 | DX13: R5, 0 - 1 | DY13: R1, 1 - 0
A14: Northernknight | CA14: R1, 1 - 1 | CX14: R2, 0 - 1 | CZ14: R1, 0.5 - 0.5 | DA14: R4, 0 - 1 | DC14: R1, 0 - 1 | DD14: R6, 1 - 0 | DE14: R2, 1 - 0 | DI14: R2, 1 - 0 | DJ14: R2, 6 - 22 | DK14: R6, 0.5 - 0.5 | DN14: R5, 0.5 - 0.5 | DO14: R7, 0 - 1 | DP14: R2, 0 - 1 | DQ14: R1, 1 - 0 | DR14: R5, 0.5 - 0.5 | DT14: R1, 0.5 - 0.5 | DU14: R1, 0.5 - 0.5 | DV14: R6, 20 - 3 | DW14: R1, 0 - 1 | DX14: R1, 0 - 1
A15: Woete | CW15: R1, 0 - 1 | CX15: R1, 0.5 - 0.5 | CY15: R1, 2 - 0 | DB15: R3, 0.5 - 0.5 | DC15: R2, 1 - 0 | DE15: R3, 1 - 0 | DF15: R1, 0 - 1 | DG15: R1, 0.5 - 0.5 | DI15: R2, 1 - 0 | DJ15: R1, 0.5 - 0.5 | DK15: R3, 0.5 - 0.5 | DL15: R1, 1 - 0 | DN15: R2, 0.5 - 0.5 | DO15: R2, 0 - 1 | DP15: R6, 0 - 1 | DR15: R1, 0.5 - 0.5 | DT15: R4, 0 - 1 | DV15: R1, 0.5 - 0.5 | DW15: R3, 1 - 0 | DX15: R8, 0 - 1
A16: RoterSternHochdahl | AX16: R1, 2 - 0 | CW16: R1, 0.5 - 0.5 | CX16: R4, 0 - 1 | CY16: R1, 0.5 - 0.5 | DA16: R2, 0 - 1 | DB16: R1, 0 - 1 | DC16: R2, 19 - 3 | DD16: R2, 0 - 1 | DE16: R2, 1 - 0 | DF16: R2, 1 - 0 | DG16: R2, 1 - 0 | DH16: R1, 1 - 0 | DI16: R3, 0 - 1 | DL16: R5, 0.5 - 0.5 | DM16: R2, 0 - 1 | DN16: R1, 1 - 0 | DO16: R2, 1 - 0 | DP16: R7, 1 - 0 | DR16: R7, 1 - 0 | DS16: R1, 0.5 - 0.5 | DT16: R1, 1 - 0 | DU16: R1, 0.5 - 0.5 | DX16: R3, 0.5 - 0.5
A17: Jonny_Kanone | BE17: R1, 1 - 1 | CW17: R1, 1 - 0 | CX17: R1, 0.5 - 0.5 | CY17: R4, 0.5 - 0.5 | DA17: R1, 0 - 1 | DB17: R3, 0.5 - 0.5 | DD17: R2, 0.5 - 0.5 | DI17: R1, 0 - 1 | DJ17: R4, 0 - 1 | DK17: R1, 1 - 0 | DL17: R2, 0.5 - 0.5 | DO17: R1, 0.5 - 0.5 | DP17: R1, 0 - 1 | DS17: R1, 1 - 0 | DT17: R2, 0 - 1 | DU17: R1, 1 - 0 | DV17: R1, 1 - 0 | DW17: R5, 0.5 - 0.5
A18: Itzla | BC18: R1, 2 - 0 | CW18: R2, 0 - 1 | CX18: R2, 0.5 - 0.5 | CY18: R6, 1 - 0 | CZ18: R1, 1 - 0 | DA18: R1, 1 - 0 | DB18: R3, 0 - 1 | DC18: R4, 1 - 0 | DD18: R6, 0.5 - 0.5 | DE18: R1, 0 - 1 | DF18: R4, 1 - 0 | DH18: R1, 1 - 0 | DI18: R2, 0.5 - 0.5 | DL18: R1, 0 - 1 | DM18: R3, 1 - 0 | DN18: R3, 1 - 0 | DO18: R1, 0.5 - 0.5 | DQ18: R2, 0 - 1 | DT18: R2, 1 - 0 | DU18: R1, 0 - 1 | DX18: R1, 0.5 - 0.5 | DY18: R2, 12 - 10
A19: Farina | CE19: R1, 0 - 2 | CW19: R2, 0 - 1 | CX19: R2, 1 - 0 | CZ19: R2, 1 - 0 | DA19: R3, 0.5 - 0.5 | DC19: R1, 0 - 1 | DE19: R5, 0 - 1 | DF19: R4, 0.5 - 0.5 | DG19: R2, 0 - 1 | DI19: R3, 1 - 0 | DK19: R4, 0 - 1 | DM19: R1, 1 - 0 | DN19: R1, 0.5 - 0.5 | DO19: R2, 0 - 1 | DP19: R1, 1 - 0 | DQ19: R1, 0 - 1 | DR19: R5, 0.5 - 0.5 | DT19: R1, 0 - 1 | DU19: R5, 0 - 1 | DV19: R1, 1 - 0 | DY19: R3, 1 - 0
A20: Garrick | CW20: R3, 1 - 0 | CX20: R3, 0.5 - 0.5 | CY20: R6, 1 - 0 | CZ20: R5, 1 - 0 | DD20: R1, 1 - 1 | DE20: R3, 1 - 0 | DF20: R2, 0 - 1 | DG20: R4, 0.5 - 0.5 | DH20: R5, 1 - 0 | DI20: R3, 1 - 0 | DJ20: R3, 1 - 0 | DK20: R1, 0.5 - 0.5 | DL20: R2, 0.5 - 0.5 | DM20: R4, 0.5 - 0.5 | DN20: R1, 0.5 - 0.5 | DO20: R4, 0 - 1 | DT20: R1, 0.5 - 0.5 | DV20: R1, 0 - 1 | DW20: R2, 1 - 0 | DX20: R3, 1 - 0
A21: Dark Duke | CQ21: R1, 1 - 1 | CW21: R5, 1 - 0 | CX21: R3, 0 - 1 | CY21: R7, 1 - 0 | CZ21: R6, 0 - 1 | DA21: R4, 1 - 0 | DC21: R1, 0.5 - 0.5 | DD21: R4, 0.5 - 0.5 | DF21: R5, 1 - 0 | DG21: R3, 0.5 - 0.5 | DH21: R4, 0 - 1 | DI21: R1, 1 - 0 | DJ21: R5, 0.5 - 0.5 | DK21: R2, 1 - 0 | DL21: R1, 1 - 0 | DN21: R5, 0 - 1 | DO21: R1, 1 - 0 | DP21: R1, 0.5 - 0.5 | DS21: R2, 0 - 1 | DU21: R6, 1 - 0 | DV21: R1, 0.5 - 0.5 | DW21: R1, 1 - 0 | DY21: R2, 1 - 0
A22: 20Phoenix | BT22: R1, 1 - 1 | CW22: R3, 22 - 4 | CX22: R2, 1 - 0 | CY22: R2, 0 - 1 | DA22: R1, 0.5 - 0.5 | DB22: R2, 1 - 0 | DC22: R1, 0 - 1 | DF22: R3, 0 - 1 | DH22: R4, 1 - 0 | DI22: R3, 1 - 0 | DJ22: R1, 1 - 0 | DK22: R3, 0.5 - 0.5 | DL22: R5, 0.5 - 0.5 | DM22: R3, 0.5 - 0.5 | DP22: R4, 1 - 0 | DQ22: R1, 0 - 1 | DR22: R1, 0.5 - 0.5 | DS22: R2, 1 - 0 | DU22: R1, 0 - 1 | DY22: R1, 1 - 0
A23: Malodoror | CD23: R1, 2 - 0 | CW23: R4, 1 - 0 | CX23: R1, 0 - 1 | CY23: R3, 0.5 - 0.5 | CZ23: R2, 1 - 0 | DA23: R5, 0 - 1 | DB23: R1, 0.5 - 0.5 | DD23: R5, 0 - 1 | DE23: R2, 0 - 1 | DF23: R6, 0 - 1 | DH23: R3, 0 - 1 | DJ23: R1, 0.5 - 0.5 | DK23: R1, 1 - 0 | DL23: R2, 0 - 1 | DM23: R1, 0.5 - 0.5 | DN23: R2, 0 - 1 | DO23: R1, 0.5 - 0.5 | DP23: R3, 1 - 0 | DQ23: R4, 0.5 - 0.5 | DR23: R1, 1 - 0 | DU23: R5, 0.5 - 0.5 | DV23: R2, 0.5 - 0.5 | DX23: R1, 1 - 0
A24: Bouzzy | CC24: R1, 2 - 0 | CY24: R4, 1 - 0 | CZ24: R3, 0.5 - 0.5 | DA24: R3, 0.5 - 0.5 | DB24: R6, 1 - 0 | DD24: R2, 0 - 1 | DE24: R3, 0 - 1 | DF24: R3, 1 - 0 | DH24: R4, 0.5 - 0.5 | DI24: R1, 1 - 0 | DJ24: R2, 0 - 1 | DK24: R3, 1 - 0 | DL24: R1, 0.5 - 0.5 | DM24: R1, 1 - 0 | DO24: R2, 0.5 - 0.5 | DP24: R1, 0.5 - 0.5 | DQ24: R3, 0.5 - 0.5 | DR24: R2, 0.5 - 0.5 | DS24: R1, 0 - 1 | DU24: R2, 0 - 1 | DW24: R1, 1 - 0 | DX24: R5, 0 - 1 | DY24: R4, 1 - 0
A25: DocMaxx | AD25: R1, 2 - 0 | CW25: R3, 0 - 1 | CX25: R4, 0.5 - 0.5 | CY25: R5, 0 - 1 | CZ25: R3, 0.5 - 0.5 | DA25: R2, 0 - 1 | DB25: R4, 0 - 1 | DC25: R2, 0.5 - 0.5 | DD25: R3, 0 - 1 | DG25: R5, 1 - 0 | DH25: R1, 1 - 0 | DJ25: R1, 1 - 0 | DL25: R3, 1 - 0 | DM25: R2, 1 - 0 | DN25: R2, 0 - 1 | DP25: R1, 0.5 - 0.5 | DQ25: R4, 0.5 - 0.5 | DS25: R1, 0.5 - 0.5 | DT25: R1, 0 - 1 | DX25: R2, 0.5 - 0.5
A26: BlackOrc | AO26: R1, 2 - 0 | CW26: R1, 1 - 0 | CX26: R2, 0 - 1 | DC26: R3, 0 - 1 | DD26: R1, 1 - 0 | DE26: R2, 1 - 0 | DG26: R3, 1 - 0 | DJ26: R1, 1 - 0 | DL26: R5, 1 - 0 | DM26: R3, 0.5 - 0.5 | DO26: R2, 1 - 0 | DQ26: R3, 0 - 1 | DR26: R1, 0.5 - 0.5 | DT26: R6, 0 - 1 | DU26: R2, 0 - 1 | DV26: R1, 1 - 0 | DX26: R1, 0.5 - 0.5 | DY26: R2, 0.5 - 0.5
A27: Kaltenland | AB27: R1, 1 - 1 | CW27: R6, 0.5 - 0.5 | CY27: R2, 1 - 0 | CZ27: R7, 0 - 1 | DA27: R1, 0 - 1 | DC27: R1, 0.5 - 0.5 | DD27: R5, 1 - 0 | DF27: R2, 0.5 - 0.5 | DG27: R4, 1 - 0 | DH27: R2, 1 - 0 | DI27: R3, 0.5 - 0.5 | DJ27: R1, 21 - 4 | DK27: R3, 0.5 - 0.5 | DN27: R1, 1 - 0 | DO27: R3, 0.5 - 0.5 | DP27: R5, 1 - 0 | DQ27: R2, 0 - 1 | DR27: R1, 0.5 - 0.5 | DS27: R5, 0.5 - 0.5 | DT27: R5, 23 - 7 | DU27: R1, 0 - 1 | DX27: R6, 0.5 - 0.5 | DY27: R2, 0.5 - 0.5
A28: Shawass | AA28: R1, 1 - 1 | CX28: R2, 0 - 1 | CZ28: R1, 0 - 1 | DA28: R2, 1 - 0 | DB28: R2, 0 - 1 | DC28: R3, 0 - 1 | DE28: R2, 0 - 1 | DF28: R2, 0 - 1 | DG28: R1, 1 - 0 | DI28: R1, 0 - 1 | DJ28: R5, 0 - 1 | DN28: R2, 1 - 0 | DO28: R3, 0.5 - 0.5 | DP28: R5, 0 - 1 | DQ28: R1, 0 - 1 | DR28: R6, 0.5 - 0.5 | DS28: R6, 0.5 - 0.5 | DT28: R3, 0.5 - 0.5 | DU28: R3, 1 - 0 | DV28: R1, 0.5 - 0.5 | DY28: R2, 0 - 1
A29: Malasnoticias | CZ29: R2, 1 - 0 | DC29: R1, 1 - 0 | DE29: R3, 0.5 - 0.5 | DG29: R8, 0.5 - 0.5 | DH29: R6, 0 - 1 | DI29: R2, 0 - 1 | DJ29: R1, 2 - 0 | DM29: R4, 0 - 1 | DN29: R3, 0 - 1 | DO29: R5, 0 - 1 | DP29: R1, 0.5 - 0.5 | DR29: R1, 0.5 - 0.5 | DS29: R6, 0.5 - 0.5 | DU29: R3, 0.5 - 0.5 | DW29: R2, 0 - 1 | DY29: R1, 0 - 1
A30: Macabeo | Y30: R1, 0 - 2 | CW30: R2, 0 - 1 | CY30: R3, 0 - 1 | DA30: R4, 1 - 0 | DB30: R3, 0.5 - 0.5 | DC30: R2, 0 - 1 | DD30: R2, 0.5 - 0.5 | DE30: R1, 0.5 - 0.5 | DF30: R1, 0.5 - 0.5 | DG30: R3, 0.5 - 0.5 | DH30: R5, 0.5 - 0.5 | DJ30: R3, 1 - 0 | DK30: R5, 0 - 1 | DL30: R1, 0.5 - 0.5 | DO30: R6, 0 - 1 | DP30: R2, 0 - 1 | DQ30: R5, 0.5 - 0.5 | DR30: R3, 0.5 - 0.5 | DS30: R1, 1 - 0 | DT30: R8, 0.5 - 0.5 | DU30: R1, 0.5 - 0.5 | DV30: R6, 1 - 0 | DX30: R1, 1 - 0
A31: Corwin | AY31: R1, 1 - 1 | CX31: R1, 1 - 0 | CY31: R4, 0.5 - 0.5 | CZ31: R3, 1 - 20 | DA31: R7, 0 - 1 | DB31: R1, 1 - 0 | DC31: R8, 0.5 - 0.5 | DD31: R2, 1 - 0 | DG31: R2, 0.5 - 0.5 | DH31: R3, 1 - 0 | DI31: R1, 0 - 1 | DJ31: R7, 1 - 0 | DL31: R3, 1 - 0 | DM31: R2, 0.5 - 0.5 | DN31: R5, 1 - 0 | DO31: R3, 0.5 - 0.5 | DP31: R1, 6 - 20 | DQ31: R4, 1 - 0 | DR31: R4, 1 - 0 | DS31: R2, 0.5 - 0.5 | DT31: R1, 0 - 1 | DU31: R6, 0.5 - 0.5 | DV31: R2, 1 - 0 | DW31: R2, 0.5 - 0.5 | DX31: R2, 0.5 - 0.5 | DY31: R3, 1 - 0
A32: SFisher91 | K32: R1, 1 - 1 | CW32: R4, 1 - 0 | CY32: R3, 0.5 - 0.5 | DA32: R5, 0 - 1 | DD32: R3, 1 - 0 | DE32: R2, 3 - 18 | DF32: R2, 1 - 0 | DG32: R1, 1 - 0 | DH32: R3, 0 - 1 | DK32: R2, 0.5 - 0.5 | DM32: R3, 0.5 - 0.5 | DQ32: R2, 1 - 0 | DR32: R2, 0 - 1 | DS32: R1, 0 - 1 | DT32: R2, 0.5 - 0.5 | DV32: R2, 0.5 - 0.5 | DW32: R1, 0 - 1 | DX32: R2, 0.5 - 0.5 | DY32: R6, 0 - 1
A33: Phoenix11 | CH33: R1, 0 - 2 | CX33: R4, 0 - 1 | CY33: R2, 1 - 0 | DB33: R1, 0.5 - 0.5 | DD33: R2, 0.5 - 0.5 | DE33: R5, 1 - 0 | DF33: R3, 0.5 - 0.5 | DG33: R5, 1 - 0 | DH33: R6, 20 - 5 | DJ33: R3, 0 - 1 | DL33: R2, 0 - 1 | DM33: R1, 0 - 1 | DN33: R5, 0 - 1 | DP33: R3, 0 - 1 | DQ33: R4, 0 - 1 | DR33: R1, 0 - 1 | DS33: R2, 1 - 0 | DU33: R2, 0.5 - 0.5 | DV33: R1, 1 - 0 | DW33: R6, 0.5 - 0.5 | DX33: R6, 0.5 - 0.5 | DY33: R1, 0.5 - 0.5
A34: Wolio | BB34: R1, 1 - 1 | CW34: R3, 1 - 0 | CX34: R1, 0 - 1 | DA34: R5, 0 - 1 | DB34: R6, 1 - 0 | DD34: R2, 0.5 - 0.5 | DE34: R5, 0 - 1 | DF34: R2, 0.5 - 0.5 | DG34: R1, 0.5 - 0.5 | DI34: R6, 1 - 0 | DJ34: R2, 0.5 - 0.5 | DM34: R1, 0.5 - 0.5 | DN34: R4, 0.5 - 0.5 | DP34: R1, 1 - 0 | DQ34: R5, 1 - 0 | DR34: R4, 0.5 - 0.5 | DS34: R1, 0 - 1 | DT34: R4, 0.5 - 0.5 | DU34: R6, 0 - 1 | DX34: R5, 0.5 - 0.5 | DY34: R3, 0.5 - 0.5
A35: Reszka | E35: R1, 1 - 1 | CX35: R8, 0.5 - 0.5 | CY35: R4, 1 - 0 | DB35: R1, 1 - 0 | DC35: R7, 0.5 - 0.5 | DD35: R1, 0 - 1 | DE35: R2, 1 - 0 | DF35: R1, 1 - 0 | DI35: R1, 0.5 - 0.5 | DJ35: R5, 0 - 1 | DK35: R3, 1 - 0 | DL35: R4, 0 - 1 | DM35: R1, 0 - 1 | DO35: R4, 0.5 - 0.5 | DP35: R2, 0.5 - 0.5 | DQ35: R4, 0.5 - 0.5 | DR35: R1, 0 - 1 | DS35: R4, 3 - 18 | DT35: R1, 0 - 1 | DU35: R6, 1 - 0 | DW35: R4, 0 - 1 | DX35: R1, 1 - 0 | DY35: R5, 0.5 - 0.5
A36: Slimaq | CL36: R1, 2 - 0 | CX36: R4, 1 - 0 | CY36: R1, 0.5 - 0.5 | DB36: R3, 1 - 0 | DC36: R1, 0.5 - 0.5 | DD36: R6, 0.5 - 0.5 | DE36: R1, 1 - 0 | DG36: R6, 0.5 - 0.5 | DH36: R7, 0.5 - 0.5 | DI36: R2, 0.5 - 0.5 | DJ36: R3, 0 - 1 | DK36: R4, 0 - 1 | DL36: R6, 0 - 1 | DM36: R1, 0.5 - 0.5 | DN36: R1, 1 - 0 | DO36: R4, 0 - 1 | DP36: R3, 0.5 - 0.5 | DQ36: R5, 0 - 1 | DR36: R6, 0.5 - 0.5 | DS36: R1, 0.5 - 0.5 | DT36: R1, 0 - 1 | DU36: R5, 0.5 - 0.5 | DV36: R4, 0.5 - 0.5 | DW36: R6, 0.5 - 0.5 | DX36: R4, 0 - 1
A37: Skuld | CW37: R1, 0 - 1 | CX37: R6, 1 - 0 | CY37: R5, 0.5 - 0.5 | DA37: R6, 20 - 5 | DB37: R1, 1 - 1 | DC37: R2, 0 - 1 | DD37: R5, 0 - 1 | DE37: R1, 23 - 3 | DF37: R1, 1 - 0 | DG37: R5, 0 - 1 | DI37: R1, 0.5 - 0.5 | DJ37: R1, 0 - 1 | DK37: R2, 22 - 3 | DL37: R1, 0 - 1 | DM37: R4, 1 - 0 | DN37: R3, 1 - 0 | DO37: R5, 0 - 1 | DP37: R4, 20 - 4 | DQ37: R2, 0.5 - 0.5 | DR37: R1, 0 - 1 | DS37: R1, 1 - 0 | DU37: R1, 1 - 0 | DV37: R3, 1 - 0 | DW37: R2, 19 - 5 | DY37: R1, 1 - 0
A38: Balder | CN38: R1, 1 - 1 | CZ38: R5, 0.5 - 0.5 | DA38: R1, 0 - 1 | DB38: R5, 0 - 1 | DD38: R2, 0 - 1 | DE38: R6, 0 - 1 | DF38: R1, 1 - 0 | DG38: R1, 0 - 1 | DJ38: R1, 1 - 0 | DK38: R4, 0.5 - 0.5 | DL38: R3, 0.5 - 0.5 | DM38: R2, 0 - 1 | DP38: R4, 0.5 - 0.5 | DQ38: R1, 1 - 0 | DS38: R4, 0 - 1 | DT38: R5, 0.5 - 0.5 | DU38: R5, 0 - 1 | DV38: R3, 1 - 0 | DW38: R1, 0.5 - 0.5 | DX38: R1, 0 - 1
A39: Dionysian | AQ39: R1, 2 - 0 | CW39: R4, 0.5 - 0.5 | CY39: R5, 18 - 2 | CZ39: R1, 0.5 - 0.5 | DD39: R4, 19 - 2 | DE39: R6, 0 - 1 | DF39: R6, 0 - 1 | DH39: R2, 0.5 - 0.5 | DJ39: R4, 1 - 0 | DK39: R1, 1 - 0 | DL39: R5, 0 - 1 | DM39: R3, 0 - 1 | DN39: R4, 1 - 0 | DO39: R2, 1 - 0 | DQ39: R1, 1 - 0 | DR39: R5, 0 - 1 | DS39: R8, 1 - 0 | DT39: R1, 1 - 0 | DV39: R6, 1 - 0 | DW39: R1, 0 - 1 | DX39: R3, 1 - 0 | DY39: R1, 0.5 - 0.5
A40: Harza | CV40: R1, 2 - 0 | CW40: R5, 0.5 - 0.5 | CX40: R4, 0 - 1 | DA40: R1, 0 - 1 | DB40: R2, 0.5 - 0.5 | DC40: R5, 1 - 0 | DD40: R1, 1 - 0 | DF40: R1, 9 - 10 | DH40: R4, 0 - 1 | DI40: R6, 0.5 - 0.5 | DK40: R4, 0.5 - 0.5 | DL40: R1, 0 - 1 | DM40: R5, 0.5 - 0.5 | DO40: R3, 0.5 - 0.5 | DP40: R3, 1 - 0 | DR40: R1, 1 - 0 | DS40: R5, 1 - 0 | DT40: R3, 0 - 1 | DU40: R4, 0.5 - 0.5 | DW40: R1, 0 - 1 | DX40: R1, 1 - 0 | DY40: R3, 0 - 1
A41: Idroj | Z41: R1, 0 - 2 | CX41: R3, 0.5 - 0.5 | CY41: R4, 0 - 1 | DC41: R1, 0 - 1 | DD41: R3, 1 - 0 | DF41: R4, 1 - 0 | DG41: R1, 0 - 1 | DH41: R1, 0 - 1 | DI41: R1, 0 - 1 | DK41: R5, 1 - 0 | DL41: R4, 0.5 - 0.5 | DM41: R2, 0 - 1 | DO41: R1, 0.5 - 0.5 | DP41: R4, 0.5 - 0.5 | DR41: R1, 0 - 1 | DS41: R1, 0.5 - 0.5 | DT41: R3, 1 - 0 | DU41: R1, 0 - 1 | DV41: R1, 0 - 1 | DW41: R5, 0.5 - 0.5 | DY41: R4, 0 - 1
A42: Faccko | CW42: R1, 0.5 - 0.5 | CZ42: R6, 1 - 0 | DB42: R2, 20 - 3 | DC42: R2, 0.5 - 0.5 | DF42: R1, 1 - 0 | DG42: R1, 0 - 1 | DH42: R1, 0 - 1 | DI42: R1, 0.5 - 0.5 | DJ42: R5, 0 - 1 | DL42: R3, 0 - 1 | DM42: R6, 0 - 1 | DN42: R4, 0.5 - 0.5 | DO42: R6, 0 - 1 | DR42: R2, 1 - 0 | DT42: R1, 1 - 0 | DU42: R6, 0 - 1 | DV42: R2, 0.5 - 0.5 | DW42: R1, 0.5 - 0.5 | DX42: R1, 1 - 1
A43: MacWitt | AM43: R1, 0 - 2 | CW43: R4, 0 - 1 | CX43: R3, 0.5 - 0.5 | CY43: R1, 1 - 0 | CZ43: R5, 1 - 0 | DA43: R1, 0 - 1 | DB43: R1, 0.5 - 0.5 | DC43: R1, 1 - 0 | DD43: R1, 0 - 1 | DH43: R1, 0 - 1 | DI43: R2, 0.5 - 0.5 | DJ43: R3, 1 - 0 | DK43: R8, 1 - 0 | DN43: R2, 0.5 - 0.5 | DO43: R6, 0.5 - 0.5 | DP43: R5, 0 - 1 | DQ43: R2, 0.5 - 0.5 | DR43: R2, 1 - 0 | DS43: R1, 1 - 0 | DT43: R6, 0.5 - 0.5 | DU43: R1, 0 - 1 | DV43: R1, 0 - 1 | DW43: R2, 1 - 0 | DX43: R2, 0.5 - 0.5 | DY43: R5, 0 - 1
A44: Pellevin | CW44: R5, 1 - 0 | CX44: R6, 0 - 1 | CZ44: R6, 0.5 - 0.5 | DA44: R4, 0 - 1 | DC44: R7, 0 - 1 | DE44: R5, 1 - 0 | DF44: R1, 0 - 1 | DG44: R1, 0.5 - 0.5 | DI44: R1, 0.5 - 0.5 | DJ44: R6, 0 - 1 | DL44: R5, 1 - 0 | DM44: R2, 1 - 0 | DP44: R3, 0 - 1 | DQ44: R2, 1 - 0 | DS44: R1, 2 - 0 | DU44: R3, 1 - 0 | DV44: R3, 0.5 - 0.5 | DW44: R2, 1 - 0 | DX44: R6, 0.5 - 0.5 | DY44: R2, 0 - 1
A45: Araznaroth | D45: R1, 0 - 2 | CY45: R4, 0.5 - 0.5 | DA45: R6, 0.5 - 0.5 | DB45: R3, 0.5 - 0.5 | DD45: R1, 1 - 0 | DE45: R4, 0.5 - 0.5 | DG45: R1, 1 - 0 | DJ45: R6, 1 - 0 | DK45: R1, 0.5 - 0.5 | DL45: R4, 0.5 - 0.5 | DM45: R3, 0 - 1 | DN45: R5, 1 - 0 | DO45: R2, 1 - 0 | DP45: R2, 1 - 0 | DR45: R5, 1 - 0 | DS45: R4, 1 - 0 | DT45: R2, 1 - 0 | DU45: R3, 0 - 1 | DV45: R1, 0.5 - 0.5 | DW45: R2, 1 - 0 | DX45: R1, 1 - 0
A46: JimJimany | CW46: R1, 0 - 2 | CX46: R6, 0.5 - 0.5 | CZ46: R4, 1 - 0 | DA46: R2, 0.5 - 0.5 | DB46: R1, 0 - 1 | DC46: R1, 0 - 1 | DE46: R4, 0 - 1 | DI46: R1, 1 - 0 | DK46: R2, 1 - 0 | DO46: R3, 1 - 0 | DP46: R3, 0.5 - 0.5 | DQ46: R6, 0.5 - 0.5 | DR46: R1, 0 - 1 | DT46: R2, 1 - 0 | DU46: R4, 0 - 1 | DV46: R4, 0.5 - 0.5 | DW46: R8, 0 - 1 | DX46: R2, 0 - 1
A47: zulu | I47: R1, 0 - 2 | CW47: R6, 0.5 - 0.5 | CY47: R5, 0.5 - 0.5 | CZ47: R1, 0.5 - 0.5 | DA47: R2, 0 - 1 | DB47: R6, 0.5 - 0.5 | DE47: R1, 0.5 - 0.5 | DF47: R3, 0 - 1 | DG47: R2, 0.5 - 0.5 | DH47: R1, 0 - 1 | DJ47: R2, 0.5 - 0.5 | DK47: R7, 0 - 1 | DN47: R4, 0.5 - 0.5 | DP47: R2, 1 - 0 | DQ47: R5, 0.5 - 0.5 | DR47: R7, 1 - 0 | DT47: R2, 1 - 0 | DU47: R2, 0 - 1 | DW47: R3, 0.5 - 0.5 | DX47: R3, 0 - 1 | DY47: R1, 1 - 0
A48: mynock | BR48: R1, 0 - 2 | CW48: R1, 0 - 1 | DB48: R1, 0.5 - 0.5 | DC48: R1, 1 - 0 | DE48: R5, 1 - 0 | DG48: R2, 0 - 1 | DI48: R1, 0 - 1 | DJ48: R2, 1 - 0 | DM48: R5, 0.5 - 0.5 | DN48: R6, 1 - 0 | DO48: R4, 1 - 0 | DP48: R2, 0 - 1 | DQ48: R3, 0.5 - 0.5 | DS48: R2, 0.5 - 0.5 | DT48: R1, 1 - 0 | DY48: R2, 1 - 0
A49: Strider84 | BN49: R1, 0 - 2 | CX49: R1, 0 - 1 | CY49: R6, 1 - 0 | DD49: R4, 0 - 1 | DE49: R8, 1 - 0 | DG49: R1, 1 - 0 | DH49: R1, 0.5 - 0.5 | DJ49: R4, 0 - 1 | DK49: R3, 0 - 1 | DL49: R6, 0 - 1 | DM49: R2, 0 - 1 | DO49: R3, 1 - 0 | DR49: R2, 0.5 - 0.5 | DT49: R2, 1 - 0 | DU49: R5, 0 - 1 | DV49: R7, 0.5 - 0.5 | DW49: R6, 0 - 1 | DX49: R2, 0.5 - 0.5 | DY49: R4, 0.5 - 0.5
A50: Phifoe | P50: R1, 0 - 2 | CW50: R5, 1 - 0 | CY50: R3, 0 - 1 | CZ50: R3, 1 - 0 | DA50: R3, 0.5 - 0.5 | DB50: R1, 0 - 1 | DC50: R2, 0.5 - 0.5 | DD50: R3, 1 - 0 | DF50: R5, 0 - 1 | DG50: R1, 0 - 1 | DI50: R1, 0.5 - 0.5 | DJ50: R6, 0.5 - 0.5 | DK50: R1, 0 - 1 | DN50: R6, 10 - 11 | DO50: R2, 1 - 0 | DP50: R2, 0 - 1 | DQ50: R2, 1 - 0 | DR50: R1, 1 - 0 | DT50: R4, 1 - 0 | DU50: R4, 0 - 1 | DX50: R1, 0 - 1 | DY50: R3, 1 - 0
A51: JohnnyD | AE51: R1, 1 - 1 | CX51: R1, 0 - 1 | CY51: R1, 0.5 - 0.5 | DB51: R1, 1 - 0 | DE51: R1, 1 - 0 | DG51: R1, 0.5 - 0.5 | DH51: R8, 1 - 0 | DJ51: R2, 0.5 - 0.5 | DK51: R1, 0 - 1 | DM51: R6, 0 - 1 | DO51: R6, 1 - 0 | DP51: R6, 0.5 - 0.5 | DQ51: R4, 0.5 - 0.5 | DS51: R4, 1 - 0 | DU51: R1, 1 - 0 | DV51: R2, 0 - 1 | DW51: R3, 0.5 - 0.5 | DX51: R4, 1 - 0
A52: Dekra1979 | J52: R1, 1 - 1 | CW52: R1, 0.5 - 0.5 | CY52: R2, 0 - 1 | DB52: R1, 0.5 - 0.5 | DC52: R4, 1 - 0 | DD52: R1, 1 - 0 | DE52: R1, 0.5 - 0.5 | DF52: R1, 0 - 1 | DG52: R2, 0.5 - 0.5 | DI52: R3, 0 - 1 | DJ52: R1, 0.5 - 0.5 | DL52: R5, 0.5 - 0.5 | DM52: R6, 1 - 0 | DO52: R7, 0 - 1 | DR52: R4, 0.5 - 0.5 | DT52: R6, 0.5 - 0.5 | DU52: R4, 1 - 0 | DW52: R1, 0.5 - 0.5 | DX52: R1, 1 - 0 | DY52: R5, 1 - 0
A53: straume | CO53: R1, 0 - 2 | CW53: R3, 1 - 0 | CX53: R5, 0.5 - 0.5 | CY53: R5, 0 - 1 | CZ53: R3, 0 - 1 | DC53: R1, 0.5 - 0.5 | DD53: R5, 0.5 - 0.5 | DF53: R3, 0 - 1 | DG53: R1, 0.5 - 0.5 | DH53: R1, 1 - 0 | DI53: R1, 1 - 0 | DJ53: R4, 0.5 - 0.5 | DK53: R6, 0.5 - 0.5 | DL53: R2, 0.5 - 0.5 | DN53: R2, 1 - 0 | DO53: R4, 0.5 - 0.5 | DR53: R4, 0 - 1 | DU53: R6, 1 - 0 | DV53: R1, 1 - 0 | DW53: R4, 0.5 - 0.5 | DX53: R2, 0.5 - 0.5 | DY53: R6, 0.5 - 0.5
A54: Barry | AH54: R1, 1 - 1 | CW54: R3, 0.5 - 0.5 | CX54: R2, 1 - 0 | CZ54: R3, 0 - 1 | DA54: R1, 0 - 1 | DB54: R1, 1 - 0 | DC54: R2, 1 - 0 | DD54: R1, 0 - 1 | DE54: R1, 1 - 0 | DF54: R1, 1 - 0 | DH54: R5, 1 - 0 | DI54: R7, 0.5 - 0.5 | DJ54: R2, 0 - 1 | DN54: R2, 0 - 1 | DP54: R6, 0.5 - 0.5 | DQ54: R1, 0.5 - 0.5 | DR54: R2, 0.5 - 0.5 | DS54: R4, 0 - 1 | DU54: R1, 1 - 0 | DV54: R4, 0.5 - 0.5
A55: Tactel | R55: R1, 0 - 2 | CW55: R3, 3 - 20 | CY55: R1, 0.5 - 0.5 | CZ55: R1, 0.5 - 0.5 | DA55: R1, 0 - 1 | DD55: R1, 1 - 0 | DE55: R1, 0.5 - 0.5 | DF55: R1, 1 - 0 | DH55: R3, 1 - 0 | DI55: R5, 1 - 0 | DK55: R5, 1 - 0 | DM55: R6, 1 - 0 | DN55: R6, 0.5 - 0.5 | DP55: R1, 1 - 0 | DR55: R2, 0.5 - 0.5 | DS55: R6, 0 - 1 | DT55: R3, 1 - 0 | DV55: R3, 1 - 0 | DW55: R4, 1 - 0 | DX55: R4, 0 - 1 | DY55: R1, 0 - 1
A56: Pidpad | CU56: R1, 0 - 2 | CW56: R1, 1 - 0 | CX56: R3, 1 - 0 | CY56: R3, 0 - 1 | CZ56: R1, 0.5 - 0.5 | DB56: R5, 0.5 - 0.5 | DE56: R3, 0.5 - 0.5 | DF56: R1, 1 - 0 | DG56: R1, 0.5 - 0.5 | DH56: R1, 1 - 0 | DI56: R1, 0 - 1 | DJ56: R1, 0.5 - 0.5 | DK56: R4, 0 - 1 | DN56: R1, 0 - 1 | DQ56: R6, 0 - 1 | DR56: R6, 1 - 0 | DS56: R1, 1 - 0 | DT56: R5, 0 - 1 | DU56: R4, 0.5 - 0.5 | DV56: R4, 0 - 1 | DW56: R1, 1 - 0 | DX56: R6, 5 - 18 | DY56: R2, 0.5 - 0.5
A57: Elrik | Q57: R1, 1 - 1 | CZ57: R4, 1 - 0 | DA57: R3, 1 - 0 | DB57: R3, 0.5 - 0.5 | DC57: R1, 0.5 - 0.5 | DH57: R1, 1 - 0 | DK57: R2, 0.5 - 0.5 | DL57: R6, 0 - 1 | DM57: R5, 1 - 0 | DR57: R6, 0 - 1 | DS57: R4, 0 - 1 | DT57: R1, 1 - 0 | DV57: R1, 11 - 11 | DX57: R6, 0 - 1 | DY57: R4, 0 - 1
A58: Simon_ACP | CW58: R5, 0.5 - 0.5 | CX58: R6, 1 - 0 | CY58: R4, 0.5 - 0.5 | CZ58: R2, 0.5 - 0.5 | DA58: R2, 0 - 1 | DB58: R1, 0.5 - 0.5 | DC58: R1, 0 - 1 | DD58: R6, 0 - 1 | DE58: R2, 1 - 0 | DG58: R3, 0 - 1 | DH58: R4, 0.5 - 0.5 | DL58: R1, 0 - 2 | DM58: R1, 0 - 1 | DO58: R3, 0 - 1 | DQ58: R1, 0 - 1 | DR58: R2, 1 - 0 | DU58: R7, 0 - 1 | DV58: R3, 0.5 - 0.5 | DX58: R2, 0 - 1
A59: sann0638 | CP59: R1, 1 - 1 | CW59: R1, 0 - 1 | CX59: R2, 0.5 - 0.5 | CY59: R2, 0.5 - 0.5 | CZ59: R1, 0.5 - 0.5 | DB59: R2, 0.5 - 0.5 | DC59: R5, 0.5 - 0.5 | DD59: R2, 18 - 4 | DE59: R1, 1 - 0 | DF59: R5, 1 - 0 | DG59: R4, 0.5 - 0.5 | DH59: R2, 0 - 1 | DI59: R1, 0 - 1 | DJ59: R3, 0 - 1 | DK59: R3, 0 - 1 | DN59: R4, 1 - 0 | DO59: R1, 0.5 - 0.5 | DP59: R1, 0.5 - 0.5 | DQ59: R3, 0 - 1 | DR59: R3, 1 - 0 | DS59: R2, 0 - 1 | DT59: R1, 0 - 1 | DU59: R1, 0.5 - 0.5 | DW59: R2, 1 - 0 | DX59: R6, 0.5 - 0.5 | DY59: R2, 0.5 - 0.5
A60: Goss | BI60: R1, 0 - 2 | CX60: R2, 0 - 1 | CZ60: R5, 0.5 - 0.5 | DA60: R1, 0 - 1 | DC60: R2, 0 - 1 | DD60: R1, 0.5 - 0.5 | DE60: R2, 0.5 - 0.5 | DF60: R2, 21 - 4 | DG60: R1, 0.5 - 0.5 | DI60: R4, 1 - 0 | DJ60: R1, 1 - 0 | DK60: R1, 1 - 0 | DL60: R2, 1 - 0 | DO60: R3, 0.5 - 0.5 | DP60: R3, 0.5 - 0.5 | DR60: R5, 0 - 1 | DS60: R1, 0.5 - 0.5 | DT60: R2, 1 - 0 | DV60: R2, 0.5 - 0.5 | DW60: R6, 0 - 1 | DY60: R2, 0.5 - 0.5
A61: Muadib | BH61: R1, 2 - 0 | CW61: R1, 1 - 0 | CX61: R6, 1 - 0 | CY61: R1, 1 - 0 | CZ61: R5, 0.5 - 0.5 | DA61: R2, 0 - 1 | DC61: R4, 1 - 0 | DD61: R3, 0 - 1 | DF61: R3, 0 - 1 | DG61: R1, 1 - 0 | DH61: R4, 0.5 - 0.5 | DI61: R1, 1 - 0 | DJ61: R2, 0.5 - 0.5 | DL61: R3, 0 - 1 | DN61: R1, 1 - 0 | DP61: R3, 0 - 1 | DQ61: R1, 0.5 - 0.5 | DR61: R5, 0.5 - 0.5 | DS61: R2, 0 - 1 | DT61: R3, 0 - 1 | DU61: R8, 0 - 1 | DV61: R3, 0.5 - 0.5 | DW61: R1, 1 - 0 | DX61: R2, 0 - 1
A62: swifty | BL62: R1, 2 - 0 | CW62: R2, 1 - 0 | CX62: R1, 1 - 0 | CY62: R2, 0 - 1 | CZ62: R6, 0 - 1 | DA62: R1, 1 - 0 | DB62: R4, 0 - 1 | DC62: R2, 0.5 - 0.5 | DD62: R4, 0.5 - 0.5 | DE62: R1, 1 - 0 | DF62: R4, 1 - 0 | DH62: R3, 1 - 0 | DI62: R5, 0.5 - 0.5 | DJ62: R3, 0 - 1 | DK62: R3, 0 - 1 | DL62: R1, 0.5 - 0.5 | DM62: R3, 1 - 0 | DN62: R2, 0.5 - 0.5 | DO62: R1, 0.5 - 0.5 | DP62: R3, 1 - 0 | DQ62: R5, 0.5 - 0.5 | DS62: R4, 0.5 - 0.5 | DU62: R2, 0.5 - 0.5 | DV62: R2, 1 - 0 | DW62: R7, 0 - 1 | DX62: R1, 1 - 0 | DY62: R3, 0 - 1
A63: Matte8 | CW63: R5, 0 - 1 | CX63: R1, 0.5 - 0.5 | CY63: R2, 0.5 - 0.5 | CZ63: R2, 1 - 0 | DA63: R5, 1 - 0 | DB63: R5, 0 - 1 | DE63: R4, 0.5 - 0.5 | DF63: R1, 0.5 - 0.5 | DH63: R1, 0.5 - 0.5 | DI63: R4, 0 - 1 | DJ63: R6, 0 - 1 | DK63: R1, 0 - 1 | DM63: R1, 0.5 - 0.5 | DN63: R3, 1 - 0 | DO63: R1, 1 - 1 | DR63: R2, 0 - 1 | DS63: R2, 0.5 - 0.5 | DU63: R2, 0 - 1 | DY63: R5, 1 - 0
A64: Joanet | BJ64: R1, 0 - 2 | CW64: R4, 0.5 - 0.5 | CY64: R7, 0 - 1 | DA64: R5, 0 - 1 | DB64: R1, 1 - 0 | DC64: R1, 1 - 0 | DD64: R5, 0 - 1 | DF64: R2, 1 - 0 | DG64: R4, 0 - 1 | DH64: R1, 0.5 - 0.5 | DI64: R4, 0 - 1 | DJ64: R1, 1 - 0 | DK64: R3, 1 - 0 | DL64: R3, 1 - 0 | DM64: R2, 0 - 1 | DN64: R1, 1 - 0 | DO64: R5, 0.5 - 0.5 | DQ64: R3, 0.5 - 0.5 | DS64: R3, 0.5 - 0.5 | DT64: R2, 0 - 1 | DV64: R5, 1 - 0 | DW64: R1, 0.5 - 0.5 | DX64: R2, 0 - 1 | DY64: R3, 0 - 1
A65: SpecialOne | F65: R1, 2 - 0 | CW65: R1, 0 - 1 | CX65: R2, 0 - 1 | CY65: R6, 1 - 0 | CZ65: R4, 0.5 - 0.5 | DC65: R4, 1 - 0 | DD65: R1, 1 - 0 | DE65: R5, 1 - 0 | DF65: R1, 0 - 1 | DG65: R2, 1 - 0 | DH65: R2, 4 - 21 | DI65: R4, 0.5 - 0.5 | DJ65: R2, 1 - 0 | DK65: R2, 0.5 - 0.5 | DL65: R1, 1 - 0 | DN65: R3, 0 - 1 | DO65: R8, 1 - 0 | DP65: R3, 0.5 - 0.5 | DS65: R2, 0 - 1 | DU65: R5, 0.5 - 0.5 | DV65: R5, 1 - 0 | DW65: R2, 1 - 0 | DX65: R4, 0.5 - 0.5 | DY65: R2, 0.5 - 0.5
A66: Prince | AW66: R1, 2 - 0 | CW66: R1, 0 - 1 | CX66: R1, 0 - 1 | CZ66: R3, 0.5 - 0.5 | DB66: R3, 0 - 1 | DC66: R1, 0.5 - 0.5 | DD66: R2, 0 - 1 | DE66: R3, 1 - 0 | DG66: R7, 1 - 0 | DH66: R5, 0.5 - 0.5 | DI66: R5, 1 - 0 | DJ66: R4, 0 - 1 | DK66: R1, 6 - 22 | DL66: R4, 0.5 - 0.5 | DM66: R1, 0 - 1 | DN66: R2, 0.5 - 0.5 | DO66: R5, 0.5 - 0.5 | DP66: R4, 0.5 - 0.5 | DQ66: R4, 0.5 - 0.5 | DR66: R1, 0 - 1 | DS66: R5, 0 - 1 | DT66: R3, 1 - 0 | DU66: R1, 1 - 0 | DV66: R6, 0 - 1 | DW66: R3, 0 - 1 | DX66: R3, 1 - 0 | DY66: R2, 1 - 0
A67: GreatWhiteHope | G67: R1, 0 - 2 | CY67: R6, 0.5 - 0.5 | CZ67: R1, 1 - 0 | DA67: R2, 0 - 1 | DB67: R2, 1 - 0 | DC67: R2, 1 - 0 | DD67: R2, 0 - 1 | DE67: R2, 0 - 1 | DF67: R1, 0.5 - 0.5 | DI67: R4, 0 - 1 | DJ67: R7, 0 - 1 | DK67: R4, 0 - 1 | DL67: R2, 0.5 - 0.5 | DM67: R1, 1 - 0 | DN67: R5, 1 - 0 | DR67: R1, 0 - 1 | DV67: R3, 1 - 0 | DW67: R3, 0 - 1 | DX67: R1, 0.5 - 0.5 | DY67: R7, 0 - 1
A68: Bernuz | CW68: R2, 0 - 1 | CZ68: R1, 1 - 0 | DA68: R1, 2 - 0 | DB68: R2, 0.5 - 0.5 | DC68: R2, 1 - 0 | DD68: R1, 1 - 0 | DE68: R2, 0 - 1 | DI68: R2, 0 - 1 | DJ68: R4, 1 - 0 | DK68: R4, 0.5 - 0.5 | DL68: R4, 0.5 - 0.5 | DN68: R5, 1 - 0 | DO68: R4, 0.5 - 0.5 | DP68: R4, 0.5 - 0.5 | DQ68: R5, 0.5 - 0.5 | DS68: R3, 1 - 0 | DU68: R2, 0.5 - 0.5 | DV68: R3, 1 - 0 | DW68: R6, 0.5 - 0.5 | DX68: R5, 0 - 1
A69: MadeofWelsh | BS69: R1, 2 - 0 | CW69: R2, 1 - 0 | CX69: R1, 0.5 - 0.5 | DB69: R2, 0.5 - 0.5 | DC69: R5, 0.5 - 0.5 | DD69: R2, 4 - 21 | DE69: R2, 1 - 0 | DF69: R2, 1 - 0 | DH69: R1, 0.5 - 0.5 | DI69: R4, 1 - 0 | DJ69: R4, 0.5 - 0.5 | DK69: R5, 0 - 1 | DM69: R1, 9 - 10 | DN69: R5, 1 - 0 | DO69: R4, 0 - 1 | DP69: R3, 0.5 - 0.5 | DS69: R1, 0.5 - 0.5 | DT69: R1, 0.5 - 0.5 | DU69: R3, 1 - 0 | DV69: R3, 0 - 1 | DW69: R5, 1 - 0 | DX69: R7, 0.5 - 0.5
A70: Tank | AV70: R1, 2 - 0 | CX70: R3, 0 - 1 | CY70: R2, 0 - 1 | CZ70: R2, 1 - 0 | DA70: R1, 1 - 0 | DB70: R1, 0.5 - 0.5 | DD70: R2, 0 - 1 | DE70: R7, 0 - 1 | DF70: R2, 0.5 - 0.5 | DG70: R2, 0.5 - 0.5 | DH70: R2, 1 - 0 | DJ70: R4, 1 - 0 | DL70: R5, 0 - 1 | DN70: R5, 23 - 4 | DO70: R2, 0 - 1 | DP70: R4, 1 - 0 | DQ70: R4, 1 - 0 | DT70: R3, 0 - 1 | DU70: R3, 0.5 - 0.5 | DV70: R3, 0 - 1 | DW70: R2, 0 - 1 | DX70: R3, 1 - 0 | DY70: R1, 0 - 1
A71: BeerBeer | BQ71: R1, 0 - 2 | CW71: R1, 1 - 0 | CX71: R2, 0.5 - 0.5 | CY71: R2, 0.5 - 0.5 | DA71: R3, 0 - 1 | DC71: R2, 0 - 1 | DE71: R6, 0.5 - 0.5 | DF71: R2, 0.5 - 0.5 | DG71: R2, 0.5 - 0.5 | DH71: R7, 0 - 1 | DJ71: R8, 0 - 1 | DK71: R5, 0.5 - 0.5 | DL71: R5, 1 - 0 | DM71: R4, 1 - 0 | DN71: R3, 0 - 1 | DO71: R5, 0 - 1 | DP71: R4, 1 - 0 | DR71: R3, 1 - 0 | DS71: R3, 0 - 1 | DT71: R5, 1 - 0 | DU71: R2, 1 - 0 | DW71: R1, 0.5 - 0.5 | DY71: R3, 0.5 - 0.5
A72: ratogre | V72: R1, 1 - 1 | CY72: R2, 0 - 1 | CZ72: R2, 1 - 0 | DA72: R6, 0.5 - 0.5 | DC72: R5, 0 - 1 | DD72: R2, 1 - 0 | DE72: R5, 1 - 0 | DF72: R2, 1 - 0 | DG72: R1, 1 - 0 | DH72: R2, 1 - 0 | DJ72: R5, 0 - 1 | DK72: R4, 0.5 - 0.5 | DL72: R5, 0.5 - 0.5 | DM72: R5, 1 - 0 | DP72: R6, 1 - 0 | DQ72: R4, 1 - 0 | DR72: R5, 1 - 0 | DT72: R1, 1 - 0 | DU72: R7, 0.5 - 0.5 | DV72: R1, 0.5 - 0.5 | DX72: R5, 0 - 1 | DY72: R3, 1 - 0
A73: BudWiser | CX73: R6, 0.5 - 0.5 | CY73: R3, 0 - 1 | CZ73: R1, 1 - 0 | DA73: R5, 1 - 0 | DB73: R2, 1 - 0 | DE73: R2, 0 - 1 | DF73: R4, 1 - 0 | DG73: R1, 0 - 2 | DI73: R4, 0 - 1 | DL73: R3, 0 - 1 | DM73: R5, 0 - 1 | DO73: R4, 0 - 1 | DP73: R5, 1 - 0 | DQ73: R1, 9 - 11 | DR73: R8, 0 - 1 | DS73: R3, 0 - 1 | DT73: R5, 1 - 0 | DV73: R1, 0.5 - 0.5 | DX73: R3, 0.5 - 0.5 | DY73: R3, 1 - 0
A74: Gros Nain | CT74: R1, 2 - 0 | CW74: R4, 0.5 - 0.5 | CX74: R7, 1 - 0 | CY74: R1, 0 - 1 | CZ74: R6, 1 - 0 | DA74: R5, 0 - 1 | DB74: R1, 0.5 - 0.5 | DC74: R3, 1 - 0 | DE74: R1, 1 - 0 | DG74: R2, 1 - 0 | DH74: R4, 0.5 - 0.5 | DL74: R1, 0.5 - 0.5 | DM74: R6, 1 - 0 | DN74: R2, 0.5 - 0.5 | DO74: R6, 0.5 - 0.5 | DP74: R1, 0 - 1 | DS74: R5, 1 - 0 | DW74: R1, 1 - 0 | DX74: R1, 0.5 - 0.5 | DY74: R1, 20 - 5
A75: Warrior1980 | CX75: R5, 0 - 1 | CY75: R3, 0 - 1 | DA75: R6, 0 - 1 | DB75: R5, 0 - 1 | DD75: R2, 0.5 - 0.5 | DG75: R1, 0.5 - 0.5 | DI75: R6, 1 - 0 | DJ75: R6, 0 - 1 | DK75: R6, 1 - 0 | DL75: R1, 0.5 - 0.5 | DM75: R1, 0 - 1 | DP75: R2, 0.5 - 0.5 | DQ75: R5, 1 - 0 | DT75: R5, 0.5 - 0.5 | DU75: R1, 0 - 2 | DV75: R1, 0.5 - 0.5 | DY75: R1, 1 - 0
A76: Juniooor7 | CB76: R1, 0 - 2 | CW76: R7, 1 - 0 | CX76: R3, 20 - 6 | CY76: R2, 0 - 1 | CZ76: R1, 0.5 - 0.5 | DA76: R3, 0 - 1 | DB76: R1, 0.5 - 0.5 | DC76: R5, 0.5 - 0.5 | DD76: R2, 0 - 1 | DF76: R1, 0 - 1 | DG76: R4, 0.5 - 0.5 | DH76: R2, 1 - 0 | DK76: R2, 1 - 0 | DN76: R6, 0 - 1 | DP76: R6, 0 - 1 | DU76: R1, 1 - 0 | DV76: R5, 1 - 0 | DW76: R4, 0 - 1 | DY76: R2, 0 - 1
A77: Madmatt13 | CJ77: R1, 0 - 2 | CW77: R3, 1 - 0 | CX77: R1, 0 - 1 | CY77: R1, 0.5 - 0.5 | CZ77: R6, 1 - 0 | DB77: R4, 0 - 1 | DC77: R2, 1 - 0 | DD77: R1, 0.5 - 0.5 | DF77: R5, 1 - 0 | DH77: R1, 1 - 0 | DK77: R1, 1 - 0 | DM77: R2, 0 - 1 | DN77: R6, 0 - 1 | DO77: R6, 0.5 - 0.5 | DP77: R1, 1 - 0 | DQ77: R6, 0.5 - 0.5 | DR77: R1, 1 - 0 | DT77: R4, 1 - 0 | DU77: R5, 1 - 0 | DW77: R7, 1 - 0 | DX77: R5, 0 - 1
A78: jopotzuki | CW78: R2, 1 - 0 | CX78: R6, 1 - 0 | CY78: R3, 0.5 - 0.5 | CZ78: R5, 0.5 - 0.5 | DA78: R1, 0.5 - 0.5 | DB78: R5, 1 - 0 | DC78: R1, 2 - 0 | DE78: R5, 1 - 0 | DF78: R2, 1 - 0 | DG78: R4, 0 - 1 | DI78: R2, 0 - 1 | DJ78: R2, 1 - 0 | DL78: R6, 1 - 0 | DO78: R2, 0 - 1 | DQ78: R1, 0 - 1 | DR78: R4, 0.5 - 0.5 | DT78: R1, 1 - 0 | DW78: R1, 1 - 0 | DX78: R5, 0.5 - 0.5
A79: J-Ho | N79: R1, 1 - 1 | CW79: R6, 1 - 0 | CZ79: R1, 1 - 0 | DC79: R4, 0 - 1 | DD79: R1, 0 - 1 | DE79: R2, 1 - 0 | DH79: R1, 1 - 0 | DI79: R3, 1 - 0 | DK79: R6, 0 - 1 | DL79: R2, 1 - 0 | DN79: R6, 1 - 0 | DQ79: R6, 1 - 0 | DR79: R3, 0 - 1 | DS79: R4, 0 - 1 | DU79: R1, 0.5 - 0.5 | DW79: R1, 20 - 4 | DX79: R1, 1 - 0 | DY79: R1, 1 - 0
A80: Verrinho | BX80: R1, 2 - 0 | CW80: R5, 0.5 - 0.5 | CX80: R1, 0.5 - 0.5 | CY80: R3, 1 - 0 | DA80: R3, 0 - 1 | DD80: R7, 1 - 0 | DE80: R2, 0 - 1 | DF80: R1, 0 - 1 | DI80: R1, 0 - 1 | DJ80: R2, 1 - 0 | DL80: R6, 0 - 1 | DM80: R6, 1 - 0 | DO80: R1, 0.5 - 0.5 | DQ80: R2, 1 - 0 | DR80: R1, 1 - 0 | DS80: R1, 1 - 0 | DT80: R1, 2 - 17 | DY80: R5, 0.5 - 0.5
A81: Valen | X81: R1, 0 - 2 | CW81: R5, 1 - 0 | CY81: R4, 0.5 - 0.5 | CZ81: R2, 1 - 0 | DA81: R1, 1 - 0 | DB81: R2, 0.5 - 0.5 | DC81: R6, 1 - 0 | DE81: R1, 0.5 - 0.5 | DH81: R5, 0.5 - 0.5 | DI81: R1, 1 - 0 | DJ81: R1, 0.5 - 0.5 | DL81: R2, 6 - 19 | DP81: R6, 1 - 0 | DQ81: R2, 0 - 1 | DR81: R5, 0 - 1 | DS81: R1, 0.5 - 0.5 | DT81: R3, 0 - 1 | DU81: R6, 0 - 1 | DV81: R1, 1 - 0 | DW81: R5, 1 - 0
A82: Lycos | W82: R1, 0 - 2 | CW82: R2, 20 - 8 | CY82: R1, 1 - 0 | DA82: R1, 0.5 - 0.5 | DC82: R3, 0 - 1 | DD82: R4, 0 - 1 | DE82: R1, 0.5 - 0.5 | DH82: R1, 1 - 0 | DJ82: R1, 0 - 1 | DK82: R6, 0 - 1 | DL82: R2, 0 - 1 | DM82: R2, 0.5 - 0.5 | DN82: R3, 0.5 - 0.5 | DO82: R1, 1 - 0 | DP82: R4, 1 - 0 | DQ82: R7, 1 - 0 | DR82: R2, 0.5 - 0.5 | DS82: R3, 1 - 0 | DU82: R1, 0.5 - 0.5 | DV82: R2, 1 - 0 | DW82: R2, 0.5 - 0.5 | DX82: R6, 0 - 1
A83: Domingo | S83: R1, 2 - 0 | CW83: R6, 1 - 0 | CX83: R1, 1 - 0 | CZ83: R3, 1 - 0 | DB83: R3, 0 - 1 | DD83: R1, 1 - 0 | DE83: R4, 6 - 21 | DF83: R3, 1 - 0 | DI83: R3, 1 - 0 | DK83: R1, 0.5 - 0.5 | DL83: R6, 0 - 1 | DO83: R5, 0 - 1 | DP83: R1, 1 - 0 | DQ83: R1, 0.5 - 0.5 | DR83: R6, 0 - 1 | DS83: R2, 0.5 - 0.5 | DU83: R2, 1 - 0 | DV83: R2, 0.5 - 0.5 | DW83: R2, 0.5 - 0.5 | DY83: R6, 0.5 - 0.5
A84: Mufflo | CM84: R1, 2 - 0 | CW84: R5, 0.5 - 0.5 | CX84: R6, 1 - 0 | CY84: R1, 0.5 - 0.5 | DA84: R1, 0.5 - 0.5 | DC84: R1, 1 - 0 | DG84: R1, 0.5 - 0.5 | DH84: R3, 1 - 0 | DI84: R3, 0 - 1 | DL84: R1, 0.5 - 0.5 | DM84: R6, 0.5 - 0.5 | DN84: R3, 0 - 1 | DO84: R6, 0 - 1 | DP84: R6, 0.5 - 0.5 | DQ84: R1, 1 - 0 | DR84: R1, 0.5 - 0.5 | DS84: R6, 1 - 0 | DT84: R1, 1 - 0 | DU84: R2, 1 - 0 | DY84: R4, 0.5 - 0.5
A85: andydavo | CW85: R2, 0 - 1 | CX85: R5, 1 - 0 | CZ85: R1, 0 - 2 | DB85: R2, 0.5 - 0.5 | DC85: R3, 1 - 0 | DD85: R3, 0.5 - 0.5 | DF85: R6, 0 - 1 | DG85: R1, 0.5 - 0.5 | DH85: R1, 1 - 0 | DI85: R3, 0 - 1 | DJ85: R1, 1 - 0 | DM85: R4, 0.5 - 0.5 | DN85: R7, 0 - 1 | DO85: R2, 0.5 - 0.5 | DQ85: R1, 0 - 1 | DR85: R1, 0 - 1 | DT85: R6, 0 - 1 | DU85: R3, 0 - 1 | DW85: R3, 1 - 0 | DX85: R2, 0.5 - 0.5 | DY85: R1, 0 - 1
A86: Geggster | AG86: R1, 2 - 0 | CW86: R1, 0 - 1 | CX86: R2, 9 - 8 | CY86: R1, 10 - 10 | DA86: R6, 1 - 0 | DB86: R3, 0.5 - 0.5 | DC86: R1, 0.5 - 0.5 | DE86: R1, 1 - 0 | DF86: R5, 0.5 - 0.5 | DG86: R6, 0.5 - 0.5 | DH86: R4, 1 - 0 | DJ86: R6, 0 - 1 | DK86: R1, 1 - 0 | DL86: R4, 0 - 1 | DM86: R2, 0 - 1 | DN86: R1, 1 - 0 | DO86: R6, 0 - 1 | DP86: R1, 0.5 - 0.5 | DQ86: R2, 0.5 - 0.5 | DR86: R2, 1 - 0 | DS86: R2, 1 - 0 | DT86: R4, 0.5 - 0.5 | DU86: R2, 1 - 0 | DV86: R5, 1 - 0 | DX86: R1, 0 - 1 | DY86: R6, 1 - 0
A87: Arioso | CW87: R1, 1 - 0 | CX87: R1, 0.5 - 0.5 | CY87: R5, 0.5 - 0.5 | CZ87: R2, 1 - 0 | DB87: R3, 0 - 1 | DC87: R4, 0 - 1 | DG87: R3, 1 - 0 | DH87: R3, 0 - 1 | DI87: R1, 0.5 - 0.5 | DJ87: R6, 0 - 1 | DK87: R2, 0 - 1 | DL87: R1, 0.5 - 0.5 | DM87: R1, 0 - 1 | DN87: R6, 0 - 1 | DO87: R1, 1 - 0 | DP87: R3, 1 - 0 | DR87: R1, 0 - 2 | DS87: R2, 1 - 0 | DT87: R3, 0.5 - 0.5 | DU87: R2, 0 - 1 | DV87: R3, 1 - 0 | DX87: R2, 0 - 1 | DY87: R2, 0.5 - 0.5
A88: Gaunab | BY88: R1, 2 - 0 | CX88: R1, 0 - 1 | CY88: R5, 0 - 1 | CZ88: R1, 0 - 1 | DA88: R1, 11 - 11 | DC88: R6, 0 - 1 | DD88: R3, 1 - 0 | DF88: R1, 0.5 - 0.5 | DG88: R5, 1 - 0 | DI88: R1, 0.5 - 0.5 | DJ88: R3, 1 - 0 | DK88: R1, 1 - 0 | DL88: R3, 0.5 - 0.5 | DN88: R1, 1 - 0 | DO88: R1, 0 - 1 | DQ88: R2, 0 - 1 | DR88: R2, 1 - 0 | DS88: R3, 0 - 1 | DT88: R2, 0 - 1 | DU88: R2, 0 - 1 | DV88: R2, 0.5 - 0.5 | DW88: R6, 0.5 - 0.5 | DX88: R2, 0.5 - 0.5 | DY88: R3, 0 - 1
A89: Alex05 | CZ89: R1, 1 - 0 | DA89: R2, 0 - 1 | DB89: R7, 1 - 0 | DC89: R3, 0 - 1 | DD89: R1, 0 - 1 | DE89: R3, 0 - 1 | DG89: R3, 1 - 0 | DH89: R6, 1 - 0 | DJ89: R1, 1 - 0 | DL89: R6, 0.5 - 0.5 | DM89: R1, 0.5 - 0.5 | DO89: R3, 0.5 - 0.5 | DP89: R1, 1 - 0 | DQ89: R1, 0 - 2 | DS89: R4, 0.5 - 0.5 | DT89: R2, 1 - 0 | DV89: R7, 0 - 1 | DW89: R2, 0.5 - 0.5 | DX89: R3, 0.5 - 0.5 | DY89: R2, 0.5 - 0.5
A90: Beppe | AJ90: R1, 0 - 2 | CW90: R3, 0 - 1 | CX90: R3, 0 - 1 | CY90: R1, 0 - 1 | CZ90: R2, 0.5 - 0.5 | DA90: R3, 1 - 0 | DC90: R4, 0 - 1 | DF90: R5, 0.5 - 0.5 | DG90: R4, 0.5 - 0.5 | DK90: R6, 1 - 0 | DL90: R2, 0 - 1 | DM90: R1, 0.5 - 0.5 | DO90: R1, 0 - 1 | DP90: R4, 1 - 0 | DS90: R3, 12 - 15 | DT90: R7, 0 - 1 | DV90: R1, 0 - 1 | DW90: R1, 1 - 0 | DY90: R5, 0 - 1
A91: Melisqus | CF91: R1, 0 - 2 | CX91: R3, 1 - 0 | CY91: R2, 1 - 0 | CZ91: R1, 0.5 - 0.5 | DA91: R2, 1 - 0 | DC91: R4, 0 - 1 | DD91: R1, 1 - 0 | DI91: R1, 1 - 0 | DJ91: R2, 1 - 0 | DK91: R1, 0.5 - 0.5 | DL91: R4, 1 - 0 | DM91: R8, 0 - 1 | DQ91: R1, 0 - 1 | DR91: R1, 1 - 0 | DS91: R7, 0 - 1 | DV91: R2, 1 - 0 | DW91: R4, 0 - 1 | DY91: R3, 19 - 4
A92: Dragons | AL92: R1, 1 - 1 | CX92: R2, 0 - 1 | CY92: R2, 1 - 0 | CZ92: R1, 0 - 1 | DB92: R7, 1 - 0 | DF92: R6, 0.5 - 0.5 | DG92: R6, 0 - 1 | DH92: R1, 0 - 1 | DJ92: R1, 0 - 1 | DK92: R4, 1 - 0 | DL92: R1, 0.5 - 0.5 | DQ92: R6, 0.5 - 0.5 | DR92: R6, 0 - 1 | DS92: R4, 0 - 1 | DT92: R1, 1 - 0 | DU92: R1, 0.5 - 0.5 | DV92: R3, 22 - 2 | DY92: R2, 0 - 1
A93: Jaqra | BA93: R1, 2 - 0 | CW93: R1, 0.5 - 0.5 | CX93: R2, 1 - 0 | CY93: R2, 1 - 0 | CZ93: R2, 0.5 - 0.5 | DE93: R5, 0.5 - 0.5 | DG93: R1, 0.5 - 0.5 | DI93: R6, 0.5 - 0.5 | DJ93: R6, 0.5 - 0.5 | DM93: R2, 0.5 - 0.5 | DN93: R2, 0.5 - 0.5 | DO93: R1, 0 - 1 | DQ93: R4, 1 - 0 | DR93: R1, 1 - 0 | DS93: R5, 0 - 1 | DT93: R4, 0.5 - 0.5 | DU93: R1, 1 - 0 | DV93: R4, 0 - 1 | DW93: R1, 1 - 0
A94: Harti | BG94: R1, 1 - 1 | CW94: R2, 0.5 - 0.5 | CX94: R1, 0.5 - 0.5 | CZ94: R3, 0 - 1 | DA94: R2, 0 - 1 | DC94: R6, 0.5 - 0.5 | DD94: R3, 0 - 1 | DF94: R1, 1 - 0 | DI94: R5, 0 - 1 | DK94: R1, 1 - 0 | DL94: R1, 1 - 0 | DM94: R4, 0.5 - 0.5 | DN94: R1, 0 - 1 | DP94: R3, 1 - 0 | DQ94: R2, 1 - 0 | DR94: R4, 0.5 - 0.5 | DS94: R1, 0 - 1 | DT94: R6, 0.5 - 0.5 | DV94: R1, 1 - 0 | DX94: R5, 0 - 1
A95: Favi | U95: R1, 1 - 1 | CW95: R3, 1 - 0 | CX95: R1, 1 - 0 | CY95: R2, 0 - 1 | CZ95: R8, 0 - 1 | DA95: R3, 0.5 - 0.5 | DC95: R5, 1 - 0 | DI95: R1, 0.5 - 0.5 | DJ95: R1, 1 - 0 | DK95: R1, 0 - 1 | DN95: R4, 0 - 1 | DP95: R6, 1 - 0 | DT95: R1, 1 - 0 | DW95: R6, 1 - 0 | DX95: R1, 0.5 - 0.5 | DY95: R1, 0 - 1
A96: Spartako | CW96: R2, 0.5 - 0.5 | CY96: R3, 0.5 - 0.5 | CZ96: R3, 1 - 0 | DA96: R6, 1 - 0 | DB96: R5, 6 - 20 | DE96: R1, 0.5 - 0.5 | DF96: R8, 0 - 1 | DG96: R5, 0.5 - 0.5 | DJ96: R4, 1 - 0 | DM96: R5, 0 - 1 | DN96: R1, 1 - 1 | DO96: R2, 0 - 1 | DP96: R1, 0.5 - 0.5 | DQ96: R1, 0.5 - 0.5 | DS96: R1, 0 - 1 | DU96: R4, 1 - 0 | DW96: R3, 19 - 5 | DX96: R6, 0 - 1 | DY96: R1, 1 - 0
A97: DonShula | CW97: R3, 1 - 0 | CX97: R7, 1 - 0 | CY97: R6, 1 - 0 | DB97: R1, 1 - 0 | DD97: R3, 1 - 0 | DG97: R4, 0.5 - 0.5 | DH97: R5, 0 - 1 | DM97: R2, 0.5 - 0.5 | DN97: R1, 1 - 0 | DO97: R4, 0.5 - 0.5 | DP97: R2, 0 - 1 | DQ97: R1, 0 - 1 | DS97: R3, 11 - 12 | DT97: R1, 1 - 1 | DU97: R3, 0 - 1 | DV97: R6, 0 - 1 | DX97: R1, 0.5 - 0.5 | DY97: R1, 1 - 0
A98: HumptyTrump | BV98: R1, 0 - 2 | CW98: R2, 0.5 - 0.5 | DB98: R2, 0 - 1 | DD98: R3, 0.5 - 0.5 | DE98: R3, 0 - 1 | DF98: R5, 0 - 1 | DG98: R6, 0 - 1 | DI98: R4, 0.5 - 0.5 | DJ98: R1, 0.5 - 0.5 | DK98: R3, 0 - 1 | DL98: R1, 0.5 - 0.5 | DM98: R5, 0 - 1 | DN98: R1, 0.5 - 0.5 | DO98: R2, 0.5 - 0.5 | DP98: R3, 0 - 1 | DS98: R1, 0.5 - 0.5 | DV98: R1, 0 - 1 | DY98: R2, 0 - 1
A99: Purrelito | BD99: R1, 2 - 0 | DC99: R5, 1 - 0 | DD99: R3, 0.5 - 0.5 | DE99: R5, 0 - 1 | DF99: R3, 0.5 - 0.5 | DH99: R2, 1 - 0 | DI99: R6, 0.5 - 0.5 | DK99: R1, 0 - 1 | DM99: R3, 0 - 1 | DN99: R5, 0.5 - 0.5 | DO99: R3, 0.5 - 0.5 | DP99: R2, 1 - 0 | DV99: R6, 0 - 1 | DW99: R2, 0 - 1 | DX99: R2, 1 - 0 | DY99: R1, 1 - 0
A100: nonumber | AN100: R1, 0 - 2 | DA100: R7, 0.5 - 0.5 | DB100: R8, 1 - 0 | DD100: R6, 0.5 - 0.5 | DE100: R6, 0.5 - 0.5 | DF100: R4, 1 - 0 | DG100: R2, 0 - 1 | DK100: R1, 0.5 - 0.5 | DL100: R5, 0 - 1 | DM100: R2, 0.5 - 0.5 | DO100: R1, 0.5 - 0.5 | DQ100: R3, 1 - 0 | DR100: R2, 0.5 - 0.5 | DU100: R4, 1 - 0 | DV100: R3, 1 - 0
A101: Driesfield | AT101: R1, 2 - 0 | CX101: R6, 1 - 0 | CY101: R2, 0 - 1 | CZ101: R7, 0.5 - 0.5 | DA101: R8, 0.5 - 0.5 | DB101: R5, 1 - 0 | DC101: R2, 1 - 0 | DE101: R5, 2 - 18 | DF101: R6, 1 - 0 | DG101: R5, 0 - 1 | DH101: R6, 0 - 1 | DK101: R2, 1 - 0 | DL101: R1, 0 - 1 | DM101: R3, 1 - 0 | DN101: R1, 0.5 - 0.5 | DQ101: R6, 1 - 0 | DR101: R6, 0.5 - 0.5 | DS101: R3, 1 - 0 | DV101: R1, 1 - 0 | DX101: R2, 1 - 0
A102: kfoged | CW102: R6, 0 - 1 | CZ102: R4, 1 - 0 | DA102: R4, 0.5 - 0.5 | DB102: R6, 0 - 1 | DC102: R6, 1 - 0 | DD102: R6, 1 - 0 | DE102: R2, 1 - 0 | DH102: R3, 0 - 1 | DI102: R5, 0.5 - 0.5 | DJ102: R1, 0 - 1 | DK102: R6, 20 - 3 | DN102: R2, 1 - 0 | DQ102: R5, 0 - 1 | DS102: R1, 1 - 0 | DT102: R5, 0.5 - 0.5 | DV102: R2, 1 - 0 | DW102: R1, 0 - 2
A103: Podfrey | O103: R1, 0 - 2 | CW103: R2, 1 - 0 | DA103: R1, 0 - 1 | DB103: R3, 0.5 - 0.5 | DC103: R5, 0.5 - 0.5 | DD103: R2, 0.5 - 0.5 | DE103: R6, 0.5 - 0.5 | DF103: R1, 19 - 5 | DK103: R3, 0 - 1 | DM103: R1, 1 - 0 | DO103: R5, 0 - 1 | DQ103: R1, 0.5 - 0.5 | DR103: R1, 0 - 1 | DT103: R2, 0 - 1 | DY103: R1, 0 - 1
A104: valkohukka | CG104: R1, 2 - 0 | CW104: R7, 0.5 - 0.5 | CX104: R4, 0 - 1 | DB104: R6, 0 - 1 | DC104: R6, 1 - 0 | DD104: R5, 0.5 - 0.5 | DG104: R1, 11 - 12 | DI104: R1, 1 - 0 | DJ104: R3, 1 - 0 | DM104: R6, 1 - 0 | DN104: R2, 0.5 - 0.5 | DO104: R1, 0.5 - 0.5 | DP104: R1, 0 - 1 | DQ104: R1, 0.5 - 0.5 | DS104: R2, 1 - 0 | DT104: R1, 0 - 1 | DV104: R4, 0 - 1 | DX104: R1, 0.5 - 0.5
A105: Skoberget | BP105: R1, 0 - 2 | CW105: R8, 0.5 - 0.5 | CX105: R4, 0.5 - 0.5 | CY105: R1, 1 - 0 | DB105: R5, 0 - 1 | DE105: R2, 0 - 1 | DF105: R2, 1 - 0 | DG105: R6, 1 - 0 | DH105: R5, 1 - 0 | DI105: R2, 0 - 1 | DJ105: R5, 0.5 - 0.5 | DK105: R3, 10 - 10 | DL105: R6, 0.5 - 0.5 | DM105: R1, 0.5 - 0.5 | DP105: R1, 0.5 - 0.5 | DQ105: R2, 13 - 15 | DR105: R2, 0.5 - 0.5 | DT105: R1, 0.5 - 0.5 | DU105: R2, 1 - 0
A106: brocCooli | AK106: R1, 1 - 1 | CW106: R5, 0 - 1 | CX106: R6, 1 - 0 | CY106: R3, 0.5 - 0.5 | CZ106: R6, 1 - 0 | DA106: R5, 1 - 0 | DC106: R1, 1 - 0 | DH106: R2, 0.5 - 0.5 | DJ106: R4, 1 - 0 | DK106: R6, 0 - 1 | DL106: R5, 1 - 0 | DM106: R2, 1 - 0 | DN106: R6, 0 - 1 | DO106: R1, 0.5 - 0.5 | DP106: R1, 1 - 0 | DQ106: R2, 0 - 1 | DS106: R2, 1 - 0 | DT106: R6, 1 - 0 | DU106: R3, 1 - 0 | DV106: R2, 0.5 - 0.5 | DW106: R6, 0.5 - 0.5 | DX106: R6, 0.5 - 0.5 | DY106: R1, 0.5 - 0.5
A107: Ploppy_McPloppy | BZ107: R1, 0 - 2 | CW107: R2, 0 - 1 | CX107: R6, 0 - 1 | CY107: R5, 0.5 - 0.5 | CZ107: R6, 0 - 1 | DB107: R1, 0 - 1 | DJ107: R3, 0 - 1 | DK107: R2, 0.5 - 0.5 | DL107: R1, 0.5 - 0.5 | DN107: R3, 0.5 - 0.5 | DO107: R5, 0.5 - 0.5 | DP107: R2, 0 - 1 | DR107: R3, 0.5 - 0.5 | DT107: R1, 1 - 0 | DU107: R6, 1 - 0 | DW107: R2, 0.5 - 0.5 | DX107: R6, 0.5 - 0.5 | DY107: R5, 1 - 0
A108: BiBi | T108: R1, 1 - 1 | CX108: R6, 0 - 1 | CY108: R2, 0.5 - 0.5 | CZ108: R5, 0.5 - 0.5 | DE108: R6, 10 - 11 | DG108: R5, 19 - 4 | DJ108: R2, 0.5 - 0.5 | DL108: R2, 0.5 - 0.5 | DM108: R4, 1 - 0 | DN108: R1, 0 - 1 | DO108: R1, 0 - 1 | DP108: R2, 1 - 0 | DQ108: R5, 0.5 - 0.5 | DS108: R1, 0 - 1 | DT108: R1, 1 - 0 | DU108: R6, 0.5 - 0.5 | DV108: R3, 0.5 - 0.5 | DW108: R6, 0 - 1 | DY108: R8, 1 - 0
A109: Matt le fou | CW109: R5, 18 - 2 | CX109: R2, 0 - 1 | CY109: R6, 0.5 - 0.5 | DA109: R2, 1 - 0 | DD109: R6, 11 - 10 | DF109: R2, 1 - 0 | DG109: R1, 0.5 - 0.5 | DK109: R2, 1 - 0 | DL109: R1, 0.5 - 0.5 | DM109: R1, 0 - 1 | DN109: R1, 0 - 1 | DO109: R2, 0 - 1 | DP109: R1, 2 - 0 | DQ109: R1, 1 - 0 | DR109: R4, 0 - 1 | DS109: R6, 1 - 0 | DT109: R6, 0.5 - 0.5 | DU109: R1, 1 - 0 | DV109: R1, 0 - 1 | DY109: R3, 0.5 - 0.5
A110: Candlejack | CW110: R6, 0 - 1 | CY110: R1, 5 - 19 | DA110: R2, 0 - 1 | DE110: R2, 0 - 1 | DH110: R2, 0 - 1 | DI110: R6, 0 - 1 | DJ110: R5, 0 - 1 | DK110: R4, 0.5 - 0.5 | DL110: R7, 0 - 1 | DM110: R1, 1 - 0 | DN110: R1, 0 - 1 | DO110: R1, 0.5 - 0.5 | DP110: R5, 0 - 1 | DQ110: R1, 0.5 - 0.5 | DR110: R6, 1 - 0 | DS110: R6, 22 - 5 | DT110: R6, 1 - 0 | DV110: R1, 1 - 0 | DW110: R1, 1 - 0 | DX110: R5, 0.5 - 0.5 | DY110: R1, 2 - 0
A111: Purdindas | BU111: R1, 2 - 0 | CW111: R5, 1 - 0 | CZ111: R1, 12 - 11 | DA111: R6, 0 - 1 | DD111: R5, 4 - 19 | DE111: R1, 0.5 - 0.5 | DH111: R5, 1 - 0 | DJ111: R3, 0.5 - 0.5 | DK111: R1, 1 - 0 | DL111: R2, 0 - 1 | DM111: R2, 1 - 0 | DN111: R2, 1 - 0 | DO111: R1, 0.5 - 0.5 | DP111: R5, 0 - 1 | DR111: R6, 0.5 - 0.5 | DS111: R3, 0 - 1 | DT111: R4, 1 - 0 | DW111: R3, 0 - 1 | DX111: R2, 1 - 0 | DY111: R2, 0 - 1
A112: JJ | CW112: R6, 1 - 0 | CX112: R3, 1 - 0 | DA112: R5, 0 - 1 | DB112: R2, 0.5 - 0.5 | DF112: R2, 1 - 0 | DG112: R5, 0 - 1 | DI112: R1, 0 - 2 | DJ112: R1, 0 - 1 | DK112: R1, 0 - 1 | DM112: R4, 1 - 0 | DN112: R5, 0.5 - 0.5 | DO112: R2, 1 - 0 | DP112: R5, 1 - 0 | DQ112: R2, 0.5 - 0.5 | DR112: R1, 1 - 0 | DS112: R6, 0.5 - 0.5 | DT112: R5, 1 - 0 | DU112: R4, 0.5 - 0.5 | DW112: R1, 1 - 0 | DX112: R3, 0 - 1 | DY112: R6, 0.5 - 0.5
A113: Wilzif | CX113: R5, 0.5 - 0.5 | CZ113: R1, 0 - 1 | DA113: R2, 1 - 0 | DF113: R6, 1 - 0 | DH113: R1, 2 - 0 | DJ113: R1, 0.5 - 0.5 | DM113: R5, 0.5 - 0.5 | DN113: R2, 0.5 - 0.5 | DO113: R1, 0.5 - 0.5 | DP113: R6, 1 - 0 | DQ113: R7, 1 - 0 | DS113: R3, 0.5 - 0.5 | DU113: R5, 1 - 0 | DV113: R8, 0.5 - 0.5 | DW113: R4, 1 - 0 | DY113: R3, 0.5 - 0.5
A114: noraal | AC114: R1, 0 - 2 | CX114: R1, 1 - 0 | CZ114: R3, 0 - 1 | DA114: R5, 0.5 - 0.5 | DB114: R4, 0 - 1 | DC114: R3, 1 - 0 | DD114: R2, 0.5 - 0.5 | DF114: R5, 1 - 0 | DG114: R3, 0.5 - 0.5 | DH114: R1, 1 - 0 | DI114: R1, 0.5 - 0.5 | DL114: R3, 1 - 0 | DN114: R3, 20 - 3 | DU114: R2, 0.5 - 0.5 | DV114: R1, 0.5 - 0.5 | DW114: R2, 1 - 0 | DY114: R1, 0 - 1
A115: cz | M115: R1, 1 - 1 | CW115: R2, 0 - 1 | CX115: R6, 3 - 20 | CY115: R3, 1 - 0 | DA115: R3, 10 - 10 | DB115: R6, 1 - 0 | DC115: R2, 0.5 - 0.5 | DE115: R2, 0 - 1 | DF115: R4, 0.5 - 0.5 | DG115: R1, 0 - 1 | DH115: R1, 1 - 0 | DS115: R7, 0 - 1 | DT115: R1, 0.5 - 0.5 | DU115: R2, 1 - 0 | DV115: R6, 1 - 0 | DX115: R2, 0.5 - 0.5
A116: Loki | BF116: R1, 2 - 0 | CW116: R1, 1 - 0 | DA116: R6, 0.5 - 0.5 | DB116: R5, 0 - 1 | DC116: R1, 0.5 - 0.5 | DD116: R2, 0.5 - 0.5 | DE116: R1, 0.5 - 0.5 | DF116: R7, 1 - 0 | DG116: R2, 1 - 0 | DJ116: R3, 0 - 1 | DM116: R3, 0 - 1 | DQ116: R5, 0 - 1 | DR116: R2, 0.5 - 0.5 | DS116: R6, 0 - 1 | DV116: R2, 0 - 1 | DW116: R1, 1 - 0 | DY116: R4, 0 - 1
A117: gninocker | C117: R1, 0 - 2 | CW117: R3, 0 - 1 | CY117: R1, 0 - 1 | CZ117: R6, 0 - 1 | DA117: R1, 0.5 - 0.5 | DB117: R2, 0 - 1 | DD117: R4, 0 - 1 | DE117: R1, 1 - 0 | DF117: R1, 0 - 1 | DG117: R2, 0 - 1 | DH117: R4, 0 - 1 | DI117: R5, 0.5 - 0.5 | DL117: R3, 1 - 0 | DN117: R7, 0 - 1 | DP117: R2, 1 - 0 | DR117: R2, 1 - 0 | DS117: R2, 1 - 0 | DU117: R6, 0 - 1 | DV117: R5, 22 - 8 | DW117: R4, 0 - 1 | DY117: R1, 1 - 0
A118: Mewash | CR118: R1, 1 - 1 | CW118: R1, 0.5 - 0.5 | CX118: R2, 0 - 1 | CZ118: R2, 0.5 - 0.5 | DB118: R6, 1 - 0 | DC118: R3, 0.5 - 0.5 | DD118: R1, 1 - 0 | DE118: R1, 1 - 0 | DF118: R1, 1 - 0 | DG118: R2, 0 - 1 | DH118: R5, 0.5 - 0.5 | DI118: R2, 0.5 - 0.5 | DJ118: R3, 3 - 20 | DM118: R7, 1 - 0 | DR118: R1, 0 - 1 | DS118: R3, 0 - 1 | DT118: R2, 1 - 0 | DV118: R4, 0.5 - 0.5 | DW118: R6, 0.5 - 0.5 | DX118: R2, 0.5 - 0.5 | DY118: R4, 1 - 0
A119: Leonek | BK119: R1, 1 - 1 | CY119: R5, 1 - 0 | CZ119: R1, 0.5 - 0.5 | DB119: R1, 0.5 - 0.5 | DC119: R5, 0.5 - 0.5 | DD119: R1, 1 - 0 | DE119: R2, 1 - 0 | DF119: R1, 0.5 - 0.5 | DG119: R1, 0.5 - 0.5 | DH119: R2, 0 - 1 | DI119: R1, 0.5 - 0.5 | DQ119: R4, 19 - 2 | DR119: R2, 1 - 0 | DS119: R1, 0 - 1 | DT119: R2, 1 - 0 | DX119: R1, 1 - 0
A120: JamesEs | CZ120: R1, 1 - 0 | DA120: R1, 0.5 - 0.5 | DB120: R1, 0 - 1 | DC120: R2, 1 - 0 | DD120: R2, 0 - 1 | DE120: R1, 0 - 2 | DF120: R5, 1 - 0 | DG120: R5, 1 - 0 | DH120: R5, 0 - 1 | DI120: R6, 0 - 1 | DM120: R2, 0 - 1 | DQ120: R8, 0.5 - 0.5 | DS120: R2, 0 - 1 | DU120: R4, 0 - 1 | DV120: R2, 0 - 1 | DW120: R2, 1 - 0 | DX120: R6, 0 - 1
A121: Duke_Luthor_Von_Hawkfire | CK121: R1, 2 - 0 | CW121: R6, 0 - 1 | CX121: R5, 1 - 0 | CY121: R1, 0.5 - 0.5 | CZ121: R1, 0.5 - 0.5 | DA121: R2, 15 - 13 | DB121: R2, 1 - 0 | DD121: R5, 0.5 - 0.5 | DE121: R1, 0 - 1 | DF121: R1, 0.5 - 0.5 | DH121: R2, 0.5 - 0.5 | DI121: R7, 0 - 1 | DL121: R5, 1 - 0 | DO121: R4, 2 - 19 | DP121: R8, 0.5 - 0.5 | DR121: R6, 0 - 1 | DS121: R6, 1 - 0 | DT121: R4, 0 - 1 | DU121: R1, 0.5 - 0.5 | DV121: R3, 0 - 1 | DY121: R2, 0 - 1
A122: Jokaero | CI122: R1, 2 - 0 | CW122: R6, 0.5 - 0.5 | CY122: R1, 1 - 0 | DA122: R2, 0.5 - 0.5 | DC122: R3, 0.5 - 0.5 | DE122: R4, 1 - 0 | DF122: R6, 0 - 1 | DG122: R6, 0.5 - 0.5 | DH122: R1, 0 - 1 | DL122: R2, 0.5 - 0.5 | DM122: R2, 0 - 1 | DN122: R1, 1 - 0 | DO122: R2, 0 - 1 | DQ122: R6, 1 - 0 | DT122: R6, 10 - 10
A123: Duckwing | AR123: R1, 0 - 2 | CW123: R3, 0 - 1 | CX123: R1, 0 - 1 | CZ123: R2, 0 - 1 | DB123: R2, 0 - 1 | DD123: R1, 1 - 0 | DE123: R6, 0 - 1 | DF123: R6, 5 - 22 | DG123: R3, 1 - 0 | DH123: R6, 0.5 - 0.5 | DI123: R3, 0.5 - 0.5 | DK123: R7, 1 - 0 | DL123: R6, 1 - 0 | DM123: R2, 0 - 1 | DN123: R3, 1 - 0 | DO123: R1, 1 - 0 | DP123: R2, 1 - 0 | DQ123: R6, 0 - 1 | DT123: R5, 0 - 1 | DY123: R6, 0.5 - 0.5
A124: Justicium | CS124: R1, 1 - 1 | CX124: R5, 0.5 - 0.5 | CY124: R2, 1 - 0 | CZ124: R1, 1 - 0 | DA124: R1, 0.5 - 0.5 | DB124: R6, 0 - 1 | DC124: R1, 0 - 1 | DD124: R1, 0 - 1 | DE124: R6, 0.5 - 0.5 | DF124: R6, 0 - 1 | DG124: R4, 0 - 1 | DH124: R5, 0 - 1 | DK124: R1, 0.5 - 0.5 | DN124: R2, 0 - 1 | DO124: R2, 0 - 1 | DQ124: R4, 1 - 0 | DR124: R6, 10 - 10 | DS124: R5, 1 - 0
A125: Liam | BW125: R1, 2 - 0 | DA125: R2, 0 - 1 | DB125: R3, 0 - 1 | DC125: R6, 0 - 1 | DD125: R6, 0.5 - 0.5 | DE125: R1, 0 - 1 | DH125: R4, 0.5 - 0.5 | DI125: R5, 0 - 1 | DJ125: R2, 0.5 - 0.5 | DK125: R2, 0 - 1 | DM125: R6, 1 - 0 | DP125: R4, 1 - 0 | DQ125: R1, 0.5 - 0.5
A126: Endalos | H126: R1, 2 - 0 | CW126: R1, 0 - 1 | CX126: R2, 0 - 1 | CZ126: R4, 1 - 0 | DB126: R2, 0.5 - 0.5 | DD126: R3, 0.5 - 0.5 | DE126: R1, 1 - 0 | DF126: R1, 0 - 1 | DI126: R8, 0.5 - 0.5 | DJ126: R1, 0.5 - 0.5 | DK126: R6, 0 - 1 | DL126: R2, 1 - 0 | DM126: R5, 8 - 22 | DN126: R4, 0.5 - 0.5 | DP126: R2, 1 - 0 | DQ126: R3, 1 - 0 | DW126: R6, 0.5 - 0.5
A127: bothun | CX127: R1, 2 - 0 | DB127: R6, 0.5 - 0.5 | DC127: R2, 0.5 - 0.5 | DD127: R6, 1 - 0 | DF127: R1, 0 - 1 | DG127: R3, 1 - 0 | DH127: R1, 0 - 1 | DI127: R4, 0 - 1 | DJ127: R2, 0 - 1 | DL127: R1, 0 - 1 | DM127: R4, 1 - 0 | DN127: R6, 0.5 - 0.5 | DP127: R2, 0 - 1 | DV127: R6, 0.5 - 0.5 | DX127: R3, 1 - 0
A128: Inforthepain | AP128: R1, 1 - 1 | CW128: R2, 0 - 1 | CZ128: R1, 0.5 - 0.5 | DB128: R6, 0.5 - 0.5 | DC128: R6, 0.5 - 0.5 | DF128: R5, 0.5 - 0.5 | DG128: R2, 0 - 1 | DH128: R3, 1 - 0 | DK128: R2, 0.5 - 0.5 | DN128: R2, 0.5 - 0.5 | DO128: R1, 0 - 1 | DP128: R6, 1 - 0 | DW128: R3, 0 - 1
A129: sigu70 | CY129: R1, 1 - 0 | DB129: R1, 0.5 - 0.5 | DC129: R5, 0 - 1 | DD129: R8, 0 - 1 | DE129: R3, 0.5 - 0.5 | DF129: R1, 0 - 2 | DG129: R2, 1 - 0 | DH129: R6, 0.5 - 0.5 | DI129: R3, 0.5 - 0.5 | DJ129: R1, 1 - 0 | DL129: R4, 1 - 0 | DM129: R1, 0 - 1 | DN129: R4, 0 - 1 | DQ129: R2, 1 - 0 | DS129: R6, 0.5 - 0.5

Sheet Round1
B1: Home Player | C1: Away Player | D1: Home Points | E1: Away Points | F1: Home TD | G1: Away TD | H1: Home Cas | I1: Away Cas | J1: Home Bonus1 | K1: Away Bonus1 | L1: Home Bonus2 | M1: Away Bonus2 | N1: Home Group | O1: Away Group | S1: Points Before Games | V1: Points After Games | Y1: Group Results | Z1: Group | AA1: Points | AC1: Group Points Before Games | AF1: Group Points After Games
B2: Harti | C2: sann0638 | D2: =fctScore(F2,G2,H2,J2,L2) -> 1 | E2: =fctScore(G2,F2,I2,K2,M2) -> 1 | F2: 2 | G2: 2 | H2: 2 | I2: 1 | J2: 1 | K2: 2 | L2: 0 | M2: 2 | N2: France | O2: Scotland | S2: Wilzif | T2: 0 | V2: Gros Nain | W2: 2 | Z2: Belgium | AA2: 7 | AC2: France | AD2: 0 | AF2: Germany | AG2: 213
B3: BiBi | C3: Garrick | D3: =fctScore(F3,G3,H3,J3,L3) -> 1 | E3: =fctScore(G3,F3,I3,K3,M3) -> 1 | F3: 2 | G3: 2 | H3: 0 | I3: 1 | J3: 3 | K3: 2 | L3: 1 | M3: 3 | N3: France | O3: Scotland | S3: sann0638 | T3: 0 | V3: Topper | W3: 2 | Z3: Denmark | AA3: 212 | AC3: Scotland | AD3: 0 | AF3: Denmark | AG3: 212
B4: Gros Nain | C4: HumptyTrump | D4: 2 | E4: 0 | F4: 3 | G4: 0 | H4: 3 | I4: 1 | J4: 2 | K4: 2 | L4: 0 | M4: 2 | N4: France | O4: Scotland | S4: sigu70 | T4: 0 | V4: Geggster | W4: 2 | Z4: England | AA4: 209 | AC4: Spain | AD4: 0 | AF4: Viking | AG4: 210
B5: Justicium | C5: DonShula | D5: 1 | E5: 1 | F5: 1 | G5: 1 | H5: 2 | I5: 2 | J5: 1 | K5: 1 | L5: 2 | M5: 2 | N5: France | O5: Scotland | S5: Strider84 | T5: 0 | V5: SpecialOne | W5: 2 | Z5: Finland | AA5: 209 | AC5: Hungary | AD5: 0 | AF5: Hungary | AG5: 209
B6: BudWiser | C6: Purdindas | D6: 0 | E6: 2 | F6: 2 | G6: 3 | H6: 3 | I6: 1 | J6: 2 | K6: 3 | L6: 1 | M6: 2 | N6: France | O6: Scotland | S6: Pellevin | T6: 0 | V6: Loki | W6: 2 | Z6: France | AA6: 209 | AC6: Germany | AD6: 0 | AF6: England | AG6: 209
B7: Simon_ACP | C7: Loki | D7: 0 | E7: 2 | F7: 0 | G7: 3 | H7: 2 | I7: 0 | J7: 2 | K7: 0 | L7: 0 | M7: 2 | N7: France | O7: Scotland | S7: JohnnyD | T7: 0 | V7: swifty | W7: 2 | Z7: Germany | AA7: 213 | AC7: Switzerland | AD7: 0 | AF7: Finland | AG7: 209
B8: Bouzzy | C8: Valen | D8: 2 | E8: 0 | F8: 1 | G8: 0 | H8: 1 | I8: 1 | J8: 1 | K8: 3 | L8: 3 | M8: 1 | N8: France | O8: Scotland | S8: Slimaq | T8: 0 | V8: BlackOrc | W8: 2 | Z8: Hungary | AA8: 209 | AC8: Sweden | AD8: 0 | AF8: France | AG8: 209
B9: Matt le fou | C9: JamesEs | D9: 2 | E9: 0 | F9: 1 | G9: 0 | H9: 0 | I9: 2 | J9: 1 | K9: 1 | L9: 2 | M9: 1 | N9: France | O9: Scotland | S9: Garrick | T9: 0 | V9: Tank | W9: 2 | Z9: Italy | AA9: 108 | AC9: Viking | AD9: 0 | AF9: Poland | AG9: 108
B10: Duke_Luthor_Von_Hawkfire | C10: Alex05 | D10: 2 | E10: 0 | F10: 2 | G10: 1 | H10: 1 | I10: 2 | J10: 0 | K10: 1 | L10: 3 | M10: 1 | N10: Spain | O10: Hungary | S10: JJ | T10: 0 | V10: Jokaero | W10: 2 | Z10: Norway | AA10: 4 | AC10: Belgium | AD10: 0 | AF10: Italy | AG10: 108
B11: Malasnoticias | C11: noraal | D11: 2 | E11: 0 | F11: 2 | G11: 1 | H11: 1 | I11: 3 | J11: 2 | K11: 2 | L11: 1 | M11: 0 | N11: Spain | O11: Hungary | S11: GreatWhiteHope | T11: 0 | V11: Mufflo | W11: 2 | Z11: Poland | AA11: 108 | AC11: England | AD11: 0 | AF11: Scotland | AG11: 7
B12: Obeliz | C12: cz | D12: 1 | E12: 1 | F12: 2 | G12: 2 | H12: 3 | I12: 3 | J12: 0 | K12: 2 | L12: 3 | M12: 1 | N12: Spain | O12: Hungary | S12: Macabeo | T12: 0 | V12: Niebling | W12: 2 | Z12: Scotland | AA12: 7 | AC12: Denmark | AD12: 0 | AF12: Wales | AG12: 7
B13: Dark Duke | C13: Favi | D13: 1 | E13: 1 | F13: 2 | G13: 2 | H13: 2 | I13: 1 | J13: 1 | K13: 1 | L13: 1 | M13: 0 | N13: Spain | O13: Hungary | S13: Harti | T13: 0 | V13: Candlejack | W13: 2 | Z13: Spain | AA13: 7 | AC13: Norway | AD13: 0 | AF13: Belgium | AG13: 7
B14: Joanet | C14: swifty | D14: 0 | E14: 2 | F14: 1 | G14: 3 | H14: 0 | I14: 1 | J14: 1 | K14: 1 | L14: 0 | M14: 1 | N14: Spain | O14: Hungary | S14: Beppe | T14: 0 | V14: valkohukka | W14: 2 | Z14: Sweden | AA14: 6 | AC14: Italy | AD14: 0 | AF14: Spain | AG14: 7
B15: Tactel | C15: Itzla | D15: 0 | E15: 2 | F15: 1 | G15: 2 | H15: 2 | I15: 0 | J15: 3 | K15: 2 | L15: 2 | M15: 1 | N15: Spain | O15: Hungary | S15: Duke_Luthor_Von_Hawkfire | T15: 0 | V15: Domingo | W15: 2 | Z15: Switzerland | AA15: 3 | AC15: Poland | AD15: 0 | AF15: Sweden | AG15: 6
B16: Idroj | C16: BlackOrc | D16: 0 | E16: 2 | F16: 0 | G16: 2 | H16: 1 | I16: 2 | J16: 2 | K16: 2 | L16: 0 | M16: 1 | N16: Spain | O16: Hungary | S16: BiBi | T16: 0 | V16: Muadib | W16: 2 | Z16: Viking | AA16: 210 | AC16: Finland | AD16: 0 | AF16: Norway | AG16: 4
B17: Barry | C17: Wolio | D17: 1 | E17: 1 | F17: 0 | G17: 0 | H17: 1 | I17: 0 | J17: 0 | K17: 2 | L17: 2 | M17: 2 | N17: Spain | O17: Hungary | S17: Tripleskull | T17: 0 | V17: Purrelito | W17: 2 | Z17: Wales | AA17: 7 | AC17: Wales | AD17: 0 | AF17: Switzerland | AG17: 3
B18: Candlejack | C18: sigu70 | D18: 2 | E18: 0 | F18: 2 | G18: 0 | H18: 1 | I18: 2 | J18: 1 | K18: 1 | L18: 0 | M18: 2 | N18: Germany | O18: Switzerland | S18: Ploppy_McPloppy | T18: 0 | V18: Verrinho | W18: 2
B19: Prince | C19: Strider84 | D19: 2 | E19: 0 | F19: 3 | G19: 2 | H19: 0 | I19: 2 | J19: 1 | K19: 1 | L19: 1 | M19: 1 | N19: Germany | O19: Switzerland | S19: Gros Nain | T19: 0 | V19: Liam | W19: 2
B20: DocMaxx | C20: Macabeo | D20: 2 | E20: 0 | F20: 1 | G20: 0 | H20: 2 | I20: 1 | J20: 3 | K20: 0 | L20: 1 | M20: 1 | N20: Germany | O20: Switzerland | S20: Duckwing | T20: 0 | V20: DocMaxx | W20: 2
B21: Gaunab | C21: Madmatt13 | D21: 2 | E21: 0 | F21: 3 | G21: 2 | H21: 1 | I21: 2 | J21: 1 | K21: 0 | L21: 0 | M21: 1 | N21: Germany | O21: Switzerland | S21: Malasnoticias | T21: 0 | V21: Bernuz | W21: 2
B22: RoterSternHochdahl | C22: Phifoe | D22: 2 | E22: 0 | F22: 2 | G22: 1 | H22: 1 | I22: 1 | J22: 1 | K22: 1 | L22: 0 | M22: 1 | N22: Germany | O22: Switzerland | S22: Candlejack | T22: 0 | V22: Endalos | W22: 2
B23: Arioso | C23: Jokaero | D23: 0 | E23: 2 | F23: 1 | G23: 3 | H23: 2 | I23: 2 | J23: 3 | K23: 1 | L23: 2 | M23: 0 | N23: Germany | O23: Switzerland | S23: Domingo | T23: 0 | V23: Malodoror | W23: 2
B24: Muadib | C24: Goss | D24: 2 | E24: 0 | F24: 2 | G24: 1 | H24: 3 | I24: 0 | J24: 3 | K24: 2 | L24: 1 | M24: 0 | N24: Germany | O24: Switzerland | S24: Alex05 | T24: 0 | V24: MadeofWelsh | W24: 2
B25: Jonny_Kanone | C25: Elrik | D25: 1 | E25: 1 | F25: 1 | G25: 1 | H25: 3 | I25: 0 | J25: 0 | K25: 1 | L25: 2 | M25: 3 | N25: Germany | O25: Switzerland | S25: Niebling | T25: 0 | V25: bothun | W25: 2
B26: Pellevin | C26: Duckwing | D26: 2 | E26: 0 | F26: 2 | G26: 1 | H26: 3 | I26: 2 | J26: 2 | K26: 2 | L26: 3 | M26: 1 | N26: Sweden | O26: Viking | S26: JimJimany | T26: 0 | V26: Pellevin | W26: 2
B27: JohnnyD | C27: Corwin | D27: 1 | E27: 1 | F27: 1 | G27: 1 | H27: 2 | I27: 1 | J27: 1 | K27: 2 | L27: 2 | M27: 2 | N27: Sweden | O27: Viking | S27: andydavo | T27: 0 | V27: PurpleGoo | W27: 2
B28: Skoberget | C28: Bernuz | D28: 0 | E28: 2 | F28: 1 | G28: 2 | H28: 1 | I28: 2 | J28: 1 | K28: 2 | L28: 3 | M28: 1 | N28: Sweden | O28: Viking | S28: Jaqra | T28: 0 | V28: Dionysian | W28: 2
B29: Inforthepain | C29: Faccko | D29: 1 | E29: 1 | F29: 1 | G29: 1 | H29: 0 | I29: 2 | J29: 1 | K29: 2 | L29: 1 | M29: 3 | N29: Sweden | O29: Viking | S29: Madmatt13 | T29: 0 | V29: jopotzuki | W29: 2
B30: Skuld | C30: brocCooli | D30: 1 | E30: 1 | F30: 1 | G30: 1 | H30: 2 | I30: 2 | J30: 2 | K30: 2 | L30: 0 | M30: 2 | N30: Sweden | O30: Viking | S30: FrankPedersen | T30: 0 | V30: Driesfield | W30: 2
B31: Melisqus | C31: Mufflo | D31: 0 | E31: 2 | F31: 1 | G31: 3 | H31: 0 | I31: 0 | J31: 2 | K31: 1 | L31: 1 | M31: 0 | N31: Sweden | O31: Viking | S31: Phifoe | T31: 0 | V31: RoterSternHochdahl | W31: 2
B32: Pidpad | C32: Purrelito | D32: 0 | E32: 2 | F32: 0 | G32: 1 | H32: 0 | I32: 2 | J32: 2 | K32: 2 | L32: 1 | M32: 1 | N32: Sweden | O32: Viking | S32: MadeofWelsh | T32: 0 | V32: Woete | W32: 2
B33: Dragons | C33: Balder | D33: 1 | E33: 1 | F33: 2 | G33: 2 | H33: 1 | I33: 3 | J33: 2 | K33: 0 | L33: 2 | M33: 2 | N33: Sweden | O33: Viking | S33: HumptyTrump | T33: 0 | V33: Bouzzy | W33: 2
B34: JJ | C34: Wilzif | D34: 0 | E34: 2 | F34: 0 | G34: 1 | H34: 1 | I34: 1 | J34: 3 | K34: 2 | L34: 2 | M34: 1 | N34: Belgium | O34: England | S34: Prince | T34: 0 | V34: Wilzif | W34: 2
B35: Driesfield | C35: JimJimany | D35: 2 | E35: 0 | F35: 2 | G35: 1 | H35: 1 | I35: 1 | J35: 3 | K35: 0 | L35: 2 | M35: 1 | N35: Belgium | O35: England | S35: DocMaxx | T35: 0 | V35: Harza | W35: 2
B36: gninocker | C36: PurpleGoo | D36: 0 | E36: 2 | F36: 0 | G36: 1 | H36: 0 | I36: 1 | J36: 3 | K36: 2 | L36: 1 | M36: 3 | N36: Belgium | O36: England | S36: Tank | T36: 0 | V36: Slimaq | W36: 2
B37: Dekra1979 | C37: Joemanji | D37: 1 | E37: 1 | F37: 1 | G37: 1 | H37: 1 | I37: 1 | J37: 2 | K37: 0 | L37: 2 | M37: 3 | N37: Belgium | O37: England | S37: Mewash | T37: 0 | V37: Tripleskull | W37: 2
B38: Araznaroth | C38: Mubo | D38: 0 | E38: 2 | F38: 2 | G38: 3 | H38: 2 | I38: 1 | J38: 2 | K38: 0 | L38: 2 | M38: 2 | N38: Belgium | O38: England | S38: Justicium | T38: 0 | V38: Duke_Luthor_Von_Hawkfire | W38: 2
B39: Woete | C39: Podfrey | D39: 2 | E39: 0 | F39: 1 | G39: 0 | H39: 1 | I39: 1 | J39: 2 | K39: 0 | L39: 2 | M39: 2 | N39: Belgium | O39: England | S39: Juniooor7 | T39: 0 | V39: Mubo | W39: 2
B40: Malodoror | C40: Lycos | D40: 2 | E40: 0 | F40: 2 | G40: 1 | H40: 3 | I40: 2 | J40: 2 | K40: 3 | L40: 3 | M40: 1 | N40: Belgium | O40: England | S40: Driesfield | T40: 0 | V40: Gaunab | W40: 2
B41: Phoenix11 | C41: Geggster | D41: 0 | E41: 2 | F41: 0 | G41: 3 | H41: 2 | I41: 2 | J41: 1 | K41: 0 | L41: 1 | M41: 0 | N41: Belgium | O41: England | S41: Farina | T41: 0 | V41: Jaqra | W41: 2
B42: Tripleskull | C42: GreatWhiteHope | D42: 2 | E42: 0 | F42: 2 | G42: 1 | H42: 0 | I42: 1 | J42: 2 | K42: 3 | L42: 1 | M42: 1 | N42: Denmark | O42: Norway | S42: jopotzuki | T42: 0 | V42: Purdindas | W42: 2
B43: Niebling | C43: FrankPedersen | D43: 2 | E43: 0 | F43: 3 | G43: 1 | H43: 1 | I43: 2 | J43: 1 | K43: 1 | L43: 1 | M43: 3 | N43: Denmark | O43: Norway | S43: noraal | T43: 0 | V43: Matt le fou | W43: 2
B44: Jaqra | C44: straume | D44: 2 | E44: 0 | F44: 2 | G44: 1 | H44: 1 | I44: 3 | J44: 2 | K44: 3 | L44: 2 | M44: 1 | N44: Denmark | O44: Norway | S44: Skoberget | T44: 0 | V44: Itzla | W44: 2
B45: Tank | C45: mynock | D45: 2 | E45: 0 | F45: 3 | G45: 1 | H45: 1 | I45: 1 | J45: 1 | K45: 0 | L45: 2 | M45: 3 | N45: Denmark | O45: Norway | S45: Inforthepain | T45: 0 | V45: Malasnoticias | W45: 2
B46: MissSweden | C46: Endalos | D46: 0 | E46: 2 | F46: 1 | G46: 2 | H46: 1 | I46: 2 | J46: 2 | K46: 1 | L46: 0 | M46: 1 | N46: Denmark | O46: Norway | S46: Jokaero | T46: 0 | V46: Prince | W46: 2
B47: kfoged | C47: bothun | D47: 0 | E47: 2 | F47: 1 | G47: 2 | H47: 1 | I47: 2 | J47: 0 | K47: 2 | L47: 3 | M47: 1 | N47: Denmark | O47: Norway | S47: MissSweden | T47: 0 | V47: Jonny_Kanone | W47: 1
B48: Topper | C48: zulu | D48: 2 | E48: 0 | F48: 3 | G48: 0 | H48: 3 | I48: 2 | J48: 2 | K48: 3 | L48: 2 | M48: 1 | N48: Denmark | O48: Norway | S48: Spartako | T48: 0 | V48: Balder | W48: 1
B49: SpecialOne | C49: The_Ref | D49: 2 | E49: 0 | F49: 3 | G49: 0 | H49: 1 | I49: 2 | J49: 1 | K49: 1 | L49: 1 | M49: 2 | N49: Denmark | O49: Norway | S49: Goss | T49: 0 | V49: J-Ho | W49: 1
B50: Beppe | C50: Slimaq | D50: 0 | E50: 2 | F50: 1 | G50: 2 | H50: 1 | I50: 0 | J50: 3 | K50: 0 | L50: 2 | M50: 3 | N50: Italy | O50: Poland | S50: Obeliz | T50: 0 | V50: Faccko | W50: 1
B51: Farina | C51: Domingo | D51: 0 | E51: 2 | F51: 1 | G51: 3 | H51: 3 | I51: 1 | J51: 1 | K51: 2 | L51: 3 | M51: 1 | N51: Italy | O51: Poland | S51: gninocker | T51: 0 | V51: SFisher91 | W51: 1
B52: Spartako | C52: Mewash | D52: 1 | E52: 1 | F52: 1 | G52: 1 | H52: 1 | I52: 0 | J52: 2 | K52: 0 | L52: 1 | M52: 2 | N52: Italy | O52: Poland | S52: Gaunab | T52: 0 | V52: Barry | W52: 1
B53: Verrinho | C53: Juniooor7 | D53: 2 | E53: 0 | F53: 2 | G53: 1 | H53: 3 | I53: 1 | J53: 0 | K53: 1 | L53: 1 | M53: 2 | N53: Italy | O53: Poland | S53: RoterSternHochdahl | T53: 0 | V53: Garrick | W53: 1
B54: Liam | C54: Warrior1980 | D54: 2 | E54: 0 | F54: 3 | G54: 2 | H54: 1 | I54: 0 | J54: 0 | K54: 0 | L54: 1 | M54: 1 | N54: Italy | O54: Poland | S54: Warrior1980 | T54: 0 | V54: JohnnyD | W54: 1
B55: Matte8 | C55: Leonek | D55: 1 | E55: 1 | F55: 3 | G55: 3 | H55: 2 | I55: 2 | J55: 0 | K55: 1 | L55: 0 | M55: 2 | N55: Italy | O55: Poland | S55: valkohukka | T55: 0 | V55: 20Phoenix | W55: 1
B56: Kaltenland | C56: Shawass | D56: 1 | E56: 1 | F56: 2 | G56: 2 | H56: 1 | I56: 1 | J56: 2 | K56: 2 | L56: 2 | M56: 1 | N56: Italy | O56: Poland | S56: cz | T56: 0 | V56: Dirold | W56: 1
B57: Dirold | C57: Reszka | D57: 1 | E57: 1 | F57: 1 | G57: 1 | H57: 2 | I57: 1 | J57: 2 | K57: 1 | L57: 2 | M57: 0 | N57: Italy | O57: Poland | S57: Elrik | T57: 0 | V57: Dark Duke | W57: 1
B58: jopotzuki | C58: Ploppy_McPloppy | D58: 2 | E58: 0 | F58: 2 | G58: 1 | H58: 3 | I58: 3 | J58: 3 | K58: 3 | L58: 1 | M58: 2 | N58: Finland | O58: Wales | S58: Northernknight | T58: 0 | V58: Spartako | W58: 1
B59: valkohukka | C59: andydavo | D59: 2 | E59: 0 | F59: 3 | G59: 1 | H59: 1 | I59: 2 | J59: 0 | K59: 1 | L59: 2 | M59: 0 | N59: Finland | O59: Wales | S59: DonShula | T59: 0 | V59: Harti | W59: 1
B60: BeerBeer | C60: MadeofWelsh | D60: 0 | E60: 2 | F60: 0 | G60: 1 | H60: 1 | I60: 2 | J60: 1 | K60: 1 | L60: 2 | M60: 1 | N60: Finland | O60: Wales | S60: Favi | T60: 0 | V60: Kaltenland | W60: 1
B61: J-Ho | C61: Northernknight | D61: 1 | E61: 1 | F61: 1 | G61: 1 | H61: 3 | I61: 1 | J61: 2 | K61: 2 | L61: 1 | M61: 3 | N61: Finland | O61: Wales | S61: Corwin | T61: 0 | V61: Matte8 | W61: 1
B62: edheim | C62: SFisher91 | D62: 1 | E62: 1 | F62: 2 | G62: 2 | H62: 1 | I62: 2 | J62: 2 | K62: 1 | L62: 3 | M62: 1 | N62: Finland | O62: Wales | S62: Leonek | T62: 0 | V62: cz | W62: 1
B63: MacWitt | C63: Dionysian | D63: 0 | E63: 2 | F63: 2 | G63: 3 | H63: 1 | I63: 1 | J63: 0 | K63: 1 | L63: 3 | M63: 2 | N63: Finland | O63: Wales | S63: Dekra1979 | T63: 0 | V63: Justicium | W63: 1
B64: ratogre | C64: 20Phoenix | D64: 1 | E64: 1 | F64: 2 | G64: 2 | H64: 1 | I64: 2 | J64: 2 | K64: 3 | L64: 0 | M64: 2 | N64: Finland | O64: Wales | S64: straume | T64: 0 | V64: Skuld | W64: 1
B65: Harza | C65: nonumber | D65: 2 | E65: 0 | F65: 1 | G65: 0 | H65: 1 | I65: 2 | J65: 1 | K65: 1 | L65: 3 | M65: 3 | N65: Finland | O65: Wales | S65: PurpleGoo | T65: 0 | V65: Joemanji | W65: 1
S66: BeerBeer | T66: 0 | V66: Leonek | W66: 1
S67: mynock | T67: 0 | V67: DonShula | W67: 1
S68: Skuld | T68: 0 | V68: Dekra1979 | W68: 1
S69: Verrinho | T69: 0 | V69: brocCooli | W69: 1
S70: Araznaroth | T70: 0 | V70: Obeliz | W70: 1
S71: Shawass | T71: 0 | V71: Shawass | W71: 1
S72: BudWiser | T72: 0 | V72: Mewash | W72: 1
S73: swifty | T73: 0 | V73: edheim | W73: 1
S74: Endalos | T74: 0 | V74: Favi | W74: 1
S75: Joemanji | T75: 0 | V75: BiBi | W75: 1
S76: J-Ho | T76: 0 | V76: Wolio | W76: 1
S77: edheim | T77: 0 | V77: Reszka | W77: 1
S78: Mubo | T78: 0 | V78: ratogre | W78: 1
S79: MacWitt | T79: 0 | V79: sann0638 | W79: 1
S80: ratogre | T80: 0 | V80: Corwin | W80: 1
S81: Melisqus | T81: 0 | V81: Dragons | W81: 1
S82: Simon_ACP | T82: 0 | V82: Inforthepain | W82: 1
S83: Purdindas | T83: 0 | V83: Northernknight | W83: 1
S84: Reszka | T84: 0 | V84: Elrik | W84: 1
S85: Liam | T85: 0 | V85: Tactel | W85: 0
S86: Bouzzy | T86: 0 | V86: straume | W86: 0
S87: kfoged | T87: 0 | V87: JamesEs | W87: 0
S88: Loki | T88: 0 | V88: Strider84 | W88: 0
S89: Bernuz | T89: 0 | V89: BudWiser | W89: 0
S90: Matte8 | T90: 0 | V90: noraal | W90: 0
S91: Kaltenland | T91: 0 | V91: nonumber | W91: 0
S92: Faccko | T92: 0 | V92: Madmatt13 | W92: 0
S93: bothun | T93: 0 | V93: GreatWhiteHope | W93: 0
S94: Podfrey | T94: 0 | V94: Alex05 | W94: 0
S95: Dark Duke | T95: 0 | V95: Araznaroth | W95: 0
S96: brocCooli | T96: 0 | V96: Beppe | W96: 0
S97: zulu | T97: 0 | V97: JJ | W97: 0
S98: Woete | T98: 0 | V98: Ploppy_McPloppy | W98: 0
S99: Arioso | T99: 0 | V99: Phifoe | W99: 0
S100: Valen | T100: 0 | V100: MacWitt | W100: 0
S101: Joanet | T101: 0 | V101: Podfrey | W101: 0
S102: Mufflo | T102: 0 | V102: Valen | W102: 0
S103: JamesEs | T103: 0 | V103: JimJimany | W103: 0
S104: Itzla | T104: 0 | V104: Warrior1980 | W104: 0
S105: The_Ref | T105: 0 | V105: Skoberget | W105: 0
S106: BlackOrc | T106: 0 | V106: Duckwing | W106: 0
S107: Matt le fou | T107: 0 | V107: Lycos | W107: 0
S108: Topper | T108: 0 | V108: BeerBeer | W108: 0
S109: Wolio | T109: 0 | V109: Macabeo | W109: 0
S110: Harza | T110: 0 | V110: gninocker | W110: 0
S111: Pidpad | T111: 0 | V111: kfoged | W111: 0
S112: Tactel | T112: 0 | V112: MissSweden | W112: 0
S113: Lycos | T113: 0 | V113: Pidpad | W113: 0
S114: Dirold | T114: 0 | V114: Juniooor7 | W114: 0
S115: Dragons | T115: 0 | V115: Goss | W115: 0
S116: SFisher91 | T116: 0 | V116: Farina | W116: 0
S117: Dionysian | T117: 0 | V117: sigu70 | W117: 0
S118: Muadib | T118: 0 | V118: FrankPedersen | W118: 0
S119: Malodoror | T119: 0 | V119: andydavo | W119: 0
S120: Geggster | T120: 0 | V120: Melisqus | W120: 0
S121: SpecialOne | T121: 0 | V121: mynock | W121: 0
S122: Idroj | T122: 0 | V122: Arioso | W122: 0
S123: Purrelito | T123: 0 | V123: Joanet | W123: 0
S124: Phoenix11 | T124: 0 | V124: Idroj | W124: 0
S125: 20Phoenix | T125: 0 | V125: Simon_ACP | W125: 0
S126: Jonny_Kanone | T126: 0 | V126: The_Ref | W126: 0
S127: nonumber | T127: 0 | V127: Phoenix11 | W127: 0
S128: Barry | T128: 0 | V128: zulu | W128: 0
S129: Balder | T129: 0 | V129: HumptyTrump | W129: 0

Sheet Round2
B1: Home Player | C1: Away Player | D1: Home Points | E1: Away Points | F1: Home TD | G1: Away TD | H1: Home Cas | I1: Away Cas | J1: Home Bonus1 | K1: Away Bonus1 | L1: Home Bonus2 | M1: Away Bonus2 | N1: Home Group | O1: Away Group | S1: Points Before Games | AC1: Group Points Before Games
B2: Candlejack | C2: Topper | D2: =fctScore(F2,G2,H2,J2,L2) -> 1 | E2: =fctScore(G2,F2,I2,K2,M2) -> 1 | F2: 2 | G2: 2 | H2: 2 | I2: 0 | J2: 1 | K2: 1 | L2: 0 | M2: 0 | N2: Germany | O2: Denmark | S2: Gros Nain | T2: 2 | AC2: Germany | AD2: 213
B3: Muadib | C3: SpecialOne | D3: =fctScore(F3,G3,H3,J3,L3) -> 0 | E3: =fctScore(G3,F3,I3,K3,M3) -> 2 | F3: 1 | G3: 2 | H3: 2 | I3: 2 | J3: 0 | K3: 1 | L3: 0 | M3: 1 | N3: Germany | O3: Denmark | S3: Topper | T3: 2 | AC3: Denmark | AD3: 212
B4: DocMaxx | C4: Tank | D4: 1 | E4: 1 | F4: 2 | G4: 2 | H4: 2 | I4: 1 | J4: 3 | K4: 2 | L4: 2 | M4: 1 | N4: Germany | O4: Denmark | S4: Geggster | T4: 2 | AC4: Viking | AD4: 210
B5: RoterSternHochdahl | C5: Niebling | D5: 2 | E5: 0 | F5: 2 | G5: 0 | H5: 0 | I5: 1 | J5: 2 | K5: 3 | L5: 1 | M5: 2 | N5: Germany | O5: Denmark | S5: SpecialOne | T5: 2 | AC5: Hungary | AD5: 209
B6: Gaunab | C6: Tripleskull | D6: 2 | E6: 0 | F6: 2 | G6: 0 | H6: 2 | I6: 1 | J6: 1 | K6: 2 | L6: 3 | M6: 3 | N6: Germany | O6: Denmark | S6: Loki | T6: 2 | AC6: England | AD6: 209
B7: Prince | C7: Jaqra | D7: 2 | E7: 0 | F7: 2 | G7: 0 | H7: 2 | I7: 3 | J7: 0 | K7: 3 | L7: 0 | M7: 1 | N7: Germany | O7: Denmark | S7: swifty | T7: 2 | AC7: Finland | AD7: 209
B8: Jonny_Kanone | C8: kfoged | D8: 1 | E8: 1 | F8: 2 | G8: 2 | H8: 0 | I8: 0 | J8: 2 | K8: 1 | L8: 1 | M8: 2 | N8: Germany | O8: Denmark | S8: BlackOrc | T8: 2 | AC8: France | AD8: 209
B9: Arioso | C9: MissSweden | D9: 2 | E9: 0 | F9: 2 | G9: 1 | H9: 1 | I9: 0 | J9: 1 | K9: 2 | L9: 2 | M9: 2 | N9: Germany | O9: Denmark | S9: Tank | T9: 2 | AC9: Poland | AD9: 108
B10: Mufflo | C10: swifty | D10: 1 | E10: 1 | F10: 2 | G10: 2 | H10: 1 | I10: 2 | J10: 2 | K10: 2 | L10: 2 | M10: 1 | N10: Viking | O10: Hungary | S10: Jokaero | T10: 2 | AC10: Italy | AD10: 108
B11: Purrelito | C11: BlackOrc | D11: 2 | E11: 0 | F11: 2 | G11: 0 | H11: 1 | I11: 3 | J11: 2 | K11: 1 | L11: 1 | M11: 1 | N11: Viking | O11: Hungary | S11: Mufflo | T11: 2 | AC11: Scotland | AD11: 7
B12: Bernuz | C12: Itzla | D12: 2 | E12: 0 | F12: 3 | G12: 1 | H12: 1 | I12: 2 | J12: 2 | K12: 2 | L12: 2 | M12: 1 | N12: Viking | O12: Hungary | S12: Niebling | T12: 2 | AC12: Wales | AD12: 7
B13: Balder | C13: cz | D13: 1 | E13: 1 | F13: 2 | G13: 2 | H13: 3 | I13: 1 | J13: 1 | K13: 2 | L13: 1 | M13: 1 | N13: Viking | O13: Hungary | S13: Candlejack | T13: 2 | AC13: Belgium | AD13: 7
B14: Faccko | C14: Favi | D14: 1 | E14: 1 | F14: 2 | G14: 2 | H14: 0 | I14: 0 | J14: 2 | K14: 3 | L14: 2 | M14: 1 | N14: Viking | O14: Hungary | S14: valkohukka | T14: 2 | AC14: Spain | AD14: 7
B15: brocCooli | C15: Wolio | D15: 1 | E15: 1 | F15: 1 | G15: 1 | H15: 3 | I15: 2 | J15: 1 | K15: 1 | L15: 2 | M15: 2 | N15: Viking | O15: Hungary | S15: Domingo | T15: 2 | AC15: Sweden | AD15: 6
B16: Corwin | C16: noraal | D16: 0 | E16: 2 | F16: 0 | G16: 2 | H16: 3 | I16: 1 | J16: 0 | K16: 1 | L16: 2 | M16: 1 | N16: Viking | O16: Hungary | S16: Muadib | T16: 2 | AC16: Norway | AD16: 4
B17: Duckwing | C17: Alex05 | D17: 0 | E17: 2 | F17: 1 | G17: 2 | H17: 1 | I17: 2 | J17: 2 | K17: 1 | L17: 1 | M17: 0 | N17: Viking | O17: Hungary | S17: Purrelito | T17: 2 | AC17: Switzerland | AD17: 3
B18: Geggster | C18: valkohukka | D18: 2 | E18: 0 | F18: 3 | G18: 1 | H18: 2 | I18: 1 | J18: 3 | K18: 1 | L18: 2 | M18: 1 | N18: England | O18: Finland | S18: Verrinho | T18: 2
B19: PurpleGoo | C19: jopotzuki | D19: 2 | E19: 0 | F19: 1 | G19: 0 | H19: 1 | I19: 1 | J19: 2 | K19: 0 | L19: 1 | M19: 0 | N19: England | O19: Finland | S19: Liam | T19: 2
B20: Wilzif | C20: Harza | D20: 0 | E20: 2 | F20: 1 | G20: 2 | H20: 2 | I20: 3 | J20: 2 | K20: 2 | L20: 2 | M20: 1 | N20: England | O20: Finland | S20: DocMaxx | T20: 2
B21: Mubo | C21: J-Ho | D21: 2 | E21: 0 | F21: 3 | G21: 1 | H21: 2 | I21: 2 | J21: 2 | K21: 2 | L21: 2 | M21: 2 | N21: England | O21: Finland | S21: Bernuz | T21: 2
B22: Joemanji | C22: edheim | D22: 0 | E22: 2 | F22: 1 | G22: 2 | H22: 2 | I22: 2 | J22: 1 | K22: 1 | L22: 1 | M22: 3 | N22: England | O22: Finland | S22: Endalos | T22: 2
B23: Podfrey | C23: ratogre | D23: 1 | E23: 1 | F23: 2 | G23: 2 | H23: 1 | I23: 0 | J23: 1 | K23: 0 | L23: 2 | M23: 0 | N23: England | O23: Finland | S23: Malodoror | T23: 2
B24: JimJimany | C24: MacWitt | D24: 1 | E24: 1 | F24: 1 | G24: 1 | H24: 0 | I24: 2 | J24: 2 | K24: 1 | L24: 1 | M24: 1 | N24: England | O24: Finland | S24: MadeofWelsh | T24: 2
B25: Lycos | C25: BeerBeer | D25: 2 | E25: 0 | F25: 2 | G25: 1 | H25: 0 | I25: 3 | J25: 0 | K25: 1 | L25: 2 | M25: 2 | N25: England | O25: Finland | S25: bothun | T25: 2
B26: Gros Nain | C26: Domingo | D26: 2 | E26: 0 | F26: 2 | G26: 1 | H26: 1 | I26: 3 | J26: 2 | K26: 1 | L26: 1 | M26: 1 | N26: France | O26: Poland | S26: Pellevin | T26: 2
B27: Bouzzy | C27: Slimaq | D27: 0 | E27: 2 | F27: 1 | G27: 2 | H27: 2 | I27: 2 | J27: 2 | K27: 0 | L27: 2 | M27: 1 | N27: France | O27: Poland | S27: PurpleGoo | T27: 2
B28: Matt le fou | C28: Leonek | D28: 0 | E28: 2 | F28: 0 | G28: 1 | H28: 3 | I28: 1 | J28: 2 | K28: 1 | L28: 1 | M28: 1 | N28: France | O28: Poland | S28: Dionysian | T28: 2
B29: Harti | C29: Shawass | D29: 1 | E29: 1 | F29: 1 | G29: 1 | H29: 1 | I29: 2 | J29: 1 | K29: 2 | L29: 2 | M29: 2 | N29: France | O29: Poland | S29: jopotzuki | T29: 2
B30: Justicium | C30: Mewash | D30: 1 | E30: 1 | F30: 0 | G30: 0 | H30: 0 | I30: 1 | J30: 1 | K30: 2 | L30: 1 | M30: 3 | N30: France | O30: Poland | S30: Driesfield | T30: 2
B31: BiBi | C31: Reszka | D31: 2 | E31: 0 | F31: 3 | G31: 2 | H31: 1 | I31: 0 | J31: 1 | K31: 0 | L31: 2 | M31: 3 | N31: France | O31: Poland | S31: RoterSternHochdahl | T31: 2
B32: BudWiser | C32: Warrior1980 | D32: 1 | E32: 1 | F32: 1 | G32: 1 | H32: 3 | I32: 0 | J32: 2 | K32: 2 | L32: 2 | M32: 2 | N32: France | O32: Poland | S32: Woete | T32: 2
B33: Simon_ACP | C33: Juniooor7 | D33: 2 | E33: 0 | F33: 3 | G33: 0 | H33: 1 | I33: 2 | J33: 1 | K33: 2 | L33: 1 | M33: 3 | N33: France | O33: Poland | S33: Bouzzy | T33: 2
B34: Verrinho | C34: Loki | D34: 0 | E34: 2 | F34: 1 | G34: 3 | H34: 1 | I34: 2 | J34: 3 | K34: 1 | L34: 3 | M34: 3 | N34: Italy | O34: Scotland | S34: Wilzif | T34: 2
B35: Liam | C35: Purdindas | D35: 2 | E35: 0 | F35: 3 | G35: 2 | H35: 2 | I35: 1 | J35: 0 | K35: 2 | L35: 2 | M35: 3 | N35: Italy | O35: Scotland | S35: Harza | T35: 2
B36: Dirold | C36: Garrick | D36: 2 | E36: 0 | F36: 1 | G36: 0 | H36: 2 | I36: 0 | J36: 1 | K36: 1 | L36: 1 | M36: 3 | N36: Italy | O36: Scotland | S36: Slimaq | T36: 2
B37: Spartako | C37: DonShula | D37: 0 | E37: 2 | F37: 0 | G37: 2 | H37: 2 | I37: 2 | J37: 0 | K37: 2 | L37: 1 | M37: 3 | N37: Italy | O37: Scotland | S37: Tripleskull | T37: 2
B38: Kaltenland | C38: sann0638 | D38: 1 | E38: 1 | F38: 1 | G38: 1 | H38: 1 | I38: 1 | J38: 1 | K38: 2 | L38: 2 | M38: 1 | N38: Italy | O38: Scotland | S38: Duke_Luthor_Von_Hawkfire | T38: 2
B39: Matte8 | C39: JamesEs | D39: 1 | E39: 1 | F39: 2 | G39: 2 | H39: 3 | I39: 3 | J39: 1 | K39: 2 | L39: 2 | M39: 1 | N39: Italy | O39: Scotland | S39: Mubo | T39: 2
B40: Beppe | C40: Valen | D40: 2 | E40: 0 | F40: 2 | G40: 1 | H40: 1 | I40: 0 | J40: 3 | K40: 1 | L40: 2 | M40: 2 | N40: Italy | O40: Scotland | S40: Gaunab | T40: 2
B41: Farina | C41: HumptyTrump | D41: 0 | E41: 2 | F41: 0 | G41: 2 | H41: 2 | I41: 2 | J41: 1 | K41: 0 | L41: 1 | M41: 2 | N41: Italy | O41: Scotland | S41: Jaqra | T41: 2
B42: MadeofWelsh | C42: Malodoror | D42: 0 | E42: 2 | F42: 0 | G42: 1 | H42: 0 | I42: 0 | J42: 1 | K42: 3 | L42: 2 | M42: 1 | N42: Wales | O42: Belgium | S42: Purdindas | T42: 2
B43: Dionysian | C43: Driesfield | D43: 1 | E43: 1 | F43: 1 | G43: 1 | H43: 0 | I43: 1 | J43: 1 | K43: 3 | L43: 1 | M43: 1 | N43: Wales | O43: Belgium | S43: Matt le fou | T43: 2
B44: SFisher91 | C44: Woete | D44: 2 | E44: 0 | F44: 2 | G44: 1 | H44: 2 | I44: 1 | J44: 1 | K44: 0 | L44: 2 | M44: 1 | N44: Wales | O44: Belgium | S44: Itzla | T44: 2
B45: 20Phoenix | C45: Dekra1979 | D45: 0 | E45: 2 | F45: 2 | G45: 3 | H45: 1 | I45: 2 | J45: 1 | K45: 0 | L45: 0 | M45: 0 | N45: Wales | O45: Belgium | S45: Malasnoticias | T45: 2
B46: Northernknight | C46: Araznaroth | D46: 0 | E46: 2 | F46: 0 | G46: 2 | H46: 1 | I46: 0 | J46: 0 | K46: 2 | L46: 3 | M46: 2 | N46: Wales | O46: Belgium | S46: Prince | T46: 2
B47: nonumber | C47: JJ | D47: 0 | E47: 2 | F47: 2 | G47: 3 | H47: 2 | I47: 0 | J47: 2 | K47: 1 | L47: 1 | M47: 2 | N47: Wales | O47: Belgium | S47: Jonny_Kanone | T47: 1
B48: Ploppy_McPloppy | C48: gninocker | D48: 1 | E48: 1 | F48: 1 | G48: 1 | H48: 1 | I48: 3 | J48: 0 | K48: 1 | L48: 2 | M48: 2 | N48: Wales | O48: Belgium | S48: Balder | T48: 1
B49: andydavo | C49: Phoenix11 | D49: 2 | E49: 0 | F49: 2 | G49: 0 | H49: 1 | I49: 0 | J49: 2 | K49: 3 | L49: 1 | M49: 1 | N49: Wales | O49: Belgium | S49: J-Ho | T49: 1
B50: Duke_Luthor_Von_Hawkfire | C50: Pellevin | D50: 2 | E50: 0 | F50: 3 | G50: 1 | H50: 1 | I50: 1 | J50: 1 | K50: 3 | L50: 2 | M50: 2 | N50: Spain | O50: Sweden | S50: Faccko | T50: 1
B51: Malasnoticias | C51: JohnnyD | D51: 0 | E51: 2 | F51: 0 | G51: 3 | H51: 0 | I51: 2 | J51: 2 | K51: 1 | L51: 3 | M51: 1 | N51: Spain | O51: Sweden | S51: SFisher91 | T51: 1
B52: Barry | C52: Skuld | D52: 2 | E52: 0 | F52: 2 | G52: 1 | H52: 1 | I52: 2 | J52: 2 | K52: 1 | L52: 2 | M52: 2 | N52: Spain | O52: Sweden | S52: Barry | T52: 1
B53: Dark Duke | C53: Dragons | D53: 1 | E53: 1 | F53: 0 | G53: 0 | H53: 0 | I53: 0 | J53: 2 | K53: 3 | L53: 1 | M53: 1 | N53: Spain | O53: Sweden | S53: Garrick | T53: 1
B54: Obeliz | C54: Inforthepain | D54: 2 | E54: 0 | F54: 3 | G54: 1 | H54: 1 | I54: 3 | J54: 0 | K54: 0 | L54: 3 | M54: 3 | N54: Spain | O54: Sweden | S54: JohnnyD | T54: 1
B55: Tactel | C55: Skoberget | D55: 0 | E55: 2 | F55: 2 | G55: 3 | H55: 1 | I55: 2 | J55: 2 | K55: 3 | L55: 1 | M55: 0 | N55: Spain | O55: Sweden | S55: 20Phoenix | T55: 1
B56: Joanet | C56: Pidpad | D56: 2 | E56: 0 | F56: 3 | G56: 0 | H56: 1 | I56: 2 | J56: 1 | K56: 2 | L56: 3 | M56: 2 | N56: Spain | O56: Sweden | S56: Dirold | T56: 1
B57: Idroj | C57: Melisqus | D57: 2 | E57: 0 | F57: 3 | G57: 2 | H57: 1 | I57: 2 | J57: 2 | K57: 1 | L57: 0 | M57: 0 | N57: Spain | O57: Sweden | S57: Dark Duke | T57: 1
B58: Endalos | C58: Jokaero | D58: 1 | E58: 1 | F58: 1 | G58: 1 | H58: 1 | I58: 2 | J58: 1 | K58: 1 | L58: 0 | M58: 3 | N58: Norway | O58: Switzerland | S58: Spartako | T58: 1
B59: bothun | C59: Elrik | D59: 2 | E59: 0 | F59: 1 | G59: 0 | H59: 2 | I59: 2 | J59: 1 | K59: 2 | L59: 3 | M59: 3 | N59: Norway | O59: Switzerland | S59: Harti | T59: 1
B60: straume | C60: Strider84 | D60: 1 | E60: 1 | F60: 1 | G60: 1 | H60: 3 | I60: 3 | J60: 2 | K60: 3 | L60: 2 | M60: 1 | N60: Norway | O60: Switzerland | S60: Kaltenland | T60: 1
B61: GreatWhiteHope | C61: Madmatt13 | D61: 1 | E61: 1 | F61: 2 | G61: 2 | H61: 3 | I61: 0 | J61: 2 | K61: 2 | L61: 3 | M61: 3 | N61: Norway | O61: Switzerland | S61: Matte8 | T61: 1
B62: FrankPedersen | C62: Phifoe | D62: 1 | E62: 1 | F62: 2 | G62: 2 | H62: 1 | I62: 2 | J62: 2 | K62: 0 | L62: 1 | M62: 1 | N62: Norway | O62: Switzerland | S62: cz | T62: 1
B63: mynock | C63: Macabeo | D63: 1 | E63: 1 | F63: 3 | G63: 3 | H63: 1 | I63: 3 | J63: 2 | K63: 3 | L63: 1 | M63: 2 | N63: Norway | O63: Switzerland | S63: Justicium | T63: 1
B64: The_Ref | C64: Goss | D64: 2 | E64: 0 | F64: 1 | G64: 0 | H64: 3 | I64: 2 | J64: 3 | K64: 2 | L64: 2 | M64: 3 | N64: Norway | O64: Switzerland | S64: Skuld | T64: 1
B65: zulu | C65: sigu70 | D65: 0 | E65: 2 | F65: 0 | G65: 2 | H65: 1 | I65: 1 | J65: 0 | K65: 3 | L65: 3 | M65: 1 | N65: Norway | O65: Switzerland | S65: Joemanji | T65: 1
S66: Leonek | T66: 1
S67: DonShula | T67: 1
S68: Dekra1979 | T68: 1
S69: brocCooli | T69: 1
S70: Obeliz | T70: 1
S71: Shawass | T71: 1
S72: Mewash | T72: 1
S73: edheim | T73: 1
S74: Favi | T74: 1
S75: BiBi | T75: 1
S76: Wolio | T76: 1
S77: Reszka | T77: 1
S78: ratogre | T78: 1
S79: sann0638 | T79: 1
S80: Corwin | T80: 1
S81: Dragons | T81: 1
S82: Inforthepain | T82: 1
S83: Northernknight | T83: 1
S84: Elrik | T84: 1
S85: Tactel | T85: 0
S86: straume | T86: 0
S87: JamesEs | T87: 0
S88: Strider84 | T88: 0
S89: BudWiser | T89: 0
S90: noraal | T90: 0
S91: nonumber | T91: 0
S92: Madmatt13 | T92: 0
S93: GreatWhiteHope | T93: 0
S94: Alex05 | T94: 0
S95: Araznaroth | T95: 0
S96: Beppe | T96: 0
S97: JJ | T97: 0
S98: Ploppy_McPloppy | T98: 0
S99: Phifoe | T99: 0
S100: MacWitt | T100: 0
S101: Podfrey | T101: 0
S102: Valen | T102: 0
S103: JimJimany | T103: 0
S104: Warrior1980 | T104: 0
S105: Skoberget | T105: 0
S106: Duckwing | T106: 0
S107: Lycos | T107: 0
S108: BeerBeer | T108: 0
S109: Macabeo | T109: 0
S110: gninocker | T110: 0
S111: kfoged | T111: 0
S112: MissSweden | T112: 0
S113: Pidpad | T113: 0
S114: Juniooor7 | T114: 0
S115: Goss | T115: 0
S116: Farina | T116: 0
S117: sigu70 | T117: 0
S118: FrankPedersen | T118: 0
S119: andydavo | T119: 0
S120: Melisqus | T120: 0
S121: mynock | T121: 0
S122: Arioso | T122: 0
S123: Joanet | T123: 0
S124: Idroj | T124: 0
S125: Simon_ACP | T125: 0
S126: The_Ref | T126: 0
S127: Phoenix11 | T127: 0
S128: zulu | T128: 0
S129: HumptyTrump | T129: 0

Sheet Round3

Sheet Round4

Sheet Round5

Sheet Round6

Sheet Round7

Sheet Round8

Sheet Round9

Sheet NAF
A1: <?xml version="1.0" encoding="UTF-8"?>
A2: <nafReport xmlns:blo="http://www.bloodbowl.net">
A3: <organiser>Mike</organiser>
A4: <coaches>
A5: <coach>
A6: <name>Alex</name>
A7: <number>16761</number>
A8: <team>Skaven</team>
A9: </coach>
A10: <coach>
A11: <name>Mike</name>
A12: <number>10468</number>
A13: <team>Elves</team>
A14: </coach>
A15: <coach>
A16: <name>Linus</name>
A17: <number>15676</number>
A18: <team>Dwarves</team>
A19: </coach>
A20: <coach>
A21: <name>Player4</name>
A22: <number>9106</number>
A23: <team>Wood Elves</team>
A24: </coach>
A25: <coach>
A26: <name>Player5</name>
A27: <number>12789</number>
A28: <team>Dark Elves</team>
A29: </coach>
A30: <coach>
A31: <name>Player6</name>
A32: <number>18136</number>
A33: <team>Wood Elves</team>
A34: </coach>
A35: <coach>
A36: <name>Player7</name>
A37: <number>9672</number>
A38: <team>Wood Elves</team>
A39: </coach>
A40: <coach>
A41: <name>Player8</name>
A42: <number>4118</number>
A43: <team>Chaos Dwarves</team>
A44: </coach>
A45: <coach>
A46: <name>Player9</name>
A47: <number>14129</number>
A48: <team>Nurgle's Rotters</team>
A49: </coach>
A50: <coach>
A51: <name>Player10</name>
A52: <number>1739</number>
A53: <team>Lizardmen</team>
A54: </coach>
A55: <coach>
A56: <name>Player11</name>
A57: <number>19602</number>
A58: <team>Slann</team>
A59: </coach>
A60: <coach>
A61: <name>Player12</name>
A62: <number>15064</number>
A63: <team>Wood Elves</team>
A64: </coach>
A65: <coach>
A66: <name>Player13</name>
A67: <number>6092</number>
A68: <team>Amazons</team>
A69: </coach>
A70: <coach>
A71: <name>Player14</name>
A72: <number>9080</number>
A73: <team>Dwarves</team>
A74: </coach>
A75: <coach>
A76: <name>Player15</name>
A77: <number>7960</number>
A78: <team>Undead</team>
A79: </coach>
A80: <coach>
A81: <name>Player16</name>
A82: <number>15062</number>
A83: <team>Goblins</team>
A84: </coach>
A85: <coach>
A86: <name>Player17</name>
A87: <number>7106</number>
A88: <team>Wood Elves</team>
A89: </coach>
A90: <coach>
A91: <name>Player18</name>
A92: <number>7371</number>
A93: <team>Khemri</team>
A94: </coach>
A95: </coaches>
A96: <game>
A97: <timestamp>2016-09-18 01:00</timestamp>
A98: <playerRecord>
A99: <name>Player7</name>
A100: <number>9672</number>
A101: <teamRating>100</teamRating>
A102: <touchDowns>12</touchDowns>
A103: <badlyHurt>2</badlyHurt>
A104: </playerRecord>
A105: <playerRecord>
A106: <name>Player9</name>
A107: <number>14129</number>
A108: <teamRating>100</teamRating>
A109: <touchDowns>7</touchDowns>
A110: <badlyHurt>1</badlyHurt>
A111: </playerRecord>
A112: </game>
A113: <game>
A114: <timestamp>2016-09-18 01:00</timestamp>
A115: <playerRecord>
A116: <name>Player6</name>
A117: <number>18136</number>
A118: <teamRating>100</teamRating>
A119: <touchDowns>12</touchDowns>
A120: <badlyHurt>2</badlyHurt>
A121: </playerRecord>
A122: <playerRecord>
A123: <name>Player11</name>
A124: <number>19602</number>
A125: <teamRating>100</teamRating>
A126: <touchDowns>12</touchDowns>
A127: <badlyHurt>2</badlyHurt>
A128: </playerRecord>
A129: </game>
A130: <game>
A131: <timestamp>2016-09-18 01:00</timestamp>
A132: <playerRecord>
A133: <name>Player17</name>
A134: <number>7106</number>
A135: <teamRating>100</teamRating>
A136: <touchDowns>10</touchDowns>
A137: <badlyHurt>2</badlyHurt>
A138: </playerRecord>
A139: <playerRecord>
A140: <name>Player13</name>
A141: <number>6092</number>
A142: <teamRating>100</teamRating>
A143: <touchDowns>8</touchDowns>
A144: <badlyHurt>2</badlyHurt>
A145: </playerRecord>
A146: </game>
A147: <game>
A148: <timestamp>2016-09-18 01:00</timestamp>
A149: <playerRecord>
A150: <name>Player8</name>
A151: <number>4118</number>
A152: <teamRating>100</teamRating>
A153: <touchDowns>3</touchDowns>
A154: <badlyHurt>1</badlyHurt>
A155: </playerRecord>
A156: <playerRecord>
A157: <name>Linus</name>
A158: <number>15676</number>
A159: <teamRating>100</teamRating>
A160: <touchDowns>16</touchDowns>
A161: <badlyHurt>3</badlyHurt>
A162: </playerRecord>
A163: </game>
A164: <game>
A165: <timestamp>2016-09-18 01:00</timestamp>
A166: <playerRecord>
A167: <name>Player14</name>
A168: <number>9080</number>
A169: <teamRating>100</teamRating>
A170: <touchDowns>9</touchDowns>
A171: <badlyHurt>1</badlyHurt>
A172: </playerRecord>
A173: <playerRecord>
A174: <name>Player10</name>
A175: <number>1739</number>
A176: <teamRating>100</teamRating>
A177: <touchDowns>11</touchDowns>
A178: <badlyHurt>2</badlyHurt>
A179: </playerRecord>
A180: </game>
A181: <game>
A182: <timestamp>2016-09-18 01:00</timestamp>
A183: <playerRecord>
A184: <name>Mike</name>
A185: <number>10468</number>
A186: <teamRating>100</teamRating>
A187: <touchDowns>4</touchDowns>
A188: <badlyHurt>0</badlyHurt>
A189: </playerRecord>
A190: <playerRecord>
A191: <name>Player5</name>
A192: <number>12789</number>
A193: <teamRating>100</teamRating>
A194: <touchDowns>17</touchDowns>
A195: <badlyHurt>2</badlyHurt>
A196: </playerRecord>
A197: </game>
A198: <game>
A199: <timestamp>2016-09-18 01:00</timestamp>
A200: <playerRecord>
... 661 more rows

Sheet Working
Z1: Latest Rd: | AA1: 2
Z2: Players: | AA2: =COUNTA(Players!B:B)-1 -> 128 | AE2: Max Score | AF2: =Setup!B19*TeamSize*Setup!B19+Setup!B19 -> 34
Z3: Display | AA3: 14 | AB3: Columns
Z4: Enter | AA4: 7 | AB4: Columns
Z5: Max random | AA5: 3
Z6: Number of Groups | AA6: =COUNTA(Players!M:M)-1 -> 16 | AE6: Group
AE7: Individual
Z8: Group display | AA8: 18 | AB8: columns
AC10: Cumulative
AA11: Amazons | AG11: Entry Data
AA12: Bretonnian | AE12: Initial Display Columns | AG12: Player
AA13: Chaos | AE13: Player | AG13: Points
AA14: Chaos Dwarves | AE14: Points | AG14: TD
AA15: Chaos Pact | AE15: TD For | AG15: Cas
AA16: Dark Elves | AE16: Cas For | AG16: =Setup!E3 -> Bonus1 | AH16: Bonus1 Name
AA17: Dwarves | AE17: =Working!AG16 -> Bonus1 | AG17: =Setup!E4 -> Bonus2 | AH17: Bonus2 Name
AA18: Elves | AE18: =Working!AG17 -> Bonus2 | AG18: Group
AA19: Goblins | AE19: TD Against
AA20: Halflings | AE20: Cas Against
AA21: High Elves | AE21: TD Net
AA22: Humans | AE22: Cas Net
AA23: Khemri | AE23: Wins
AA24: Khorne | AE24: Draws
AA25: Lizardmen | AE25: Losses
AA26: Necromantic | AE26: Opp Score
AA27: Norse | AE27: Group
AA28: Nurgle's Rotters
AA29: Ogres
AA30: Orc
AA31: Skaven
AA32: Slann
AA33: Undead
AA34: Underworld
AA35: Vampires
AA36: Wood Elves

Sheet ChangeLog
B1: This spreadsheet is based on one by Kaper on an Excel forum: http://www.excelforum.com/excel-programming-vba-macros/1105569-swiss-pairing-algorithm-in-excel-to-organize-a-chess-tournament.html
B2: Massive thanks due to him!
B3: The original was used for Chess, and it has been adapted to work for Blood Bowl by sann0638 (Mike Davies)
A5: Version | B5: Summary | C5: Date | D5: Notes
A6: 1.0 | B6: Multi-sheet version of the chess | C6: 2016-06-19
A7: 1.1 | B7: Remove Black and White stuff | C7: 2016-06-19
A8: 1.2 | B8: Change to TDs to generate points | C8: 2016-06-19
B9: Got the Swiss working properly | C9: 2016-06-19 | D9: Published.
A10: 1.3 | B10: More help information. | C10: 2016-06-20
B11: Added Table | C11: 2016-06-20
B12: Added Opponent Score | C12: 2016-06-20
A13: 2.1 | B13: Big overhaul to where info stored | C13: 2016-06-21
A14: 2.2 | B14: Putting in the Score formula | C14: 2016-06-21 | D14: Published.
A15: 3.1 | B15: Added all tiebreaker columns | C15: 2016-06-22
B16: Realised opponent score was wrong, fixed it. | C16: 2016-06-22
A17: 3.2 | B17: Fixed problem with sorting the table. | C17: 2016-06-23 | D17: Published.
A18: 3.3 | B18: Tiebreakers implemented | C18: 2016-06-24
B19: NAF Upload file | C19: 2016-06-24 | D19: Published.
A20: 4.1 | B20: Group results and matrix added | C20: 2016-06-25
B21: Group results fully implemented | C21: 2016-06-26
A22: 4.2 | B22: Fixed net casualties | C22: 2016-06-28
A23: 4.3 | B23: Tiebreakers corrected, yet again! | C23: 2016-09-17 | D23: Published.
A24: 4.4 | B24: Group results corrected, groups added to table | C24: 2016-09-17
B25: Removed need for Groups to be in there, corrected number of players. | C25: 2016-09-18 | D25: Published.
A26: 5.0 | B26: Mostly working Group Swiss | C26: 2016-09-21
A27: 5.1 | B27: Working Group Swiss. | C27: 2016-09-21 | D27: Published.
A28: 5.2 | B28: Fixed problem with more than 100 coaches. | C28: 2016-09-25
B29: Tidied up tabs. | C29: 2016-09-25 | D29: Published.
